Ref No,Fund Type,Dept,Cost Centre Description    ,Description    ,Creditor Name    ,GL Code Net Amount,Payment date        
2,Revenue,CCHD,Bed Purchasing - South,Permanent Nursing,.,1243.55, 17-Feb-2015
3,Revenue,CCHD,Bed Purchasing - Southmead Hospital,Permanent Nursing,.,1646.54, 17-Feb-2015
4,Revenue,CCHD,18-25 Year Olds,Permanent Residential,1 St Georges House,13206.6, 17-Feb-2015
5,Revenue,CCHD,Breakthrough and Inclusion Work,Other Supplies & Services,121Turnaround Limited,3178.72, 12-Feb-2015
6,Revenue,CCHD,Supporting People Programme,Grants to Voluntary Bodies,1625 Independent People,16692.5, 27-Feb-2015
7,Revenue,CCHD,Home Care - Elderly - South,Day Care / Social Activities,3 Trees Community Support Ltd,196.68, 09-Feb-2015
8,Revenue,CCHD,Home Care - Elderly - North,Day Care / Social Activities,3 Trees Community Support Ltd,2932.32, 09-Feb-2015
9,Revenue,CCHD,Home Care - Elderly - North,Other Small Contracts,3 Trees Community Support Ltd,286.08, 09-Feb-2015
10,Revenue,CCHD,Home Care - Elderly - North,Supported Living,3 Trees Community Support Ltd,9254.51, 09-Feb-2015
11,Revenue,CCHD,Home Care - Elderly - South,Day Care / Social Activities,3 Trees Community Support Ltd,196.68, 09-Feb-2015
12,Revenue,CCHD,Home Care - Elderly - North,Day Care / Social Activities,3 Trees Community Support Ltd,2932.32, 09-Feb-2015
13,Revenue,CCHD,Home Care - Elderly - North,Other Small Contracts,3 Trees Community Support Ltd,125.16, 09-Feb-2015
14,Revenue,CCHD,Home Care - Elderly - North,Supported Living,3 Trees Community Support Ltd,8575.69, 09-Feb-2015
15,Revenue,CCHD,Home Care - Elderly - South,Day Care / Social Activities,3 Trees Community Support Ltd,196.68, 13-Feb-2015
16,Revenue,CCHD,Home Care - Elderly - North,Day Care / Social Activities,3 Trees Community Support Ltd,2865.27, 13-Feb-2015
17,Revenue,CCHD,Home Care - Elderly - North,Other Small Contracts,3 Trees Community Support Ltd,107.28, 13-Feb-2015
18,Revenue,CCHD,Home Care - Elderly - North,Supported Living,3 Trees Community Support Ltd,8581.7, 13-Feb-2015
19,Revenue,CCHD,Home Care - Elderly - South,Day Care / Social Activities,3 Trees Community Support Ltd,196.68, 13-Feb-2015
20,Revenue,CCHD,Home Care - Elderly - North,Day Care / Social Activities,3 Trees Community Support Ltd,2874.21, 13-Feb-2015
21,Revenue,CCHD,Home Care - Elderly - North,Other Small Contracts,3 Trees Community Support Ltd,107.28, 13-Feb-2015
22,Revenue,CCHD,Home Care - Elderly - North,Supported Living,3 Trees Community Support Ltd,8555.41, 13-Feb-2015
23,Revenue,CCHD,Home Care - Elderly - South,Day Care / Social Activities,3 Trees Community Support Ltd,196.68, 27-Feb-2015
24,Revenue,CCHD,Home Care - Elderly - North,Day Care / Social Activities,3 Trees Community Support Ltd,2583.66, 27-Feb-2015
25,Revenue,CCHD,Home Care - Elderly - North,Other Small Contracts,3 Trees Community Support Ltd,1162.2, 27-Feb-2015
26,Revenue,CCHD,Home Care - Elderly - North,Supported Living,3 Trees Community Support Ltd,8393.92, 27-Feb-2015
27,Revenue,CCHD,Home Care - Elderly - South,Day Care / Social Activities,3 Trees Community Support Ltd,196.68, 27-Feb-2015
28,Revenue,CCHD,Home Care - Elderly - North,Day Care / Social Activities,3 Trees Community Support Ltd,2865.27, 27-Feb-2015
29,Revenue,CCHD,Home Care - Elderly - North,Other Small Contracts,3 Trees Community Support Ltd,107.28, 27-Feb-2015
30,Revenue,CCHD,Home Care - Elderly - North,Supported Living,3 Trees Community Support Ltd,8533.32, 27-Feb-2015
31,Revenue,CCHD,Bed Purchasing - South,Permanent Residential,5Th Floor Harlech Court,16062.2, 17-Feb-2015
32,Revenue,CCHD,18-25 Year Olds,Permanent Residential,5Th Floor Harlech Court,13689.08, 17-Feb-2015
33,Revenue,CCHD,18-25 Year Olds,Permanent Residential,5Th Floor Harlech Court,13962.28, 17-Feb-2015
34,Revenue,CCHD,18-25 Year Olds,Permanent Residential,5Th Floor Harlech Court,18172.6, 17-Feb-2015
35,Revenue,CCHD,Bed Purchasing - North,Permanent Residential,5Th Floor Harlech Court,16589.72, 17-Feb-2015
36,Revenue,CCHD,18-25 Year Olds,Permanent Residential,5Th Floor Harlech Court,15754.12, 17-Feb-2015
37,Revenue,CCHD,Bed Purchasing - South,Permanent Residential,5Th Floor Harlech Court,9301.84, 17-Feb-2015
38,Revenue,CCHD,Bed purchasing - S28A Under 65 - South,Permanent Residential,5Th Floor Harlech Court,10570.16, 17-Feb-2015
39,Revenue,CCHD,Bed purchasing - S28A Under 65 - South,Permanent Residential,5Th Floor Harlech Court,10717.48, 17-Feb-2015
40,Revenue,CCHD,Bed Purchasing - South,Permanent Nursing,5Th Floor Harlech Court,10240.88, 17-Feb-2015
41,Revenue,CCHD,Bed Purchasing - North,Permanent Nursing,ABI Development Limited,6970.24, 17-Feb-2015
42,Revenue,CCHD,Housing Needs,Storage & Removal,Ablemove-Wottons,432, 10-Feb-2015
43,Revenue,CCHD,Housing Needs,Storage & Removal,Ablemove-Wottons,428, 13-Feb-2015
44,Revenue,CCHD,Housing Needs,Storage & Removal,Ablemove-Wottons,452, 10-Feb-2015
45,Revenue,CCHD,Housing Needs,Storage & Removal,Ablemove-Wottons,480, 12-Feb-2015
46,Revenue,CCHD,Bed and Breakfast,Storage & Removal,Ablemove-Wottons,960.91, 12-Feb-2015
47,Revenue,CCHD,Tenancy Start Up Scheme,Other Supplies & Services,Acorn Property Letting and Management,1200, 19-Feb-2015
48,Revenue,CCHD,Home Care - Elderly - South,Day Care / Social Activities,Action on Hearing Loss,596.96, 20-Feb-2015
49,Revenue,CCHD,NHS Health Checks & Tobacco Control,Training Expenses,Activia Limited,428, 23-Feb-2015
50,Revenue,CCHD,Health Inequalities,Other Small Contracts,Age Concern South Gloucestershire,36000, 24-Feb-2015
51,Revenue,CCHD,Home Care - Elderly - South,Other Small Contracts,Agincare Chippenham,1573.2, 03-Feb-2015
52,Revenue,CCHD,Home Care - Elderly - South,Other Small Contracts,Agincare Chippenham,1596, 09-Feb-2015
53,Revenue,CCHD,Home Care - Elderly - South,Other Small Contracts,Agincare Chippenham,1615, 19-Feb-2015
54,Revenue,CCHD,Home Care - Elderly - South,Other Small Contracts,Agincare Chippenham,1618.8, 25-Feb-2015
55,Revenue,CCHD,Home Care - Elderly - South,Other Small Contracts,Agincare UK Limited,326.8, 03-Feb-2015
56,Revenue,CCHD,Home Care - Elderly - North,Other Small Contracts,Agincare UK Limited,159.6, 03-Feb-2015
57,Revenue,CCHD,Elderly MH Day Care North,Day Care / Social Activities,Agincare UK Limited,57, 03-Feb-2015
58,Revenue,CCHD,Home Care - Elderly - South,Other Small Contracts,Agincare UK Limited,323, 25-Feb-2015
59,Revenue,CCHD,Home Care - Elderly - North,Other Small Contracts,Agincare UK Limited,148.2, 25-Feb-2015
60,Revenue,CCHD,Elderly MH Day Care North,Day Care / Social Activities,Agincare UK Limited,57, 25-Feb-2015
61,Revenue,CCHD,Home Care - Elderly - North,Other Small Contracts,Agincare UK Nutfield,1482, 03-Feb-2015
62,Revenue,CCHD,Home Care - Elderly - North,Other Small Contracts,Agincare UK Nutfield,1288.2, 13-Feb-2015
63,Revenue,CCHD,Home Care - Elderly - North,Other Small Contracts,Agincare UK Nutfield,1542.8, 19-Feb-2015
64,Revenue,CCHD,Home Care - Elderly - North,Other Small Contracts,Agincare UK Nutfield,1637.8, 25-Feb-2015
65,Revenue,CCHD,Home Care - Elderly - South,Other Small Contracts,AliMo Care Ltd,1348.41, 19-Feb-2015
66,Revenue,CCHD,Home Care - Elderly - North,Other Small Contracts,AliMo Care Ltd,497.63, 19-Feb-2015
67,Revenue,CCHD,Home Care - Elderly - South,Other Small Contracts,AliMo Care Ltd,1352.54, 19-Feb-2015
68,Revenue,CCHD,Home Care - Elderly - North,Other Small Contracts,AliMo Care Ltd,497.63, 19-Feb-2015
69,Revenue,CCHD,Home Care - Elderly - South,Other Small Contracts,AliMo Care Ltd,1212.12, 19-Feb-2015
70,Revenue,CCHD,Home Care - Elderly - North,Other Small Contracts,AliMo Care Ltd,497.63, 19-Feb-2015
71,Revenue,CCHD,Home Care - Elderly - South,Other Small Contracts,AliMo Care Ltd,1331.89, 12-Feb-2015
72,Revenue,CCHD,Home Care - Elderly - North,Other Small Contracts,AliMo Care Ltd,497.63, 12-Feb-2015
73,Revenue,CCHD,Home Care - Elderly - South,Other Small Contracts,AliMo Care Ltd,1360.8, 12-Feb-2015
74,Revenue,CCHD,Home Care - Elderly - North,Other Small Contracts,AliMo Care Ltd,497.63, 12-Feb-2015
75,Revenue,CCHD,Home Care - Elderly - South,Other Small Contracts,AliMo Care Ltd,1866.68, 19-Feb-2015
76,Revenue,CCHD,Home Care - Elderly - South,Other Small Contracts,AliMo Care Ltd,1829.51, 26-Feb-2015
77,Revenue,CCHD,Sexual Health,Other Small Contracts,Almondsbury Surgery,774.26, 12-Feb-2015
78,Revenue,CCHD,Bed Purchasing - Southmead Hospital,Permanent Nursing,Ambleside Nusing Ho!,1443.84, 17-Feb-2015
79,Revenue,CCHD,Supporting People Programme,Grants to Voluntary Bodies,Anchor Housing,895.5, 27-Feb-2015
80,Revenue,CCHD,Non Priority Bond Scheme,Fees & Charges Income - General,Anthony Whitehead,619.04, 27-Feb-2015
81,Revenue,CCHD,Alexandra Way,Prop.Serv. General Repairs,Apre Surfacing Limited,1266, 09-Feb-2015
82,Revenue,CCHD,Bed Purchasing - North,Permanent Residential,Ark Care Homes Ltd,10314.64, 17-Feb-2015
83,Revenue,CCHD,S117 Placements PCT,Permanent Residential,Ash View House,6977.4, 17-Feb-2015
84,Revenue,CCHD,18-25 Year Olds,Permanent Residential,Ash View House,6158.4, 17-Feb-2015
85,Revenue,CCHD,Section 117 Placements MH Younger,Permanent Residential,Ash View House,6495.6, 17-Feb-2015
86,Revenue,CCHD,Bed purchasing - Elderly S117 - South,Permanent Residential,Ash View House,6180, 17-Feb-2015
87,Revenue,CCHD,Bed Purchasing - South,Permanent Residential,Ashbourne House,1122.44, 17-Feb-2015
88,Revenue,CCHD,Home Care - Elderly - South,Other Small Contracts,Ashley Commercial Finance Ltd,504.19, 16-Feb-2015
89,Revenue,CCHD,Home Care - Elderly - North,Other Small Contracts,Ashley Commercial Finance Ltd,4356.76, 16-Feb-2015
90,Revenue,CCHD,Home Care - Elderly - South,Other Small Contracts,Ashley Commercial Finance Ltd,504.19, 16-Feb-2015
91,Revenue,CCHD,Home Care - Elderly - North,Other Small Contracts,Ashley Commercial Finance Ltd,4416.77, 16-Feb-2015
92,Revenue,CCHD,Home Care - Elderly - South,Other Small Contracts,Ashley Commercial Finance Ltd,488.31, 16-Feb-2015
93,Revenue,CCHD,Home Care - Elderly - North,Other Small Contracts,Ashley Commercial Finance Ltd,4424.82, 16-Feb-2015
94,Revenue,CCHD,Home Care - Elderly - South,Other Small Contracts,Ashley Commercial Finance Ltd,512.13, 24-Feb-2015
95,Revenue,CCHD,Home Care - Elderly - North,Other Small Contracts,Ashley Commercial Finance Ltd,4821.71, 24-Feb-2015
96,Revenue,CCHD,Bed and Breakfast,Bed & Breakfast,Ashley Guest Houses Limited,1050, 04-Feb-2015
97,Revenue,CCHD,Bed and Breakfast,Bed & Breakfast,Ashley Guest Houses Limited,510, 04-Feb-2015
98,Revenue,CCHD,Bed and Breakfast,Bed & Breakfast,Ashley Guest Houses Limited,870, 17-Feb-2015
99,Revenue,CCHD,Bed and Breakfast,Bed & Breakfast,Ashley Guest Houses Limited,750, 25-Feb-2015
100,Revenue,CCHD,DAT Treatment,Electricity,Ashville Asset Management Limited,769.59, 09-Feb-2015
101,Revenue,CCHD,Bed Purchasing - North,Permanent Residential,Aspects 2 Limited,6358.44, 17-Feb-2015
102,Revenue,CCHD,Supporting People Programme,Grants to Voluntary Bodies,Aspects and Milestones Trust,3219.58, 27-Feb-2015
103,Revenue,CCHD,Supporting People Programme,Grants to Voluntary Bodies,Aspects and Milestones Trust,1614.17, 27-Feb-2015
104,Revenue,CCHD,Supporting People Programme,Grants to Voluntary Bodies,Aspects and Milestones Trust,2450.08, 27-Feb-2015
105,Revenue,CCHD,MH Purchasing - Younger,Independent Living,Aspirations Support Bristol Limited,52710, 09-Feb-2015
106,Revenue,CCHD,Purchase of Non-Res Care - South,Day Care / Social Activities,Aspirations Support Bristol Limited,3124.35, 06-Feb-2015
107,Revenue,CCHD,Supported Living - South,Private & Voluntary Home Care,Aspirations Support Bristol Limited,564.2, 06-Feb-2015
108,Revenue,CCHD,Bed Purchasing - South,Permanent Residential,Autism Specialised Care Homes,5611.16, 17-Feb-2015
109,Revenue,CCHD,Purchase of Non-Res Care - North,Day Care / Social Activities,Avon Autistic Foundation Limited,3378.04, 11-Feb-2015
110,Revenue,CCHD,Purchase of Non-Res Care - North,Day Care / Social Activities,Avon Autistic Foundation Limited,2301.6, 11-Feb-2015
111,Revenue,CCHD,Sexual Health,Other Supplies & Services,Avon Local Pharmaceutical Committee,3960, 19-Feb-2015
112,Revenue,CCHD,S75 CCG Interim Beds,Permanent Nursing,Avon Lodge Care Centre,10200, 12-Feb-2015
113,Revenue,CCHD,Senior Management,Agency Staff (Admin/Support Staff) Pay,Baltimore Consulting Group,3528, 06-Feb-2015
114,Revenue,CCHD,Senior Management,Agency Staff (Admin/Support Staff) Pay,Baltimore Consulting Group,2352, 12-Feb-2015
115,Revenue,CCHD,Senior Management,Agency Staff (Admin/Support Staff) Pay,Baltimore Consulting Group,2352, 19-Feb-2015
116,Revenue,CCHD,Senior Management,Agency Staff (Admin/Support Staff) Pay,Baltimore Consulting Group,2352, 27-Feb-2015
117,Revenue,CCHD,Children & Young People�s Health,Other Supplies & Services,Barnardos,5000, 25-Feb-2015
118,Revenue,CCHD,Bed Purchasing - Southmead Hospital,Permanent Nursing,Bayview Nursing & Residential Home,1482.4, 17-Feb-2015
119,Revenue,CCHD,South Glos Users in South Glos Homes,Permanent Nursing,Beaufort Grange Care Home,887.12, 17-Feb-2015
120,Revenue,CCHD,Bed Purchasing - Elderly S117- North,Permanent Nursing,Beaufort Grange Care Home,4156.44, 17-Feb-2015
121,Revenue,CCHD,South Glos Users in South Glos Homes,Permanent Nursing,Beaufort Grange Care Home,1330.68, 17-Feb-2015
122,Revenue,CCHD,South Glos Users in South Glos Homes,Permanent Nursing,Beaufort Grange Care Home,855.44, 17-Feb-2015
123,Revenue,CCHD,Bed Purchasing - North,Respite Emergency - Nursing,Beaufort Grange Care Home,742.22, 17-Feb-2015
124,Revenue,CCHD,South Glos Users in South Glos Homes,Permanent Nursing,Beaufort Grange Care Home,2043.54, 17-Feb-2015
125,Revenue,CCHD,South Glos Users in South Glos Homes,Permanent Nursing,Beaufort Grange Care Home,2392.06, 17-Feb-2015
126,Revenue,CCHD,Bed Purchasing - North,Permanent Nursing,Beaufort Grange Care Home,953.2, 17-Feb-2015
127,Revenue,CCHD,South Glos Users in South Glos Homes,Permanent Nursing,Beaufort Grange Care Home,887.12, 17-Feb-2015
128,Revenue,CCHD,Bed Purchasing - North,Permanent Residential,Beaufort House,1900.32, 17-Feb-2015
129,Revenue,CCHD,Bed Purchasing - North,Permanent Residential,Beaufort House,1674.72, 17-Feb-2015
130,Revenue,CCHD,Bed Purchasing - North,Permanent Residential,Beaufort House,1824.2, 17-Feb-2015
131,Revenue,CCHD,Bed Purchasing - North,Permanent Residential,Beaufort House,1390.4, 17-Feb-2015
132,Revenue,CCHD,Bed Purchasing - South,Permanent Residential,Beaufort House,1434.24, 17-Feb-2015
133,Revenue,CCHD,Bed Purchasing - North,Permanent Residential,Beaufort House,1800.08, 17-Feb-2015
134,Revenue,CCHD,Bed Purchasing - Southmead Hospital,Permanent Residential,Beaufort House,2320, 17-Feb-2015
135,Revenue,CCHD,Bed Purchasing - Southmead Hospital,Permanent Residential,Beaufort House,2320, 17-Feb-2015
136,Revenue,CCHD,Bed Purchasing - North,Permanent Residential,Beaufort House,1357.16, 17-Feb-2015
137,Revenue,CCHD,Bed Purchasing - North,Permanent Residential,Beaufort House,1860.64, 17-Feb-2015
138,Revenue,CCHD,Bed Purchasing - North,Permanent Residential,Beaufort House,1755.08, 17-Feb-2015
139,Revenue,CCHD,Bed Purchasing - North,Permanent Residential,Beaufort House,1706.44, 17-Feb-2015
140,Revenue,CCHD,Bed Purchasing - South,Permanent Residential,Bedrock Lodge,3151.8, 17-Feb-2015
141,Revenue,CCHD,Bed Purchasing - South,Permanent Residential,Bedrock Lodge,2949.44, 17-Feb-2015
142,Revenue,CCHD,Section 117 Placements MH Younger,Permanent Residential,Bedrock Lodge,1864.88, 17-Feb-2015
143,Revenue,CCHD,Bed Purchasing - North,Permanent Nursing,Beech House,2378.48, 17-Feb-2015
144,Revenue,CCHD,Bed Purchasing - South,Permanent Residential,Beech House,1260.2, 17-Feb-2015
145,Revenue,CCHD,Bed Purchasing - North,Permanent Nursing,Beech House,1320.2, 17-Feb-2015
146,Revenue,CCHD,Bed Purchasing - North,Permanent Nursing,Beech House,1653.8, 17-Feb-2015
147,Revenue,CCHD,Bed Purchasing - North,Permanent Nursing,Beech House,4083.54, 17-Feb-2015
148,Revenue,CCHD,Bed Purchasing - North,Permanent Residential,Beech House,1432.2, 17-Feb-2015
149,Revenue,CCHD,Bed Purchasing - North,Permanent Nursing,Beech House,2552.64, 17-Feb-2015
150,Revenue,CCHD,Bed Purchasing - North,Permanent Residential,Beech House,2414.4, 17-Feb-2015
151,Revenue,CCHD,Bed Purchasing - North,Permanent Nursing,Beech House,879.56, 17-Feb-2015
152,Revenue,CCHD,Bed Purchasing - North,Permanent Residential,Beech House,1911.24, 17-Feb-2015
153,Revenue,CCHD,Bed Purchasing - North,Permanent Residential,Beech House,1394.08, 17-Feb-2015
154,Revenue,CCHD,Bed Purchasing - North,Permanent Nursing,Blossom Field,2215.93, 17-Feb-2015
155,Revenue,CCHD,Bed Purchasing - North,Permanent Nursing,Blossom Field,1824.88, 17-Feb-2015
156,Revenue,CCHD,Bed Purchasing - North,Permanent Nursing,Blossom Field,12679.31, 17-Feb-2015
157,Revenue,CCHD,Bed Purchasing - Elderly S117- North,Permanent Nursing,Blossom Field,1992, 17-Feb-2015
158,Revenue,CCHD,Bed Purchasing - North,Permanent Nursing,Blossom Field,1369.96, 17-Feb-2015
159,Revenue,CCHD,Bed Purchasing - North,Permanent Nursing,Blossom Field,1935.64, 17-Feb-2015
160,Revenue,CCHD,South Glos Users in South Glos Homes,Permanent Nursing,Blossom Field,1932.65, 17-Feb-2015
161,Revenue,CCHD,Bed Purchasing - North,Permanent Nursing,Blossom Field,2675.16, 17-Feb-2015
162,Revenue,CCHD,Bed Purchasing - North,Permanent Nursing,Blossom Field,2293, 17-Feb-2015
163,Revenue,CCHD,South Glos Users in South Glos Homes,Permanent Nursing,Blossom Field,823.75, 17-Feb-2015
164,Revenue,CCHD,Bed Purchasing - North,Permanent Nursing,Blossom Field,2337, 17-Feb-2015
165,Revenue,CCHD,Bed Purchasing - North,Permanent Nursing,Blossom Field,2697.08, 17-Feb-2015
166,Revenue,CCHD,Bed Purchasing - North,Permanent Nursing,Blossom Field,1425.12, 17-Feb-2015
167,Revenue,CCHD,Bed Purchasing - South,Permanent Nursing,Blossom Field,1909.84, 17-Feb-2015
168,Revenue,CCHD,Bed Purchasing - Southmead Hospital,Permanent Nursing,Blossom Field,2545.44, 17-Feb-2015
169,Revenue,CCHD,Bed Purchasing - North,Permanent Nursing,Blossom Fields,2588.96, 17-Feb-2015
170,Revenue,CCHD,Bed Purchasing - Southmead Hospital,Permanent Nursing,Blossom Fields,2093.16, 17-Feb-2015
171,Revenue,CCHD,Bed Purchasing - North,Permanent Nursing,Blossom Fields,2588.96, 17-Feb-2015
172,Revenue,CCHD,South Glos Users in South Glos Homes,Permanent Nursing,Blossom Fields,1188.11, 17-Feb-2015
173,Revenue,CCHD,Training - Adult Services,Training Expenses,Bob Dawson,675, 16-Feb-2015
174,Revenue,CCHD,18-25 Year Olds,Permanent Residential,Bradbury House,8760.16, 17-Feb-2015
175,Revenue,CCHD,Bed Purchasing - North,Permanent Residential,Bradley House,1533.8, 17-Feb-2015
176,Revenue,CCHD,Home Care - Elderly - North,Other Small Contracts,Bradley House Home Care Services,674.66, 13-Feb-2015
177,Revenue,CCHD,Day Care - North,Day Care / Social Activities,Bradley House Home Care Services,102.48, 13-Feb-2015
178,Revenue,CCHD,Home Care - Elderly - North,Other Small Contracts,Bradley House Home Care Services,687.47, 19-Feb-2015
179,Revenue,CCHD,Day Care - North,Day Care / Social Activities,Bradley House Home Care Services,102.48, 19-Feb-2015
180,Revenue,CCHD,Home Care - Elderly - North,Other Small Contracts,Bradley House Home Care Services,687.47, 26-Feb-2015
181,Revenue,CCHD,Day Care - North,Day Care / Social Activities,Bradley House Home Care Services,102.48, 26-Feb-2015
182,Revenue,CCHD,Sexual Health,Other Small Contracts,Bradley Stoke Surgery,2312.5, 12-Feb-2015
183,Revenue,CCHD,Alexandra Way,"Provisions (Food, etc)",Brake Bros,596.41, 16-Feb-2015
184,Revenue,CCHD,Woodleaze,"Provisions (Food, etc)",Brake Bros,599.14, 19-Feb-2015
185,Revenue,CCHD,Alexandra Way,"Provisions (Food, etc)",Brake Bros,579.03, 27-Feb-2015
186,Revenue,CCHD,Bed Purchasing - South,Permanent Nursing,Brandon Trust,5036.84, 17-Feb-2015
187,Revenue,CCHD,Bed Purchasing - S28A - Over 65- North,Permanent Residential,Brandon Trust,3097.08, 17-Feb-2015
188,Revenue,CCHD,Bed Purchasing - South,Permanent Residential,Brandon Trust,10268.44, 17-Feb-2015
189,Revenue,CCHD,Bed Purchasing - South,Permanent Residential,Brandon Trust,4036.12, 17-Feb-2015
190,Revenue,CCHD,Bed Purchasing - South,Permanent Residential,Brandon Trust,3459.92, 17-Feb-2015
191,Revenue,CCHD,Bed Purchasing - LD S28A- Over 65- South,Permanent Nursing,Brandon Trust,4860.44, 17-Feb-2015
192,Revenue,CCHD,Bed Purchasing - South,Permanent Nursing,Brandon Trust,5036.84, 17-Feb-2015
193,Revenue,CCHD,Bed purchasing - S28A Under 65 - South,Permanent Nursing,Brandon Trust,5359.12, 17-Feb-2015
194,Revenue,CCHD,Bed purchasing - S28A Under 65 - South,Permanent Residential,Brandon Trust,4901.16, 17-Feb-2015
195,Revenue,CCHD,Bed Purchasing - LD S28A- Over 65- South,Permanent Nursing,Brandon Trust,5182.72, 17-Feb-2015
196,Revenue,CCHD,Bed Purchasing - LD S28A- Over 65- South,Permanent Nursing,Brandon Trust,4849.76, 17-Feb-2015
197,Revenue,CCHD,Bed Purchasing - South,Permanent Residential,Brandon Trust,3273.48, 17-Feb-2015
198,Revenue,CCHD,Bed purchasing - S28A Under 65 - South,Permanent Residential,Brandon Trust,5202.76, 17-Feb-2015
199,Revenue,CCHD,Bed purchasing - S28A Under 65 - South,Permanent Residential,Brandon Trust,5258.44, 17-Feb-2015
200,Revenue,CCHD,Bed purchasing - S28A Under 65 - South,Permanent Nursing,Brandon Trust,5399.12, 17-Feb-2015
201,Revenue,CCHD,Bed purchasing - S28A Under 65 - South,Permanent Nursing,Brandon Trust,5359.12, 17-Feb-2015
202,Revenue,CCHD,Bed purchasing -S28A  Under 65 - North,Permanent Nursing,Brandon Trust,4783.16, 17-Feb-2015
203,Revenue,CCHD,Bed purchasing - S28A Under 65 - South,Permanent Residential,Brandon Trust,5258.44, 17-Feb-2015
204,Revenue,CCHD,Bed Purchasing - LD S28A- Over 65- South,Permanent Residential,Brandon Trust,4748.2, 17-Feb-2015
205,Revenue,CCHD,Bed Purchasing - North,Permanent Residential,Bridge House Care Home,1513, 17-Feb-2015
206,Revenue,CCHD,Bed Purchasing - North,Permanent Residential,Bridge House Care Home,1167.32, 17-Feb-2015
207,Revenue,CCHD,Bed Purchasing - South,Permanent Residential,Bridge House Care Home,1444.6, 17-Feb-2015
208,Revenue,CCHD,Bed Purchasing - South,Permanent Residential,Brightbow,2095.28, 17-Feb-2015
209,Revenue,CCHD,MH Purchasing - Younger,Permanent Residential,Brightbow,1493.96, 17-Feb-2015
210,Revenue,CCHD,Day Care - North,Day Care / Social Activities,Bristol & Avon Chinese Womens Group,234.96, 03-Feb-2015
211,Revenue,CCHD,Day Care - North,Day Care / Social Activities,Bristol & Avon Chinese Womens Group,234.96, 03-Feb-2015
212,Revenue,CCHD,Day Care - North,Day Care / Social Activities,Bristol & Avon Chinese Womens Group,234.96, 03-Feb-2015
213,Revenue,CCHD,Day Care - North,Day Care / Social Activities,Bristol & Avon Chinese Womens Group,293.7, 03-Feb-2015
214,Revenue,CCHD,Day Care - North,Day Care / Social Activities,Bristol & Avon Chinese Womens Group,293.7, 03-Feb-2015
215,Revenue,CCHD,Day Care - North,Day Care / Social Activities,Bristol & Avon Chinese Womens Group,176.22, 03-Feb-2015
216,Revenue,CCHD,Leadership and Business Support,Other Small Contracts,Bristol City Council,3500, 19-Feb-2015
217,Revenue,CCHD,Leadership and Business Support,Other Small Contracts,Bristol City Council,8393.75, 19-Feb-2015
218,Revenue,CCHD,Supported Living - North,Private & Voluntary Home Care,Bristol Houses UK Limited,1056.6, 13-Feb-2015
219,Revenue,CCHD,Supported Living - North,Private & Voluntary Home Care,Bristol Houses UK Limited,605.6, 13-Feb-2015
220,Revenue,CCHD,Bed and Breakfast,Bed & Breakfast,Bristol Housing & Support Limited,2240, 02-Feb-2015
221,Revenue,CCHD,Bed and Breakfast,Bed & Breakfast,Bristol Housing & Support Limited,2240, 09-Feb-2015
222,Revenue,CCHD,Bed and Breakfast,Bed & Breakfast,Bristol Housing & Support Limited,2730, 16-Feb-2015
223,Revenue,CCHD,Supporting People Programme,Grants to Voluntary Bodies,Bristol Missing Link,1990.92, 27-Feb-2015
224,Revenue,CCHD,Supporting People Programme,Grants to Voluntary Bodies,Bristol Missing Link,1449.17, 27-Feb-2015
225,Revenue,CCHD,Home Care - Elderly - North,Day Care / Social Activities,Britannia House,914.88, 17-Feb-2015
226,Revenue,CCHD,Home Care - Elderly - South,Day Care / Social Activities,Britannia House,914.88, 17-Feb-2015
227,Revenue,CCHD,Home Care - Elderly - North,Day Care / Social Activities,Britannia House,914.88, 17-Feb-2015
228,Revenue,CCHD,Home Care - Elderly - South,Day Care / Social Activities,Britannia House,686.16, 17-Feb-2015
229,Revenue,CCHD,Home Care - Elderly - North,Day Care / Social Activities,Britannia House,914.88, 17-Feb-2015
230,Revenue,CCHD,Home Care - Elderly - South,Day Care / Social Activities,Britannia House,1143.6, 17-Feb-2015
231,Revenue,CCHD,Home Care - Elderly - South,Day Care / Social Activities,Britannia House,686.16, 17-Feb-2015
232,Revenue,CCHD,Home Care - Elderly - South,Day Care / Social Activities,Britannia House,686.16, 17-Feb-2015
233,Revenue,CCHD,Home Care - Elderly - South,Supported Living,Britannia House,686.16, 17-Feb-2015
234,Revenue,CCHD,Supporting People Programme,Grants to Voluntary Bodies,Bromford Housing Group,14050.25, 27-Feb-2015
235,Revenue,CCHD,Bed Purchasing - North,Permanent Nursing,Brunel Care  Saffron Gardens,631.52, 17-Feb-2015
236,Revenue,CCHD,South Glos Users in South Glos Homes,Permanent Nursing,Brunel Care  Saffron Gardens,1932.65, 17-Feb-2015
237,Revenue,CCHD,Bed Purchasing - North,Permanent Nursing,Brunel Care  Saffron Gardens,1839.24, 17-Feb-2015
238,Revenue,CCHD,Bed Purchasing - North,Permanent Nursing,Brunel Care  Saffron Gardens,788.24, 17-Feb-2015
239,Revenue,CCHD,Bed Purchasing - Southmead Hospital,Permanent Nursing,Brunel Care  Saffron Gardens,876.08, 17-Feb-2015
240,Revenue,CCHD,Bed Purchasing - Southmead Hospital,Permanent Nursing,Brunel Care  Saffron Gardens,2052.32, 17-Feb-2015
241,Revenue,CCHD,South Glos Users in South Glos Homes,Permanent Nursing,Brunel Care  Saffron Gardens,982.17, 17-Feb-2015
242,Revenue,CCHD,Bed Purchasing - Southmead Hospital,Permanent Residential,Brunel Care  Saffron Gardens,1270.68, 17-Feb-2015
243,Revenue,CCHD,18-25 Year Olds,Permanent Nursing,Brunel Care  Saffron Gardens,6300, 17-Feb-2015
244,Revenue,CCHD,Bed Purchasing - South,Permanent Nursing,Brunel Care  Saffron Gardens,2072.32, 17-Feb-2015
245,Revenue,CCHD,Bed Purchasing - Southmead Hospital,Permanent Nursing,Brunel Care  Saffron Gardens,1391.72, 17-Feb-2015
246,Revenue,CCHD,Bed Purchasing - South,Permanent Residential,Brunel Care  Saffron Gardens,1296.84, 17-Feb-2015
247,Revenue,CCHD,Home Care - Elderly - North,Private & Voluntary Home Care,Brunelcare,23503, 09-Feb-2015
248,Revenue,CCHD,Home Care - Elderly - North,Private & Voluntary Home Care,Brunelcare,23503, 09-Feb-2015
249,Revenue,CCHD,Home Care - Elderly - North,Private & Voluntary Home Care,Brunelcare,23503, 16-Feb-2015
250,Revenue,CCHD,Home Care - Elderly - North,Private & Voluntary Home Care,Brunelcare,23503, 23-Feb-2015
251,Revenue,CCHD,S75 CCG Interim Beds,Permanent Nursing,Brunelcare,54600, 13-Feb-2015
252,Revenue,CCHD,Bed Purchasing - South,Permanent Nursing,Brunelcare,1938.03, 19-Feb-2015
253,Revenue,CCHD,Bed Purchasing - South,Permanent Nursing,Brunelcare,1982.41, 19-Feb-2015
254,Revenue,CCHD,Bed Purchasing - South,Permanent Nursing,Brunelcare,1616.74, 19-Feb-2015
255,Revenue,CCHD,Bed Purchasing - South,Permanent Nursing,Brunelcare,1978.73, 19-Feb-2015
256,Revenue,CCHD,Bed Purchasing - South,Permanent Nursing,Brunelcare,2036.3, 19-Feb-2015
257,Revenue,CCHD,Bed Purchasing - Southmead Hospital,Permanent Nursing,Brunelcare,1810.13, 19-Feb-2015
258,Revenue,CCHD,Bed Purchasing - South,Permanent Nursing,Brunelcare,2021.02, 19-Feb-2015
259,Revenue,CCHD,Bed Purchasing - North,Permanent Nursing,Brunelcare,591.18, 19-Feb-2015
260,Revenue,CCHD,Bed Purchasing - Elderly S117- North,Permanent Nursing,Brunelcare,2094.14, 19-Feb-2015
261,Revenue,CCHD,Bed Purchasing - Elderly S117- North,Permanent Nursing,Brunelcare,2585.22, 19-Feb-2015
262,Revenue,CCHD,Bed Purchasing - South,Permanent Nursing,Brunelcare,1379.43, 19-Feb-2015
263,Revenue,CCHD,Bed Purchasing - South,Permanent Nursing,Brunelcare,656.87, 19-Feb-2015
264,Revenue,CCHD,Bed Purchasing - Southmead Hospital,Permanent Nursing,Brunelcare,1736.75, 19-Feb-2015
265,Revenue,CCHD,Bed Purchasing - Southmead Hospital,Permanent Nursing,Brunelcare,913.97, 19-Feb-2015
266,Revenue,CCHD,Bed Purchasing - Southmead Hospital,Permanent Nursing,Brunelcare,1693.71, 19-Feb-2015
267,Revenue,CCHD,Bed Purchasing - South,Permanent Nursing,Brunelcare,1319.05, 19-Feb-2015
268,Revenue,CCHD,Bed Purchasing - South,Permanent Nursing,Brunelcare,1517.23, 19-Feb-2015
269,Revenue,CCHD,Bed Purchasing - North,Permanent Nursing,Brunelcare,1965.71, 19-Feb-2015
270,Revenue,CCHD,Bed Purchasing - Southmead Hospital,Permanent Nursing,Brunelcare,1147.93, 19-Feb-2015
271,Revenue,CCHD,Bed Purchasing - South,Permanent Nursing,Brunelcare,2036.3, 19-Feb-2015
272,Revenue,CCHD,Bed Purchasing - Southmead Hospital,Permanent Nursing,Brunelcare,1810.13, 19-Feb-2015
273,Revenue,CCHD,Bed Purchasing - South,Permanent Nursing,Brunelcare,2359.06, 19-Feb-2015
274,Revenue,CCHD,Bed Purchasing - North,Permanent Nursing,Brunelcare,1810.13, 19-Feb-2015
275,Revenue,CCHD,Bed Purchasing - Southmead Hospital,Permanent Nursing,Brunelcare,1810.13, 19-Feb-2015
276,Revenue,CCHD,Bed Purchasing - Southmead Hospital,Permanent Nursing,Brunelcare,1703.14, 19-Feb-2015
277,Revenue,CCHD,Bed Purchasing - Elderly S117- North,Permanent Nursing,Brunelcare,2585.22, 19-Feb-2015
278,Revenue,CCHD,Bed Purchasing - Southmead Hospital,Permanent Nursing,Brunelcare,1477.86, 19-Feb-2015
279,Revenue,CCHD,Bed Purchasing - South,Permanent Nursing,Brunelcare,1810.13, 19-Feb-2015
280,Revenue,CCHD,Bed Purchasing - South,Permanent Nursing,Brunelcare,9109.36, 19-Feb-2015
281,Revenue,CCHD,Bed Purchasing - South,Respite Emergency - Nursing,Brunelcare,1598.07, 19-Feb-2015
282,Revenue,CCHD,Bed Purchasing - North,Respite Planned - Nursing,Brunelcare,596.5, 19-Feb-2015
283,Revenue,CCHD,Bed Purchasing - South,Permanent Nursing,Brunelcare,1938.03, 25-Feb-2015
284,Revenue,CCHD,Bed Purchasing - South,Permanent Nursing,Brunelcare,1982.41, 25-Feb-2015
285,Revenue,CCHD,Bed Purchasing - South,Permanent Nursing,Brunelcare,1616.74, 25-Feb-2015
286,Revenue,CCHD,Bed Purchasing - South,Permanent Nursing,Brunelcare,1978.73, 25-Feb-2015
287,Revenue,CCHD,Bed Purchasing - South,Permanent Nursing,Brunelcare,2036.3, 25-Feb-2015
288,Revenue,CCHD,Bed Purchasing - Southmead Hospital,Permanent Nursing,Brunelcare,1810.13, 25-Feb-2015
289,Revenue,CCHD,Bed Purchasing - South,Permanent Nursing,Brunelcare,2021.02, 25-Feb-2015
290,Revenue,CCHD,Bed Purchasing - North,Permanent Nursing,Brunelcare,2036.3, 25-Feb-2015
291,Revenue,CCHD,Bed Purchasing - Elderly S117- North,Permanent Nursing,Brunelcare,2094.14, 25-Feb-2015
292,Revenue,CCHD,Bed Purchasing - Elderly S117- North,Permanent Nursing,Brunelcare,2585.22, 25-Feb-2015
293,Revenue,CCHD,Bed Purchasing - South,Permanent Nursing,Brunelcare,1540.39, 25-Feb-2015
294,Revenue,CCHD,Bed Purchasing - Southmead Hospital,Permanent Nursing,Brunelcare,1736.75, 25-Feb-2015
295,Revenue,CCHD,Bed Purchasing - Southmead Hospital,Permanent Nursing,Brunelcare,913.97, 25-Feb-2015
296,Revenue,CCHD,Bed Purchasing - Southmead Hospital,Permanent Nursing,Brunelcare,1693.71, 25-Feb-2015
297,Revenue,CCHD,Bed Purchasing - South,Permanent Nursing,Brunelcare,1319.05, 25-Feb-2015
298,Revenue,CCHD,Bed Purchasing - South,Permanent Nursing,Brunelcare,1517.23, 25-Feb-2015
299,Revenue,CCHD,Bed Purchasing - North,Permanent Nursing,Brunelcare,1965.71, 25-Feb-2015
300,Revenue,CCHD,Bed Purchasing - Southmead Hospital,Permanent Nursing,Brunelcare,1147.93, 25-Feb-2015
301,Revenue,CCHD,Bed Purchasing - South,Permanent Nursing,Brunelcare,2036.3, 25-Feb-2015
302,Revenue,CCHD,Bed Purchasing - Southmead Hospital,Permanent Nursing,Brunelcare,817.48, 25-Feb-2015
303,Revenue,CCHD,Bed Purchasing - Southmead Hospital,Permanent Nursing,Brunelcare,684.89, 25-Feb-2015
304,Revenue,CCHD,Bed Purchasing - North,Permanent Nursing,Brunelcare,525.5, 25-Feb-2015
305,Revenue,CCHD,Bed Purchasing - South,Permanent Nursing,Brunelcare,2359.06, 25-Feb-2015
306,Revenue,CCHD,Bed Purchasing - North,Permanent Nursing,Brunelcare,1810.13, 25-Feb-2015
307,Revenue,CCHD,Bed Purchasing - Southmead Hospital,Permanent Nursing,Brunelcare,1810.13, 25-Feb-2015
308,Revenue,CCHD,Bed Purchasing - Southmead Hospital,Permanent Nursing,Brunelcare,1703.14, 25-Feb-2015
309,Revenue,CCHD,Bed Purchasing - Elderly S117- North,Permanent Nursing,Brunelcare,2585.22, 25-Feb-2015
310,Revenue,CCHD,Bed Purchasing - Southmead Hospital,Permanent Nursing,Brunelcare,1477.86, 25-Feb-2015
311,Revenue,CCHD,Bed Purchasing - South,Permanent Nursing,Brunelcare,1810.13, 25-Feb-2015
312,Revenue,CCHD,Bed Purchasing - South,Respite Planned - Nursing,Brunelcare,2054.66, 25-Feb-2015
313,Revenue,CCHD,S75 CCG Interim Beds,Permanent Nursing,Brunelcare,15200, 17-Feb-2015
314,Revenue,CCHD,Home Care - Elderly - South,Other Small Contracts,Brunelcare,3304.8, 19-Feb-2015
315,Revenue,CCHD,Home Care - Elderly - North,Other Small Contracts,Brunelcare,3015.12, 19-Feb-2015
316,Revenue,CCHD,Day Care - South,Day Care / Social Activities,Brunelcare,24.48, 19-Feb-2015
317,Revenue,CCHD,Home Care - Elderly - South,Other Small Contracts,Brunelcare,3137.52, 19-Feb-2015
318,Revenue,CCHD,Home Care - Elderly - North,Other Small Contracts,Brunelcare,3047.76, 19-Feb-2015
319,Revenue,CCHD,Day Care - South,Day Care / Social Activities,Brunelcare,24.48, 19-Feb-2015
320,Revenue,CCHD,Home Care - Elderly - South,Other Small Contracts,Brunelcare,3137.52, 19-Feb-2015
321,Revenue,CCHD,Home Care - Elderly - North,Other Small Contracts,Brunelcare,2945.76, 19-Feb-2015
322,Revenue,CCHD,Day Care - South,Day Care / Social Activities,Brunelcare,28.56, 19-Feb-2015
323,Revenue,CCHD,Home Care - Elderly - North,Private & Voluntary Home Care,Brunelcare,67461.62, 09-Feb-2015
324,Revenue,CCHD,Home Care - Elderly - North,Private & Voluntary Home Care,Brunelcare,71998.05, 25-Feb-2015
325,Revenue,CCHD,Woodleaze,Agency Staff (Admin/Support Staff) Pay,BS Project Services Limited,637.5, 11-Feb-2015
326,Revenue,CCHD,Woodleaze,Agency Staff (Admin/Support Staff) Pay,BS Project Services Limited,435.16, 11-Feb-2015
327,Revenue,CCHD,Woodleaze,Agency Staff (Admin/Support Staff) Pay,BS Project Services Limited,516.01, 19-Feb-2015
328,Revenue,CCHD,Information Systems - Software,Computer Equipment - Purchase,BT Global Services Solutions,984.77, 25-Feb-2015
329,Revenue,CCHD,Bed Purchasing - Southmead Hospital,Permanent Nursing,Bupa Care Services  Bridge House,1902.4, 17-Feb-2015
330,Revenue,CCHD,Bed Purchasing - Southmead Hospital,Permanent Nursing,Bupa Care Services  Bridge House,1674.48, 17-Feb-2015
331,Revenue,CCHD,Bed Purchasing - North,Permanent Nursing,Bupa Care Services  Bridge House,5938.28, 17-Feb-2015
332,Revenue,CCHD,South Glos Users in all other LA Homes,Permanent Nursing,Bupa Care Services  Bridge House,610.44, 17-Feb-2015
333,Revenue,CCHD,Bed Purchasing - North,Permanent Residential,Bupa Care Services  Bridge House,1987.24, 17-Feb-2015
334,Revenue,CCHD,Supported Living - North,Private & Voluntary Home Care,Camphill Communities Thornbury Limited,998.4, 04-Feb-2015
335,Revenue,CCHD,Supported Living - North,Private & Voluntary Home Care,Camphill Communities Thornbury Limited,599.04, 04-Feb-2015
336,Revenue,CCHD,Supported Living - North,Private & Voluntary Home Care,Camphill Communities Thornbury Limited,599.04, 04-Feb-2015
337,Revenue,CCHD,Supported Living - North,Private & Voluntary Home Care,Camphill Communities Thornbury Limited,773.76, 04-Feb-2015
338,Revenue,CCHD,Supported Living - North,Private & Voluntary Home Care,Camphill Communities Thornbury Limited,1223.04, 04-Feb-2015
339,Revenue,CCHD,Supported Living - North,Private & Voluntary Home Care,Camphill Communities Thornbury Limited,511.68, 04-Feb-2015
340,Revenue,CCHD,Supported Living - North,Private & Voluntary Home Care,Camphill Communities Thornbury Limited,698.88, 04-Feb-2015
341,Revenue,CCHD,Supported Living - North,Private & Voluntary Home Care,Camphill Communities Thornbury Limited,549.12, 04-Feb-2015
342,Revenue,CCHD,Supported Living - North,Private & Voluntary Home Care,Camphill Communities Thornbury Limited,1148.16, 04-Feb-2015
343,Revenue,CCHD,Bed Purchasing - Elderly S117- North,Permanent Residential,Canjayor,2334.04, 17-Feb-2015
344,Revenue,CCHD,Home Care - Elderly - South,Other Small Contracts,Care 1st Homecare,3192, 06-Feb-2015
345,Revenue,CCHD,Home Care - Elderly - North,Other Small Contracts,Care 1st Homecare,3717, 06-Feb-2015
346,Revenue,CCHD,Home care - Elderly MH - North,Other Small Contracts,Care 1st Homecare,16.8, 06-Feb-2015
347,Revenue,CCHD,Home Care - Elderly - South,Other Small Contracts,Care 1st Homecare,3355.8, 20-Feb-2015
348,Revenue,CCHD,Home Care - Elderly - North,Other Small Contracts,Care 1st Homecare,3700.2, 20-Feb-2015
349,Revenue,CCHD,Home care - Elderly MH - North,Other Small Contracts,Care 1st Homecare,16.8, 20-Feb-2015
350,Revenue,CCHD,Home Care - Elderly - South,Other Small Contracts,Care 1st Homecare,3217.2, 20-Feb-2015
351,Revenue,CCHD,Home Care - Elderly - North,Other Small Contracts,Care 1st Homecare,3389.4, 20-Feb-2015
352,Revenue,CCHD,Home care - Elderly MH - North,Other Small Contracts,Care 1st Homecare,16.8, 20-Feb-2015
353,Revenue,CCHD,Bed Purchasing - Elderly S117- North,Permanent Residential,Care Community Ltd,3004.54, 17-Feb-2015
354,Revenue,CCHD,Purchase of Non-Res Care - South,Day Care / Social Activities,Care Futures,2203.54, 13-Feb-2015
355,Revenue,CCHD,Supported Living - North,Private & Voluntary Home Care,Care Horizons Limited,5902.31, 26-Feb-2015
356,Revenue,CCHD,Purchase of Non-Res Care - North,Day Care / Social Activities,Care Horizons Limited,1232.13, 19-Feb-2015
357,Revenue,CCHD,Purchase of Non-Res Care - North,Day Care / Social Activities,Care Horizons Limited,1652.52, 19-Feb-2015
358,Revenue,CCHD,Supported Living - South,Private & Voluntary Home Care,Care Horizons Limited,1721.55, 24-Feb-2015
359,Revenue,CCHD,Supported Living - North,Private & Voluntary Home Care,Care Horizons Limited,5453.31, 26-Feb-2015
360,Revenue,CCHD,Electronic Home Care Monitoring,Other Supplies & Services,Care Monitoring 2000 Limited,9546.01, 13-Feb-2015
361,Revenue,CCHD,Electronic Home Care Monitoring,Other Supplies & Services,Care Monitoring 2000 Limited,2762, 05-Feb-2015
362,Revenue,CCHD,Electronic Home Care Monitoring,Other Supplies & Services,Care Monitoring 2000 Limited,9841.91, 09-Feb-2015
363,Revenue,CCHD,Alexandra Way,Other Supplies & Services,Care Quality Commission,5280, 11-Feb-2015
364,Revenue,CCHD,Woodleaze,Other Supplies & Services,Care Quality Commission,4060, 11-Feb-2015
365,Revenue,CCHD,Shared Lives,Other Supplies & Services,Care Quality Commission,2030, 11-Feb-2015
366,Revenue,CCHD,Home Care - Elderly - South,Other Small Contracts,Care UK,5111.68, 06-Feb-2015
367,Revenue,CCHD,Home Care - Elderly - North,Day Care / Social Activities,Care UK,129.36, 06-Feb-2015
368,Revenue,CCHD,Home Care - Elderly - North,Other Small Contracts,Care UK,1250.48, 06-Feb-2015
369,Revenue,CCHD,Day Care - North,Day Care / Social Activities,Care UK,266.56, 06-Feb-2015
370,Revenue,CCHD,Home care - Elderly MH - North,Other Small Contracts,Care UK,501.76, 06-Feb-2015
371,Revenue,CCHD,Elderly MH Day Care North,Day Care / Social Activities,Care UK,137.2, 06-Feb-2015
372,Revenue,CCHD,Home Care - Elderly - South,Other Small Contracts,Care UK,4923.52, 19-Feb-2015
373,Revenue,CCHD,Home Care - Elderly - North,Other Small Contracts,Care UK,1340.64, 19-Feb-2015
374,Revenue,CCHD,Day Care - North,Day Care / Social Activities,Care UK,250.88, 19-Feb-2015
375,Revenue,CCHD,Home care - Elderly MH - North,Other Small Contracts,Care UK,513.52, 19-Feb-2015
376,Revenue,CCHD,Elderly MH Day Care North,Day Care / Social Activities,Care UK,141.12, 19-Feb-2015
377,Revenue,CCHD,Home Care - Elderly - South,Other Small Contracts,Care UK,4633.44, 25-Feb-2015
378,Revenue,CCHD,Home Care - Elderly - North,Other Small Contracts,Care UK,1387.68, 25-Feb-2015
379,Revenue,CCHD,Day Care - North,Day Care / Social Activities,Care UK,250.88, 25-Feb-2015
380,Revenue,CCHD,Home care - Elderly MH - North,Other Small Contracts,Care UK,525.28, 25-Feb-2015
381,Revenue,CCHD,Elderly MH Day Care North,Day Care / Social Activities,Care UK,141.12, 25-Feb-2015
382,Revenue,CCHD,Home Care - Elderly - South,Other Small Contracts,Care UK,4257.12, 25-Feb-2015
383,Revenue,CCHD,Home Care - Elderly - North,Other Small Contracts,Care UK,1379.84, 25-Feb-2015
384,Revenue,CCHD,Day Care - North,Day Care / Social Activities,Care UK,250.88, 25-Feb-2015
385,Revenue,CCHD,Home care - Elderly MH - North,Other Small Contracts,Care UK,529.2, 25-Feb-2015
386,Revenue,CCHD,Elderly MH Day Care North,Day Care / Social Activities,Care UK,145.04, 25-Feb-2015
387,Revenue,CCHD,Home Care - Elderly - South,Other Small Contracts,Carers R Us (Bristol) Limited,434.91, 13-Feb-2015
388,Revenue,CCHD,Home Care - Elderly - North,Other Small Contracts,Carers R Us (Bristol) Limited,191.52, 13-Feb-2015
389,Revenue,CCHD,Home Care - Elderly - South,Other Small Contracts,Carers R Us (Bristol) Limited,434.91, 13-Feb-2015
390,Revenue,CCHD,Home Care - Elderly - North,Other Small Contracts,Carers R Us (Bristol) Limited,183.54, 13-Feb-2015
391,Revenue,CCHD,Home Care - Elderly - South,Other Small Contracts,Carers R Us (Bristol) Limited,422.94, 24-Feb-2015
392,Revenue,CCHD,Home Care - Elderly - North,Other Small Contracts,Carers R Us (Bristol) Limited,183.54, 24-Feb-2015
393,Revenue,CCHD,Elderly MH Day Care South,Day Care / Social Activities,Caring Home Healthcare Group Limited,600, 24-Feb-2015
394,Revenue,CCHD,Social Lettings Agency,Fees - General,Individual,10.1, 27-Feb-2015
395,Revenue,CCHD,Social Lettings Agency,Fees & Charges Income - General,Individual,570.66, 27-Feb-2015
396,Revenue,CCHD,Tenancy Start Up Scheme,Other Supplies & Services,Individual,1615.38, 19-Feb-2015
397,Revenue,CCHD,Sexual Health,Other Supplies & Services,Central & North West London NHS Foundation Trust,825.55, 20-Feb-2015
398,Revenue,CCHD,Bed Purchasing - North,Permanent Residential,Charlton House,1071.28, 17-Feb-2015
399,Revenue,CCHD,Training - Adult Services,Training Expenses,Chartered Management Institute,756, 13-Feb-2015
400,Revenue,CCHD,Home Care - Elderly - South,Other Small Contracts,Cherish Able Care Limited,5729.58, 05-Feb-2015
401,Revenue,CCHD,Home Care - Elderly - North,Other Small Contracts,Cherish Able Care Limited,849.49, 05-Feb-2015
402,Revenue,CCHD,Home Care - Elderly - South,Other Small Contracts,Cherish Able Care Limited,5521.08, 11-Feb-2015
403,Revenue,CCHD,Home Care - Elderly - North,Other Small Contracts,Cherish Able Care Limited,849.49, 11-Feb-2015
404,Revenue,CCHD,Home Care - Elderly - South,Other Small Contracts,Cherish Able Care Limited,5633.67, 17-Feb-2015
405,Revenue,CCHD,Home Care - Elderly - North,Other Small Contracts,Cherish Able Care Limited,849.49, 17-Feb-2015
406,Revenue,CCHD,Home Care - Elderly - South,Other Small Contracts,Cherish Able Care Limited,5596.14, 26-Feb-2015
407,Revenue,CCHD,Home Care - Elderly - North,Other Small Contracts,Cherish Able Care Limited,849.49, 26-Feb-2015
408,Revenue,CCHD,Supported Living - South,Private & Voluntary Home Care,Cherry Orchards,2018.5, 09-Feb-2015
409,Revenue,CCHD,Home Care - Elderly - South,Supported Living,Cherry Orchards,5276.43, 17-Feb-2015
410,Revenue,CCHD,Home Care - Elderly - South,Supported Living,Cherry Orchards,4704.29, 17-Feb-2015
411,Revenue,CCHD,Home Care - Elderly - South,Supported Living,Cherry Orchards,4704.29, 17-Feb-2015
412,Revenue,CCHD,Bed purchasing -S28A  Under 65 - North,Permanent Residential,Chescombe Lodge,8697, 17-Feb-2015
413,Revenue,CCHD,Bed Purchasing - Southmead Hospital,Permanent Nursing,Cholwell House Nursing Home Ltd,1972.64, 17-Feb-2015
414,Revenue,CCHD,Bed Purchasing - North,Permanent Nursing,Cholwell House Nursing Home Ltd,5931.37, 17-Feb-2015
415,Revenue,CCHD,Bed Purchasing - North,Permanent Nursing,Cholwell House Nursing Home Ltd,1496.2, 17-Feb-2015
416,Revenue,CCHD,Sexual Health,Other Small Contracts,Christchurch Family Medical  Centre,2529.32, 12-Feb-2015
417,Revenue,CCHD,Bed Purchasing - North,Permanent Residential,Church House,21015.36, 17-Feb-2015
418,Revenue,CCHD,Bed Purchasing - North,Permanent Residential,Church House,11829.92, 17-Feb-2015
419,Revenue,CCHD,Section 117 Placements MH Younger,Permanent Residential,Church House,7567.32, 17-Feb-2015
420,Revenue,CCHD,Section 117 Placements MH Younger,Permanent Residential,Church House,7307.08, 17-Feb-2015
421,Revenue,CCHD,18-25 Year Olds,Permanent Residential,Citibase Watford,7012, 17-Feb-2015
422,Revenue,CCHD,Bed Purchasing - Elderly S117- North,Permanent Residential,Citibase Watford,8932.12, 17-Feb-2015
423,Revenue,CCHD,18-25 Year Olds,Permanent Residential,Citibase Watford,5454.64, 17-Feb-2015
424,Revenue,CCHD,Home Care - Elderly - South,Other Small Contracts,Cleeve Care Group,738.5, 13-Feb-2015
425,Revenue,CCHD,Home Care - Elderly - North,Day Care / Social Activities,Cleeve Care Group,28, 13-Feb-2015
426,Revenue,CCHD,Home Care - Elderly - North,Other Small Contracts,Cleeve Care Group,493.5, 13-Feb-2015
427,Revenue,CCHD,Home Care - Elderly - South,Other Small Contracts,Cleeve Care Group,742, 13-Feb-2015
428,Revenue,CCHD,Home Care - Elderly - North,Other Small Contracts,Cleeve Care Group,521.5, 13-Feb-2015
429,Revenue,CCHD,Home Care - Elderly - South,Other Small Contracts,Cleeve Care Group,749, 13-Feb-2015
430,Revenue,CCHD,Home Care - Elderly - North,Other Small Contracts,Cleeve Care Group,49, 13-Feb-2015
431,Revenue,CCHD,Home Care - Elderly - South,Other Small Contracts,Cleeve Care Group,766.5, 19-Feb-2015
432,Revenue,CCHD,Home Care - Elderly - North,Day Care / Social Activities,Cleeve Care Group,28, 19-Feb-2015
433,Revenue,CCHD,Home Care - Elderly - North,Other Small Contracts,Cleeve Care Group,42, 19-Feb-2015
434,Revenue,CCHD,Home Care - Elderly - South,Other Small Contracts,Cleeve Care Group,689.5, 19-Feb-2015
435,Revenue,CCHD,Bed Purchasing - Southmead Hospital,Permanent Residential,Cleeve Lodge,1457.16, 17-Feb-2015
436,Revenue,CCHD,Bed Purchasing - North,Permanent Nursing,Cleeve Lodge,1874.24, 17-Feb-2015
437,Revenue,CCHD,Bed Purchasing - South,Permanent Residential,Cleeve Lodge,1801.44, 17-Feb-2015
438,Revenue,CCHD,Bed Purchasing - South,Respite Planned - Residential,Cleeve Lodge,2460, 17-Feb-2015
439,Revenue,CCHD,Bed Purchasing - South,Permanent Residential,Cleeve Lodge,2291.88, 17-Feb-2015
440,Revenue,CCHD,Bed Purchasing - South,Permanent Residential,Cleeve Lodge,1806.32, 17-Feb-2015
441,Revenue,CCHD,Bed Purchasing - South,Permanent Residential,Collingwood Residential Home,1427.48, 17-Feb-2015
442,Revenue,CCHD,Bed Purchasing - South,Permanent Residential,Collingwood Residential Home,1504.2, 17-Feb-2015
443,Revenue,CCHD,Bed Purchasing - South,Permanent Residential,Collingwood Residential Home,1448.6, 17-Feb-2015
444,Revenue,CCHD,Bed Purchasing - South,Permanent Residential,Collingwood Residential Home,1072.8, 17-Feb-2015
445,Revenue,CCHD,Bed Purchasing - South,Permanent Residential,Collingwood Residential Home,1323.04, 17-Feb-2015
446,Revenue,CCHD,Bed Purchasing - South,Permanent Residential,Collingwood Residential Home,1280.2, 17-Feb-2015
447,Revenue,CCHD,Bed and Breakfast,Bed & Breakfast,Connolly & Callaghan Limited,525, 04-Feb-2015
448,Revenue,CCHD,Bed and Breakfast,Bed & Breakfast,Connolly & Callaghan Limited,554.4, 23-Feb-2015
449,Revenue,CCHD,Bed and Breakfast,Bed & Breakfast,Connolly & Callaghan Limited,525, 23-Feb-2015
450,Revenue,CCHD,Bed and Breakfast,Bed & Breakfast,Connolly & Callaghan Limited,585.9, 23-Feb-2015
451,Revenue,CCHD,Bed and Breakfast,Bed & Breakfast,Connolly & Callaghan Limited,522.9, 23-Feb-2015
452,Revenue,CCHD,Bed and Breakfast,Bed & Breakfast,Connolly & Callaghan Limited,448, 23-Feb-2015
453,Revenue,CCHD,Bed and Breakfast,Bed & Breakfast,Connolly & Callaghan Limited,522.9, 23-Feb-2015
454,Revenue,CCHD,Bed and Breakfast,Bed & Breakfast,Connolly & Callaghan Limited,617.4, 23-Feb-2015
455,Revenue,CCHD,Bed and Breakfast,Bed & Breakfast,Connolly & Callaghan Limited,490, 23-Feb-2015
456,Revenue,CCHD,Bed and Breakfast,Bed & Breakfast,Connolly & Callaghan Limited,630, 23-Feb-2015
457,Revenue,CCHD,Bed and Breakfast,Bed & Breakfast,Connolly & Callaghan Limited,581, 04-Feb-2015
458,Revenue,CCHD,Bed and Breakfast,Bed & Breakfast,Connolly & Callaghan Limited,522.9, 04-Feb-2015
459,Revenue,CCHD,Bed and Breakfast,Bed & Breakfast,Connolly & Callaghan Limited,522.9, 04-Feb-2015
460,Revenue,CCHD,Bed and Breakfast,Bed & Breakfast,Connolly & Callaghan Limited,546, 04-Feb-2015
461,Revenue,CCHD,Bed and Breakfast,Other Supplies & Services,Connolly & Callaghan Limited,554.4, 04-Feb-2015
462,Revenue,CCHD,Bed and Breakfast,Other Supplies & Services,Connolly & Callaghan Limited,546, 04-Feb-2015
463,Revenue,CCHD,Bed and Breakfast,Bed & Breakfast,Connolly & Callaghan Limited,441, 06-Feb-2015
464,Revenue,CCHD,Bed and Breakfast,Bed & Breakfast,Connolly & Callaghan Limited,491.4, 06-Feb-2015
465,Revenue,CCHD,Bed and Breakfast,Bed & Breakfast,Connolly & Callaghan Limited,525, 06-Feb-2015
466,Revenue,CCHD,Bed and Breakfast,Bed & Breakfast,Connolly & Callaghan Limited,581, 06-Feb-2015
467,Revenue,CCHD,Bed and Breakfast,Bed & Breakfast,Connolly & Callaghan Limited,648.9, 06-Feb-2015
468,Revenue,CCHD,Bed and Breakfast,Bed & Breakfast,Connolly & Callaghan Limited,491.4, 12-Feb-2015
469,Revenue,CCHD,Bed and Breakfast,Bed & Breakfast,Connolly & Callaghan Limited,554.4, 06-Feb-2015
470,Revenue,CCHD,Bed and Breakfast,Bed & Breakfast,Connolly & Callaghan Limited,522.9, 06-Feb-2015
471,Revenue,CCHD,Bed and Breakfast,Bed & Breakfast,Connolly & Callaghan Limited,651, 12-Feb-2015
472,Revenue,CCHD,Bed and Breakfast,Bed & Breakfast,Connolly & Callaghan Limited,522.9, 12-Feb-2015
473,Revenue,CCHD,Bed and Breakfast,Bed & Breakfast,Connolly & Callaghan Limited,522.9, 06-Feb-2015
474,Revenue,CCHD,Bed and Breakfast,Bed & Breakfast,Connolly & Callaghan Limited,546, 06-Feb-2015
475,Revenue,CCHD,Bed and Breakfast,Bed & Breakfast,Connolly & Callaghan Limited,617.4, 06-Feb-2015
476,Revenue,CCHD,Bed and Breakfast,Bed & Breakfast,Connolly & Callaghan Limited,546, 06-Feb-2015
477,Revenue,CCHD,Bed and Breakfast,Bed & Breakfast,Connolly & Callaghan Limited,522.9, 06-Feb-2015
478,Revenue,CCHD,Bed and Breakfast,Bed & Breakfast,Connolly & Callaghan Limited,490, 06-Feb-2015
479,Revenue,CCHD,Bed and Breakfast,Bed & Breakfast,Connolly & Callaghan Limited,630, 06-Feb-2015
480,Revenue,CCHD,Bed and Breakfast,Bed & Breakfast,Connolly & Callaghan Limited,459.9, 06-Feb-2015
481,Revenue,CCHD,Bed and Breakfast,Bed & Breakfast,Connolly & Callaghan Limited,600, 12-Feb-2015
482,Revenue,CCHD,Bed and Breakfast,Bed & Breakfast,Connolly & Callaghan Limited,648.9, 12-Feb-2015
483,Revenue,CCHD,Bed and Breakfast,Bed & Breakfast,Connolly & Callaghan Limited,554.4, 12-Feb-2015
484,Revenue,CCHD,Bed and Breakfast,Bed & Breakfast,Connolly & Callaghan Limited,651, 12-Feb-2015
485,Revenue,CCHD,Bed and Breakfast,Bed & Breakfast,Connolly & Callaghan Limited,546, 12-Feb-2015
486,Revenue,CCHD,Bed and Breakfast,Bed & Breakfast,Connolly & Callaghan Limited,546, 12-Feb-2015
487,Revenue,CCHD,Bed and Breakfast,Bed & Breakfast,Connolly & Callaghan Limited,630, 12-Feb-2015
488,Revenue,CCHD,Bed and Breakfast,Bed & Breakfast,Connolly & Callaghan Limited,459.9, 12-Feb-2015
489,Revenue,CCHD,Bed and Breakfast,Bed & Breakfast,Connolly & Callaghan Limited,491.4, 24-Feb-2015
490,Revenue,CCHD,Bed and Breakfast,Bed & Breakfast,Connolly & Callaghan Limited,700, 24-Feb-2015
491,Revenue,CCHD,Bed and Breakfast,Bed & Breakfast,Connolly & Callaghan Limited,581, 24-Feb-2015
492,Revenue,CCHD,Bed and Breakfast,Bed & Breakfast,Connolly & Callaghan Limited,648.9, 24-Feb-2015
493,Revenue,CCHD,Bed and Breakfast,Bed & Breakfast,Connolly & Callaghan Limited,554.4, 24-Feb-2015
494,Revenue,CCHD,Bed and Breakfast,Bed & Breakfast,Connolly & Callaghan Limited,522.9, 24-Feb-2015
495,Revenue,CCHD,Bed and Breakfast,Bed & Breakfast,Connolly & Callaghan Limited,651, 24-Feb-2015
496,Revenue,CCHD,Bed and Breakfast,Bed & Breakfast,Connolly & Callaghan Limited,522.9, 19-Feb-2015
497,Revenue,CCHD,Bed and Breakfast,Bed & Breakfast,Connolly & Callaghan Limited,522.9, 24-Feb-2015
498,Revenue,CCHD,Bed and Breakfast,Bed & Breakfast,Connolly & Callaghan Limited,546, 24-Feb-2015
499,Revenue,CCHD,Bed and Breakfast,Bed & Breakfast,Connolly & Callaghan Limited,617.4, 24-Feb-2015
500,Revenue,CCHD,Bed and Breakfast,Bed & Breakfast,Connolly & Callaghan Limited,546, 27-Feb-2015
501,Revenue,CCHD,Bed and Breakfast,Bed & Breakfast,Connolly & Callaghan Limited,522.9, 27-Feb-2015
502,Revenue,CCHD,Bed and Breakfast,Bed & Breakfast,Connolly & Callaghan Limited,490, 27-Feb-2015
503,Revenue,CCHD,Bed and Breakfast,Bed & Breakfast,Connolly & Callaghan Limited,630, 27-Feb-2015
504,Revenue,CCHD,Bed and Breakfast,Bed & Breakfast,Connolly & Callaghan Limited,459.9, 27-Feb-2015
505,Revenue,CCHD,Bed Purchasing - Southmead Hospital,Permanent Residential,Coombs Wood House,965, 17-Feb-2015
506,Revenue,CCHD,Sexual Health,Other Small Contracts,Courtside Surgery,1724.06, 12-Feb-2015
507,Revenue,CCHD,Bed Purchasing - S28A - Over 65- North,Permanent Residential,Cream Ii Ltd  Longrun House,8039.76, 17-Feb-2015
508,Revenue,CCHD,Bed Purchasing - South,Permanent Residential,Cream Ii Ltd  Longrun House,5628.52, 17-Feb-2015
509,Revenue,CCHD,Bed purchasing -S28A  Under 65 - North,Permanent Residential,Creedy Court,9294.4, 17-Feb-2015
510,Revenue,CCHD,Bed Purchasing - S28A - Over 65- North,Permanent Residential,Creedy Court,7726.88, 17-Feb-2015
511,Revenue,CCHD,Bed Purchasing - North,Permanent Residential,Creedy Court,12580.08, 12-Feb-2015
512,Revenue,CCHD,Purchase of Non-Res Care - South,Day Care / Social Activities,Daneswood,1472.68, 02-Feb-2015
513,Revenue,CCHD,Purchase of Non-Res Care - South,Day Care / Social Activities,Daneswood,1472.68, 20-Feb-2015
514,Revenue,CCHD,Bed Purchasing - South,Permanent Residential,Daneswood,11009.48, 17-Feb-2015
515,Revenue,CCHD,Bed Purchasing - North,Permanent Residential,Daneswood,9114.88, 17-Feb-2015
516,Revenue,CCHD,Bed Purchasing - Elderly S117- North,Permanent Nursing,Danshell Healthcare Group,11529, 17-Feb-2015
517,Revenue,CCHD,Learning Difficulties PSL,Other Supplies & Services,Individual,2016.44, 20-Feb-2015
518,Revenue,CCHD,Public Health Project Funding,Conference Expenses,Debigno Ltd trading as Pathway Analytics,493.5, 13-Feb-2015
519,Revenue,CCHD,Purchase of Non-Res Care - North,Day Care / Social Activities,Design 4 Life Ltd,1705.86, 02-Feb-2015
520,Revenue,CCHD,Purchase of Non-Res Care - North,Day Care / Social Activities,Design 4 Life Ltd,787.32, 02-Feb-2015
521,Revenue,CCHD,Purchase of Non-Res Care - North,Day Care / Social Activities,Design 4 Life Ltd,1226.96, 19-Feb-2015
522,Revenue,CCHD,Home Care - Elderly - South,Supported Living,Design House,2962.4, 17-Feb-2015
523,Revenue,CCHD,Bed Purchasing - South,Permanent Residential,Devon & Cornwall Autistic Community Trus,8796.92, 17-Feb-2015
524,Revenue,CCHD,Home Care - Elderly - South,Other Small Contracts,Dhek Bhal,469.48, 03-Feb-2015
525,Revenue,CCHD,Home Care - Elderly - North,Other Small Contracts,Dhek Bhal,193.6, 03-Feb-2015
526,Revenue,CCHD,Home Care - Elderly - South,Other Small Contracts,Dhek Bhal,464.64, 06-Feb-2015
527,Revenue,CCHD,Home Care - Elderly - North,Other Small Contracts,Dhek Bhal,193.6, 06-Feb-2015
528,Revenue,CCHD,Home Care - Elderly - South,Day Care / Social Activities,Dhek Bhal,193.6, 13-Feb-2015
529,Revenue,CCHD,Home Care - Elderly - South,Other Small Contracts,Dhek Bhal,271.04, 13-Feb-2015
530,Revenue,CCHD,Home Care - Elderly - North,Other Small Contracts,Dhek Bhal,193.6, 13-Feb-2015
531,Revenue,CCHD,Home Care - Elderly - South,Day Care / Social Activities,Dhek Bhal,193.6, 27-Feb-2015
532,Revenue,CCHD,Home Care - Elderly - South,Other Small Contracts,Dhek Bhal,271.04, 27-Feb-2015
533,Revenue,CCHD,Home Care - Elderly - North,Other Small Contracts,Dhek Bhal,193.6, 27-Feb-2015
534,Revenue,CCHD,Bed Purchasing - South,Permanent Residential,Dimensions,4880, 17-Feb-2015
535,Revenue,CCHD,Supported Living - South,Private & Voluntary Home Care,Dimensions (UK) Ltd,7231.84, 27-Feb-2015
536,Revenue,CCHD,Training - Adult Services,Training Expenses,Distance Learning College & Training,2271.46, 05-Feb-2015
537,Revenue,CCHD,Home Care - Elderly - South,Day Care / Social Activities,DoCare Ltd,38, 13-Feb-2015
538,Revenue,CCHD,Home Care - Elderly - South,Other Small Contracts,DoCare Ltd,2622.01, 13-Feb-2015
539,Revenue,CCHD,Home Care - Elderly - North,Other Small Contracts,DoCare Ltd,6916, 13-Feb-2015
540,Revenue,CCHD,Home Care - Elderly - South,Other Small Contracts,DoCare Ltd,2370.25, 13-Feb-2015
541,Revenue,CCHD,Home Care - Elderly - North,Other Small Contracts,DoCare Ltd,6023, 13-Feb-2015
542,Revenue,CCHD,Home Care - Elderly - South,Other Small Contracts,DoCare Ltd,2574.51, 26-Feb-2015
543,Revenue,CCHD,Home Care - Elderly - North,Other Small Contracts,DoCare Ltd,6588.25, 26-Feb-2015
544,Revenue,CCHD,Home Care - Elderly - South,Other Small Contracts,DoCare Ltd,2726.5, 26-Feb-2015
545,Revenue,CCHD,Home Care - Elderly - North,Other Small Contracts,DoCare Ltd,7229.5, 26-Feb-2015
546,Revenue,CCHD,Home Care - Elderly - South,Day Care / Social Activities,DoCare Ltd,38, 26-Feb-2015
547,Revenue,CCHD,Home Care - Elderly - South,Other Small Contracts,DoCare Ltd,2759.76, 26-Feb-2015
548,Revenue,CCHD,Home Care - Elderly - North,Other Small Contracts,DoCare Ltd,7305.5, 26-Feb-2015
549,Revenue,CCHD,Sexual Health,Other Small Contracts,Dr A Kerr,805.26, 12-Feb-2015
550,Revenue,CCHD,Social Lettings Agency,Other Supplies & Services,Individual,580.74, 24-Feb-2015
551,Revenue,CCHD,Sexual Health,Other Small Contracts,Dr P Taylor & Partners,1899.56, 12-Feb-2015
552,Revenue,CCHD,Sexual Health,Other Small Contracts,Dr Robertson,598.78, 12-Feb-2015
553,Revenue,CCHD,MH Purchasing - Younger,Permanent Residential,Dunraven House,1854.32, 17-Feb-2015
554,Revenue,CCHD,Bed and Breakfast,Bed & Breakfast,E J Bartlett,651, 12-Feb-2015
555,Revenue,CCHD,Bed and Breakfast,Bed & Breakfast,E J Bartlett,420, 12-Feb-2015
556,Revenue,CCHD,Bed and Breakfast,Bed & Breakfast,E J Bartlett,496, 16-Feb-2015
557,Revenue,CCHD,Bed and Breakfast,Bed & Breakfast,E J Bartlett,651, 17-Feb-2015
558,Revenue,CCHD,Bed and Breakfast,Bed & Breakfast,E J Bartlett,504, 16-Feb-2015
559,Revenue,CCHD,Bed and Breakfast,Bed & Breakfast,E J Bartlett,420, 16-Feb-2015
560,Revenue,CCHD,Bed and Breakfast,Bed & Breakfast,E J Bartlett,651, 23-Feb-2015
561,Revenue,CCHD,Bed and Breakfast,Bed & Breakfast,E J Bartlett,504, 23-Feb-2015
562,Revenue,CCHD,Bed and Breakfast,Bed & Breakfast,E J Bartlett,420, 23-Feb-2015
563,Revenue,CCHD,Bed Purchasing - North,Permanent Residential,East Court,2213.44, 17-Feb-2015
564,Revenue,CCHD,Home Care - Elderly - South,Day Care / Social Activities,Easton Community Centre,520.56, 17-Feb-2015
565,Revenue,CCHD,Home Care - Elderly - South,Day Care / Social Activities,Easton Community Centre,520.56, 17-Feb-2015
566,Revenue,CCHD,Home Care - Elderly - North,Day Care / Social Activities,Easton Community Centre,520.56, 17-Feb-2015
567,Revenue,CCHD,Home Care - Elderly - North,Day Care / Social Activities,Easton Community Centre,520.56, 17-Feb-2015
568,Revenue,CCHD,Home Care - Elderly - South,Supported Living,Eclipse Office Park,3592.96, 17-Feb-2015
569,Revenue,CCHD,Home Care - Elderly - North,Supported Living,Eclipse Office Park,4293.72, 17-Feb-2015
570,Revenue,CCHD,Home Care - Elderly - South,Supported Living,Eclipse Office Park,3592.96, 17-Feb-2015
571,Revenue,CCHD,Supported Living (S28a) North,Private & Voluntary Home Care,Eclipse Office Park,4032.8, 17-Feb-2015
572,Revenue,CCHD,Home Care - Elderly - South,Supported Living,Eclipse Office Park,3604.68, 17-Feb-2015
573,Revenue,CCHD,Home Care - Elderly - South,Supported Living,Eclipse Office Park,2292.92, 17-Feb-2015
574,Revenue,CCHD,Supported Living (S28a) North,Private & Voluntary Home Care,Eclipse Office Park,4002.44, 17-Feb-2015
575,Revenue,CCHD,Supported Living (S28a) North,Private & Voluntary Home Care,Eclipse Office Park,4002.44, 17-Feb-2015
576,Revenue,CCHD,Supported Living (S28a) North,Private & Voluntary Home Care,Eclipse Office Park,4032.8, 17-Feb-2015
577,Revenue,CCHD,Supported Living (S28a) South,Supported Living,Eclipse Office Park,3839.88, 17-Feb-2015
578,Revenue,CCHD,Supported Living (S28a) North,Private & Voluntary Home Care,Eclipse Office Park,3564.6, 17-Feb-2015
579,Revenue,CCHD,Supported Living (S28a) North,Private & Voluntary Home Care,Eclipse Office Park,3564.6, 17-Feb-2015
580,Revenue,CCHD,Home Care - Elderly - South,Supported Living,Eclipse Office Park,2949.92, 17-Feb-2015
581,Revenue,CCHD,Supported Living (S28a) South,Supported Living,Eclipse Office Park,5447, 17-Feb-2015
582,Revenue,CCHD,Home Care - Elderly - South,Supported Living,Eclipse Office Park,2208.68, 17-Feb-2015
583,Revenue,CCHD,Supported Living (S28a) South,Supported Living,Eclipse Office Park,2208.68, 17-Feb-2015
584,Revenue,CCHD,Supported Living (S28a) North,Private & Voluntary Home Care,Eclipse Office Park,4303.72, 17-Feb-2015
585,Revenue,CCHD,Supported Living (S28a) North,Private & Voluntary Home Care,Eclipse Office Park,3576.6, 17-Feb-2015
586,Revenue,CCHD,Supported Living (S28a) South,Supported Living,Eclipse Office Park,2088.68, 17-Feb-2015
587,Revenue,CCHD,Supported Living (S28a) South,Supported Living,Eclipse Office Park,2208.68, 17-Feb-2015
588,Revenue,CCHD,Supported Living (S28a) South,Supported Living,Eclipse Office Park,2949.92, 17-Feb-2015
589,Revenue,CCHD,Home Care - Elderly - South,Day Care / Social Activities,Eclipse Office Park,735.12, 17-Feb-2015
590,Revenue,CCHD,Home Care - Elderly - North,Day Care / Social Activities,Eclipse Office Park,980.16, 17-Feb-2015
591,Revenue,CCHD,Home Care - Elderly - South,Day Care / Social Activities,Eclipse Office Park,612.6, 17-Feb-2015
592,Revenue,CCHD,Home Care - Elderly - South,Day Care / Social Activities,Eclipse Office Park,857.64, 17-Feb-2015
593,Revenue,CCHD,Home Care - Elderly - South,Day Care / Social Activities,Eclipse Office Park,735.12, 17-Feb-2015
594,Revenue,CCHD,Home Care - Elderly - South,Day Care / Social Activities,Eclipse Office Park,857.64, 17-Feb-2015
595,Revenue,CCHD,Home Care - Elderly - South,Day Care / Social Activities,Eclipse Office Park,1225.2, 17-Feb-2015
596,Revenue,CCHD,Home Care - Elderly - South,Day Care / Social Activities,Eclipse Office Park,735.12, 17-Feb-2015
597,Revenue,CCHD,Home Care - Elderly - South,Day Care / Social Activities,Eclipse Office Park,857.64, 17-Feb-2015
598,Revenue,CCHD,Home Care - Elderly - South,Day Care / Social Activities,Eclipse Office Park,980.16, 17-Feb-2015
599,Revenue,CCHD,Bed Purchasing - North,Permanent Residential,Eclipse Office Park,2653.24, 17-Feb-2015
600,Revenue,CCHD,Bed Purchasing - South,Permanent Residential,Eclipse Office Park,1429.36, 17-Feb-2015
601,Revenue,CCHD,Bed Purchasing - North,Permanent Residential,Eclipse Office Park,3435.28, 17-Feb-2015
602,Revenue,CCHD,Bed Purchasing - South,Permanent Residential,Eclipse Office Park,4867.92, 17-Feb-2015
603,Revenue,CCHD,Bed Purchasing - South,Permanent Residential,Eclipse Office Park,5442.48, 17-Feb-2015
604,Revenue,CCHD,Bed Purchasing - South,Permanent Nursing,Eclipse Office Park,2740.16, 17-Feb-2015
605,Revenue,CCHD,Bed Purchasing - South,Permanent Nursing,Eclipse Office Park,1281.68, 17-Feb-2015
606,Revenue,CCHD,Bed Purchasing - South,Permanent Residential,Eclipse Office Park,3605.96, 17-Feb-2015
607,Revenue,CCHD,Bed purchasing - Elderly S117 - South,Permanent Nursing,Eclipse Office Park,1992, 17-Feb-2015
608,Revenue,CCHD,Bed purchasing - Elderly S117 - South,Permanent Nursing,Eclipse Office Park,1992, 17-Feb-2015
609,Revenue,CCHD,Bed Purchasing - South,Permanent Nursing,Eclipse Office Park,926.6, 17-Feb-2015
610,Revenue,CCHD,Bed Purchasing - North,Permanent Nursing,Eclipse Office Park,1421.72, 17-Feb-2015
611,Revenue,CCHD,Bed Purchasing - North,Permanent Residential,Eclipse Office Park,6818.04, 17-Feb-2015
612,Revenue,CCHD,Bed Purchasing - North,Permanent Residential,Eclipse Office Park,2272.68, 17-Feb-2015
613,Revenue,CCHD,Bed Purchasing - South,Permanent Residential,Eclipse Office Park,4125.12, 17-Feb-2015
614,Revenue,CCHD,Bed purchasing -S28A  Under 65 - North,Permanent Nursing,Eclipse Office Park,5411.96, 17-Feb-2015
615,Revenue,CCHD,Bed purchasing -S28A  Under 65 - North,Permanent Residential,Eclipse Office Park,5334.12, 17-Feb-2015
616,Revenue,CCHD,Bed purchasing - S28A Under 65 - South,Permanent Residential,Eclipse Office Park,5527.88, 17-Feb-2015
617,Revenue,CCHD,Bed Purchasing - South,Permanent Residential,Eclipse Office Park,1302.92, 17-Feb-2015
618,Revenue,CCHD,Bed Purchasing - South,Permanent Residential,Eclipse Office Park,5018.48, 17-Feb-2015
619,Revenue,CCHD,Bed Purchasing - South,Permanent Residential,Eclipse Office Park,5534.96, 17-Feb-2015
620,Revenue,CCHD,Bed purchasing - S28A Under 65 - South,Permanent Nursing,Eclipse Office Park,7294.32, 17-Feb-2015
621,Revenue,CCHD,MH Purchasing - Younger,Permanent Residential,Eclipse Office Park,860.2, 17-Feb-2015
622,Revenue,CCHD,Bed Purchasing - South,Permanent Residential,Eclipse Office Park,5124.6, 17-Feb-2015
623,Revenue,CCHD,Bed Purchasing - North,Permanent Residential,Eclipse Office Park,4023.56, 17-Feb-2015
624,Revenue,CCHD,Bed purchasing -S28A  Under 65 - North,Permanent Residential,Eclipse Office Park,5258.04, 17-Feb-2015
625,Revenue,CCHD,Bed Purchasing - North,Permanent Residential,Eclipse Office Park,4634.84, 17-Feb-2015
626,Revenue,CCHD,Bed purchasing -S28A  Under 65 - North,Permanent Residential,Eclipse Office Park,7058.72, 17-Feb-2015
627,Revenue,CCHD,Bed purchasing -S28A  Under 65 - North,Permanent Nursing,Eclipse Office Park,5801.32, 17-Feb-2015
628,Revenue,CCHD,Bed Purchasing - South,Permanent Residential,Eclipse Office Park,4515.52, 17-Feb-2015
629,Revenue,CCHD,Bed Purchasing - South,Permanent Residential,Eclipse Office Park,3210.16, 17-Feb-2015
630,Revenue,CCHD,Bed purchasing -S28A  Under 65 - North,Permanent Residential,Eclipse Office Park,6755.12, 17-Feb-2015
631,Revenue,CCHD,Bed purchasing - S28A Under 65 - South,Permanent Residential,Eclipse Office Park,4525.88, 17-Feb-2015
632,Revenue,CCHD,Bed Purchasing - S28A - Over 65- North,Permanent Residential,Eclipse Office Park,6604.52, 17-Feb-2015
633,Revenue,CCHD,Bed purchasing -S28A  Under 65 - North,Permanent Residential,Eclipse Office Park,7114.72, 17-Feb-2015
634,Revenue,CCHD,Bed purchasing -S28A  Under 65 - North,Permanent Residential,Eclipse Office Park,7058.72, 17-Feb-2015
635,Revenue,CCHD,Bed Purchasing - LD S28A- Over 65- South,Permanent Residential,Eclipse Office Park,4098.32, 17-Feb-2015
636,Revenue,CCHD,Bed purchasing - S28A Under 65 - South,Permanent Residential,Eclipse Office Park,4867.92, 17-Feb-2015
637,Revenue,CCHD,Bed purchasing - S28A Under 65 - South,Permanent Residential,Eclipse Office Park,4761.36, 17-Feb-2015
638,Revenue,CCHD,Bed purchasing - S28A Under 65 - South,Permanent Residential,Eclipse Office Park,3663.96, 17-Feb-2015
639,Revenue,CCHD,Bed Purchasing - LD S28A- Over 65- South,Permanent Residential,Eclipse Office Park,5091.12, 17-Feb-2015
640,Revenue,CCHD,Bed Purchasing - LD S28A- Over 65- South,Permanent Residential,Eclipse Office Park,4919.32, 17-Feb-2015
641,Revenue,CCHD,Bed Purchasing - LD S28A- Over 65- South,Permanent Residential,Eclipse Office Park,5075.32, 17-Feb-2015
642,Revenue,CCHD,Bed Purchasing - LD S28A- Over 65- South,Permanent Residential,Eclipse Office Park,4353.28, 17-Feb-2015
643,Revenue,CCHD,Bed Purchasing - LD S28A- Over 65- South,Permanent Residential,Eclipse Office Park,5170.2, 17-Feb-2015
644,Revenue,CCHD,Bed Purchasing - S28A - Over 65- North,Permanent Residential,Eclipse Office Park,2875.08, 17-Feb-2015
645,Revenue,CCHD,Section 117 Placements MH Younger,Permanent Residential,Eclipse Office Park,1356, 17-Feb-2015
646,Revenue,CCHD,Bed Purchasing - South,Permanent Residential,Eclipse Office Park,860.2, 17-Feb-2015
647,Revenue,CCHD,Bed purchasing - S28A Under 65 - South,Permanent Residential,Eclipse Office Park,5415.92, 17-Feb-2015
648,Revenue,CCHD,Bed Purchasing - North,Permanent Residential,Eclipse Office Park,4307.44, 17-Feb-2015
649,Revenue,CCHD,Bed Purchasing - North,Permanent Nursing,Eclipse Office Park,6842.6, 17-Feb-2015
650,Revenue,CCHD,Bed Purchasing - North,Permanent Nursing,Eclipse Office Park,1104.48, 17-Feb-2015
651,Revenue,CCHD,Bed Purchasing - South,Permanent Residential,Eclipse Office Park,4271.52, 17-Feb-2015
652,Revenue,CCHD,Bed purchasing -S28A  Under 65 - North,Permanent Residential,Eclipse Office Park,5675.56, 17-Feb-2015
653,Revenue,CCHD,Bed Purchasing - S28A - Over 65- North,Permanent Residential,Eclipse Office Park,3599.08, 17-Feb-2015
654,Revenue,CCHD,Bed Purchasing - Elderly S117- North,Permanent Residential,Eclipse Office Park,1756, 17-Feb-2015
655,Revenue,CCHD,MH Purchasing - Younger,Permanent Residential,Eclipse Office Park,1036.6, 17-Feb-2015
656,Revenue,CCHD,Bed Purchasing - S28A - Over 65- North,Permanent Residential,Eclipse Office Park,3214.56, 17-Feb-2015
657,Revenue,CCHD,Bed Purchasing - LD S28A- Over 65- South,Permanent Residential,Eclipse Office Park,3882.08, 17-Feb-2015
658,Revenue,CCHD,Bed purchasing - S28A Under 65 - South,Permanent Residential,Eclipse Office Park,5471.56, 17-Feb-2015
659,Revenue,CCHD,Bed purchasing - S28A Under 65 - South,Permanent Nursing,Eclipse Office Park,5364.24, 17-Feb-2015
660,Revenue,CCHD,Bed Purchasing - LD S28A- Over 65- South,Permanent Nursing,Eclipse Office Park,5225.52, 17-Feb-2015
661,Revenue,CCHD,Bed Purchasing - LD S28A- Over 65- South,Permanent Residential,Eclipse Office Park,4802.88, 17-Feb-2015
662,Revenue,CCHD,Bed Purchasing - LD S28A- Over 65- South,Permanent Residential,Eclipse Office Park,4599.84, 17-Feb-2015
663,Revenue,CCHD,Bed purchasing - S28A Under 65 - South,Permanent Residential,Eclipse Office Park,6053.44, 17-Feb-2015
664,Revenue,CCHD,Bed Purchasing - LD S28A- Over 65- South,Permanent Residential,Eclipse Office Park,4667.16, 17-Feb-2015
665,Revenue,CCHD,Bed Purchasing - S28A - Over 65- North,Permanent Residential,Eclipse Office Park,4750.44, 17-Feb-2015
666,Revenue,CCHD,Bed Purchasing - South,Permanent Nursing,Eclipse Office Park,3284.32, 17-Feb-2015
667,Revenue,CCHD,Bed Purchasing - S28A - Over 65- North,Permanent Residential,Eclipse Office Park,4588.52, 17-Feb-2015
668,Revenue,CCHD,Bed Purchasing - S28A - Over 65- North,Permanent Residential,Eclipse Office Park,4759.28, 17-Feb-2015
669,Revenue,CCHD,Bed purchasing - S28A Under 65 - South,Permanent Residential,Eclipse Office Park,4756.28, 17-Feb-2015
670,Revenue,CCHD,Bed Purchasing - S28A - Over 65- North,Permanent Residential,Eclipse Office Park,4503.16, 17-Feb-2015
671,Revenue,CCHD,Bed purchasing -S28A  Under 65 - North,Permanent Residential,Eclipse Office Park,7058.72, 17-Feb-2015
672,Revenue,CCHD,Bed purchasing -S28A  Under 65 - North,Permanent Residential,Eclipse Office Park,3304.04, 17-Feb-2015
673,Revenue,CCHD,Bed Purchasing - S28A - Over 65- North,Permanent Residential,Eclipse Office Park,3133.72, 17-Feb-2015
674,Revenue,CCHD,Bed Purchasing - S28A - Over 65- North,Permanent Residential,Eclipse Office Park,3431.24, 17-Feb-2015
675,Revenue,CCHD,Bed Purchasing - LD S28A- Over 65- South,Permanent Residential,Eclipse Office Park,3086.04, 17-Feb-2015
676,Revenue,CCHD,Bed Purchasing - North,Permanent Residential,Eclipse Office Park,6773.16, 17-Feb-2015
677,Revenue,CCHD,Bed Purchasing - South,Permanent Residential,Eclipse Office Park,1318.68, 17-Feb-2015
678,Revenue,CCHD,MH Purchasing - Younger,Permanent Nursing,Eclipse Office Park,937.8, 17-Feb-2015
679,Revenue,CCHD,MH Purchasing - Younger,Permanent Nursing,Eclipse Office Park,952.2, 17-Feb-2015
680,Revenue,CCHD,Bed Purchasing - South,Permanent Residential,Eclipse Office Park,3254.24, 17-Feb-2015
681,Revenue,CCHD,Bed purchasing - S28A Under 65 - South,Permanent Residential,Eclipse Office Park,5919.12, 17-Feb-2015
682,Revenue,CCHD,Bed purchasing - S28A Under 65 - South,Permanent Residential,Eclipse Office Park,6010.16, 17-Feb-2015
683,Revenue,CCHD,Bed Purchasing - LD S28A- Over 65- South,Permanent Residential,Eclipse Office Park,4353.28, 17-Feb-2015
684,Revenue,CCHD,Bed Purchasing - South,Permanent Residential,Eclipse Office Park,5919.52, 17-Feb-2015
685,Revenue,CCHD,Bed Purchasing - LD S28A- Over 65- South,Permanent Nursing,Eclipse Office Park,4528.36, 17-Feb-2015
686,Revenue,CCHD,Bed Purchasing - LD S28A- Over 65- South,Permanent Nursing,Eclipse Office Park,5225.52, 17-Feb-2015
687,Revenue,CCHD,Bed Purchasing - LD S28A- Over 65- South,Permanent Residential,Eclipse Office Park,3540.96, 17-Feb-2015
688,Revenue,CCHD,Bed Purchasing - LD S28A- Over 65- South,Permanent Residential,Eclipse Office Park,4343.36, 17-Feb-2015
689,Revenue,CCHD,Bed Purchasing - LD S28A- Over 65- South,Permanent Residential,Eclipse Office Park,4832.92, 17-Feb-2015
690,Revenue,CCHD,Bed Purchasing - South,Permanent Residential,Eclipse Office Park,1224.16, 17-Feb-2015
691,Revenue,CCHD,Bed purchasing -S28A  Under 65 - North,Permanent Nursing,Eclipse Office Park,7675.92, 17-Feb-2015
692,Revenue,CCHD,Bed Purchasing - Southmead Hospital,Permanent Nursing,Eclipse Office Park,1348.48, 17-Feb-2015
693,Revenue,CCHD,Bed Purchasing - South,Permanent Residential,Eclipse Office Park,5257, 17-Feb-2015
694,Revenue,CCHD,Bed Purchasing - Elderly S117- North,Permanent Nursing,Eclipse Office Park,1992, 17-Feb-2015
695,Revenue,CCHD,Bed Purchasing - North,Permanent Nursing,Eclipse Office Park,1392.47, 17-Feb-2015
696,Revenue,CCHD,Bed Purchasing - North,Permanent Nursing,Eclipse Office Park,836.44, 17-Feb-2015
697,Revenue,CCHD,Section 117 Placements MH Younger,Permanent Residential,Eclipse Office Park,1356, 17-Feb-2015
698,Revenue,CCHD,Bed Purchasing - South,Permanent Nursing,Eclipse Office Park,3389.36, 17-Feb-2015
699,Revenue,CCHD,Bed Purchasing - South,Permanent Residential,Eclipse Office Park,3389.48, 17-Feb-2015
700,Revenue,CCHD,Bed Purchasing - LD S28A- Over 65- South,Permanent Nursing,Eclipse Office Park,2981.68, 17-Feb-2015
701,Revenue,CCHD,Bed Purchasing - LD S28A- Over 65- South,Permanent Nursing,Eclipse Office Park,2767.44, 17-Feb-2015
702,Revenue,CCHD,Bed Purchasing - S28A - Over 65- North,Permanent Nursing,Eclipse Office Park,3692.72, 17-Feb-2015
703,Revenue,CCHD,Bed Purchasing - S28A - Over 65- North,Permanent Nursing,Eclipse Office Park,3684.72, 17-Feb-2015
704,Revenue,CCHD,MH Purchasing - Younger,Respite Planned - Residential,Eclipse Office Park,3734.48, 17-Feb-2015
705,Revenue,CCHD,Bed Purchasing - South,Permanent Residential,Edgecumbe Lodge,8173.99, 17-Feb-2015
706,Revenue,CCHD,Bed Purchasing - South,Permanent Residential,Edgecumbe Lodge,1177.76, 17-Feb-2015
707,Revenue,CCHD,Bed Purchasing - Southmead Hospital,Permanent Residential,Edgecumbe Lodge,1260.2, 17-Feb-2015
708,Revenue,CCHD,Bed Purchasing - South,Permanent Residential,Edgecumbe Lodge,1056.36, 17-Feb-2015
709,Revenue,CCHD,Bed Purchasing - Southmead Hospital,Permanent Residential,Edgecumbe Lodge,1604.2, 17-Feb-2015
710,Revenue,CCHD,Bed Purchasing - South,Permanent Residential,Edgecumbe Lodge,1427, 17-Feb-2015
711,Revenue,CCHD,Bed Purchasing - Southmead Hospital,Permanent Residential,Edgecumbe Lodge,1533.8, 17-Feb-2015
712,Revenue,CCHD,Bed Purchasing - South,Permanent Residential,Edgecumbe Lodge,1141.04, 17-Feb-2015
713,Revenue,CCHD,Bed Purchasing - North,Permanent Residential,Edgecumbe Lodge,1372.64, 17-Feb-2015
714,Revenue,CCHD,Bed Purchasing - South,Permanent Residential,Edgemont House Ltd,1430.32, 17-Feb-2015
715,Revenue,CCHD,Bed Purchasing - South,Permanent Residential,Edgemont House Ltd,1293.48, 17-Feb-2015
716,Revenue,CCHD,Bed Purchasing - North,Permanent Nursing,Edgemont View Nursing Home,1217.24, 17-Feb-2015
717,Revenue,CCHD,Bed Purchasing - South,Permanent Nursing,Edgemont View Nursing Home,4744.35, 17-Feb-2015
718,Revenue,CCHD,South Glos Users in South Glos Homes,Permanent Nursing,Edgemont View Nursing Home,823.75, 17-Feb-2015
719,Revenue,CCHD,Bed Purchasing - South,Permanent Nursing,Edgemont View Nursing Home,1445.88, 17-Feb-2015
720,Revenue,CCHD,Bed Purchasing - South,Permanent Nursing,Edgemont View Nursing Home,1320.36, 17-Feb-2015
721,Revenue,CCHD,Bed Purchasing - South,Permanent Nursing,Edgemont View Nursing Home,1634.8, 17-Feb-2015
722,Revenue,CCHD,Bed Purchasing - South,Permanent Nursing,Edgemont View Nursing Home,1196.68, 17-Feb-2015
723,Revenue,CCHD,Planning and Partnerships Procurement,Other Supplies & Services,Eldercare,1456.94, 23-Feb-2015
724,Revenue,CCHD,Supporting People Programme,Grants to Voluntary Bodies,Elim Housing Association Limited,5018.5, 27-Feb-2015
725,Revenue,CCHD,Home Care - Elderly - South,Day Care / Social Activities,Elite Home Care Ltd,139.84, 24-Feb-2015
726,Revenue,CCHD,Home Care - Elderly - South,Other Small Contracts,Elite Home Care Ltd,5833.95, 24-Feb-2015
727,Revenue,CCHD,Home Care - Elderly - North,Other Small Contracts,Elite Home Care Ltd,336.49, 24-Feb-2015
728,Revenue,CCHD,Home Care - Elderly - South,Day Care / Social Activities,Elite Home Care Ltd,139.84, 19-Feb-2015
729,Revenue,CCHD,Home Care - Elderly - South,Other Small Contracts,Elite Home Care Ltd,5873.28, 19-Feb-2015
730,Revenue,CCHD,Home Care - Elderly - North,Other Small Contracts,Elite Home Care Ltd,332.12, 19-Feb-2015
731,Revenue,CCHD,Home Care - Elderly - South,Day Care / Social Activities,Elite Home Care Ltd,144.21, 24-Feb-2015
732,Revenue,CCHD,Home Care - Elderly - South,Other Small Contracts,Elite Home Care Ltd,5803.36, 24-Feb-2015
733,Revenue,CCHD,Home Care - Elderly - North,Other Small Contracts,Elite Home Care Ltd,332.12, 24-Feb-2015
734,Revenue,CCHD,Day Care - South,Day Care / Social Activities,Enham,638.72, 17-Feb-2015
735,Revenue,CCHD,Bed Purchasing - North,Permanent Residential,Epworth House,1046.4, 17-Feb-2015
736,Revenue,CCHD,Home Care - Elderly - South,Other Small Contracts,Everycare (Bristol) Ltd,4122.5, 09-Feb-2015
737,Revenue,CCHD,Home Care - Elderly - North,Day Care / Social Activities,Everycare (Bristol) Ltd,161.5, 09-Feb-2015
738,Revenue,CCHD,Home Care - Elderly - North,Other Small Contracts,Everycare (Bristol) Ltd,2830.5, 09-Feb-2015
739,Revenue,CCHD,Under 65s -MH  Home Care Purch,Other Small Contracts,Everycare (Bristol) Ltd,51, 09-Feb-2015
740,Revenue,CCHD,Home Care - Elderly - South,Other Small Contracts,Everycare (Bristol) Ltd,4326.5, 09-Feb-2015
741,Revenue,CCHD,Home Care - Elderly - North,Day Care / Social Activities,Everycare (Bristol) Ltd,119, 09-Feb-2015
742,Revenue,CCHD,Home Care - Elderly - North,Other Small Contracts,Everycare (Bristol) Ltd,3221.5, 09-Feb-2015
743,Revenue,CCHD,Under 65s -MH  Home Care Purch,Other Small Contracts,Everycare (Bristol) Ltd,51, 09-Feb-2015
744,Revenue,CCHD,Home Care - Elderly - South,Other Small Contracts,Everycare (Bristol) Ltd,4262.75, 13-Feb-2015
745,Revenue,CCHD,Home Care - Elderly - North,Day Care / Social Activities,Everycare (Bristol) Ltd,165.75, 13-Feb-2015
746,Revenue,CCHD,Home Care - Elderly - North,Other Small Contracts,Everycare (Bristol) Ltd,3174.75, 13-Feb-2015
747,Revenue,CCHD,Under 65s -MH  Home Care Purch,Other Small Contracts,Everycare (Bristol) Ltd,55.25, 13-Feb-2015
748,Revenue,CCHD,Home Care - Elderly - South,Other Small Contracts,Everycare (Bristol) Ltd,4432.14, 19-Feb-2015
749,Revenue,CCHD,Home Care - Elderly - North,Day Care / Social Activities,Everycare (Bristol) Ltd,144.5, 19-Feb-2015
750,Revenue,CCHD,Home Care - Elderly - North,Other Small Contracts,Everycare (Bristol) Ltd,3094, 19-Feb-2015
751,Revenue,CCHD,Under 65s -MH  Home Care Purch,Other Small Contracts,Everycare (Bristol) Ltd,52.07, 19-Feb-2015
752,Revenue,CCHD,Bed Purchasing - South,Permanent Nursing,Fairview Court,1880.16, 17-Feb-2015
753,Revenue,CCHD,Bed Purchasing - Southmead Hospital,Permanent Nursing,Fairview Court,1879.96, 17-Feb-2015
754,Revenue,CCHD,South Glos Users in South Glos Homes,Permanent Nursing,Fairview Court,918.8, 17-Feb-2015
755,Revenue,CCHD,Bed Purchasing - South,Permanent Nursing,Fairview Court,1646.6, 17-Feb-2015
756,Revenue,CCHD,Bed Purchasing - South,Permanent Nursing,Fairview Court,1774.64, 17-Feb-2015
757,Revenue,CCHD,Bed Purchasing - South,Permanent Nursing,Fairview Court,2560.84, 17-Feb-2015
758,Revenue,CCHD,Bed Purchasing - South,Permanent Nursing,Fairview Court,2001.48, 17-Feb-2015
759,Revenue,CCHD,Bed Purchasing - South,Permanent Nursing,Fairview Court,1858.8, 17-Feb-2015
760,Revenue,CCHD,Bed Purchasing - North,Permanent Nursing,Fairview Court,2320.28, 17-Feb-2015
761,Revenue,CCHD,Bed Purchasing - North,Permanent Nursing,Fairview Court,1160.14, 17-Feb-2015
762,Revenue,CCHD,Bed Purchasing - South,Permanent Nursing,Fairview Court,1864.16, 17-Feb-2015
763,Revenue,CCHD,South Glos Users in South Glos Homes,Permanent Nursing,Fairview Court,2297.01, 17-Feb-2015
764,Revenue,CCHD,Bed Purchasing - South,Permanent Nursing,Fairview Court,1951.44, 17-Feb-2015
765,Revenue,CCHD,Bed Purchasing - South,Permanent Nursing,Fairview Court,1713.92, 17-Feb-2015
766,Revenue,CCHD,Bed Purchasing - Southmead Hospital,Permanent Nursing,Fairview Court,2090.51, 17-Feb-2015
767,Revenue,CCHD,Bed Purchasing - Southmead Hospital,Permanent Nursing,Fairview Court,1888.2, 17-Feb-2015
768,Revenue,CCHD,S75 CCG Interim Beds,Permanent Nursing,Fairview Court Care Home,10200, 12-Feb-2015
769,Revenue,CCHD,S75 CCG Interim Beds,Permanent Nursing,Fairview Court Care Home,10200, 12-Feb-2015
770,Revenue,CCHD,Bed purchasing - Elderly S117 - South,Permanent Residential,Fairview House,3323.86, 17-Feb-2015
771,Revenue,CCHD,Bed purchasing - Elderly S117 - South,Permanent Residential,Fairview House,1756, 17-Feb-2015
772,Revenue,CCHD,Bed purchasing - Elderly S117 - South,Permanent Residential,Fairview House,1916.84, 17-Feb-2015
773,Revenue,CCHD,Bed Purchasing - Southmead Hospital,Permanent Residential,Fairview House,1023.16, 17-Feb-2015
774,Revenue,CCHD,Bed Purchasing - South,Permanent Residential,Fairview House,865.24, 17-Feb-2015
775,Revenue,CCHD,Bed Purchasing - South,Permanent Residential,Fairview House,1260.2, 17-Feb-2015
776,Revenue,CCHD,Bed Purchasing - South,Permanent Residential,Fairview House,1192.92, 17-Feb-2015
777,Revenue,CCHD,Bed Purchasing - South,Permanent Residential,Fairview House,1117.92, 17-Feb-2015
778,Revenue,CCHD,Bed Purchasing - Southmead Hospital,Permanent Residential,Fairview House,1260.2, 17-Feb-2015
779,Revenue,CCHD,Bed Purchasing - Southmead Hospital,Permanent Residential,Fairview House,1077.32, 17-Feb-2015
780,Revenue,CCHD,Bed Purchasing - South,Permanent Residential,Fairview House,1039.6, 17-Feb-2015
781,Revenue,CCHD,Bed Purchasing - South,Permanent Residential,Fairview House,1437.4, 17-Feb-2015
782,Revenue,CCHD,Bed Purchasing - North,Permanent Residential,Faith House,1404.2, 17-Feb-2015
783,Revenue,CCHD,Bed Purchasing - North,Respite Emergency - Residential,Faith House,950, 17-Feb-2015
784,Revenue,CCHD,Bed Purchasing - North,Permanent Residential,Faith House,852.55, 17-Feb-2015
785,Revenue,CCHD,Bed Purchasing - Southmead Hospital,Permanent Residential,Faith House,1223.28, 17-Feb-2015
786,Revenue,CCHD,Bed Purchasing - North,Permanent Residential,Fernbank,7706, 17-Feb-2015
787,Revenue,CCHD,South Glos Users in South Glos Homes,Permanent Nursing,Field House Care Home,982.17, 17-Feb-2015
788,Revenue,CCHD,Supporting People Programme,Grants to Voluntary Bodies,Freeways Trust Limited,7967, 27-Feb-2015
789,Revenue,CCHD,Freeways,Permanent Residential,Freeways Trust Limited,3611.8, 10-Feb-2015
790,Revenue,CCHD,Freeways,Permanent Residential,Freeways Trust Limited,2269.08, 10-Feb-2015
791,Revenue,CCHD,Freeways,Permanent Residential,Freeways Trust Limited,2346.88, 10-Feb-2015
792,Revenue,CCHD,Freeways,Permanent Residential,Freeways Trust Limited,2993.72, 10-Feb-2015
793,Revenue,CCHD,Freeways,Permanent Residential,Freeways Trust Limited,2346.88, 10-Feb-2015
794,Revenue,CCHD,Freeways,Permanent Residential,Freeways Trust Limited,3357.44, 10-Feb-2015
795,Revenue,CCHD,Freeways,Permanent Residential,Freeways Trust Limited,3522.28, 10-Feb-2015
796,Revenue,CCHD,Freeways,Permanent Residential,Freeways Trust Limited,3023.2, 10-Feb-2015
797,Revenue,CCHD,Freeways,Permanent Residential,Freeways Trust Limited,2870.2, 10-Feb-2015
798,Revenue,CCHD,Freeways,Permanent Residential,Freeways Trust Limited,3211.48, 10-Feb-2015
799,Revenue,CCHD,Freeways,Permanent Residential,Freeways Trust Limited,3077.36, 10-Feb-2015
800,Revenue,CCHD,Freeways,Permanent Residential,Freeways Trust Limited,3573.72, 10-Feb-2015
801,Revenue,CCHD,Freeways,Permanent Residential,Freeways Trust Limited,2440.84, 10-Feb-2015
802,Revenue,CCHD,Freeways,Permanent Residential,Freeways Trust Limited,2425.52, 10-Feb-2015
803,Revenue,CCHD,Freeways,Permanent Residential,Freeways Trust Limited,2425.52, 10-Feb-2015
804,Revenue,CCHD,Freeways,Permanent Residential,Freeways Trust Limited,3242.64, 10-Feb-2015
805,Revenue,CCHD,Supported Living - South,Private & Voluntary Home Care,Freeways Trust Limited,1306.44, 03-Feb-2015
806,Revenue,CCHD,Supported Living - South,Private & Voluntary Home Care,Freeways Trust Limited,1163.7, 02-Feb-2015
807,Revenue,CCHD,Supported Living - South,Private & Voluntary Home Care,Freeways Trust Limited,1048.59, 06-Feb-2015
808,Revenue,CCHD,Bed Purchasing - North,Permanent Residential,Freeways Trust Ltd,2860.04, 17-Feb-2015
809,Revenue,CCHD,Bed purchasing - S28A Under 65 - South,Permanent Residential,Freeways Trust Ltd,2924.48, 17-Feb-2015
810,Revenue,CCHD,Bed Purchasing - North,Permanent Residential,Freeways Trust Ltd,3129.84, 17-Feb-2015
811,Revenue,CCHD,Bed Purchasing - North,Permanent Residential,Freeways Trust Ltd,2286.96, 17-Feb-2015
812,Revenue,CCHD,Bed Purchasing - North,Permanent Residential,Freeways Trust Ltd,2731.36, 17-Feb-2015
813,Revenue,CCHD,Bed Purchasing - South,Permanent Residential,Freeways Trust Ltd,3338.76, 17-Feb-2015
814,Revenue,CCHD,Bed Purchasing - North,Permanent Residential,Freeways Trust Ltd,2266.4, 17-Feb-2015
815,Revenue,CCHD,Bed Purchasing - South,Permanent Residential,Freeways Trust Ltd,2397.48, 17-Feb-2015
816,Revenue,CCHD,Bed Purchasing - North,Permanent Residential,Freeways Trust Ltd,2731.36, 17-Feb-2015
817,Revenue,CCHD,Bed Purchasing - North,Permanent Residential,Freeways Trust Ltd,3155.72, 17-Feb-2015
818,Revenue,CCHD,18-25 Year Olds,Permanent Residential,Freeways Trust Ltd,3373.2, 17-Feb-2015
819,Revenue,CCHD,Bed Purchasing - North,Permanent Residential,Freeways Trust Ltd,3823.88, 17-Feb-2015
820,Revenue,CCHD,Bed Purchasing - South,Permanent Residential,Freeways Trust Ltd,7828.76, 17-Feb-2015
821,Revenue,CCHD,Bed Purchasing - Southmead Hospital,Permanent Nursing,Frenchay Park Nursing Home,1010, 17-Feb-2015
822,Revenue,CCHD,Sexual Health,Other Small Contracts,Frome Valley Medical Centre,536.84, 12-Feb-2015
823,Revenue,CCHD,Bed Purchasing - South,Permanent Nursing,Fshc  1St Floor,896.16, 17-Feb-2015
824,Revenue,CCHD,Bed Purchasing - Southmead Hospital,Permanent Residential,Fshc  1St Floor,894.12, 17-Feb-2015
825,Revenue,CCHD,Bed Purchasing - South,Permanent Nursing,Fshc  1St Floor,953.52, 17-Feb-2015
826,Revenue,CCHD,Bed Purchasing - South,Permanent Nursing,Fshc  1St Floor,1388.2, 17-Feb-2015
827,Revenue,CCHD,Bed Purchasing - South,Permanent Residential,Fshc  1St Floor,1260.2, 17-Feb-2015
828,Revenue,CCHD,Bed Purchasing - Southmead Hospital,Permanent Nursing,Fshc  1St Floor,1352.2, 17-Feb-2015
829,Revenue,CCHD,Bed Purchasing - Southmead Hospital,Permanent Nursing,Fshc  1St Floor,1388.2, 17-Feb-2015
830,Revenue,CCHD,Bed Purchasing - Southmead Hospital,Permanent Nursing,Fshc  1St Floor,1388.2, 17-Feb-2015
831,Revenue,CCHD,Bed Purchasing - South,Permanent Residential,Fshc  1St Floor,6886.1, 17-Feb-2015
832,Revenue,CCHD,Bed Purchasing - South,Permanent Residential,Fshc  1St Floor,1260.2, 17-Feb-2015
833,Revenue,CCHD,Bed Purchasing - Southmead Hospital,Permanent Nursing,Fshc  1St Floor,1325.8, 17-Feb-2015
834,Revenue,CCHD,Bed Purchasing - Southmead Hospital,Permanent Nursing,Fshc  1St Floor,1050.56, 17-Feb-2015
835,Revenue,CCHD,Bed Purchasing - South,Permanent Residential,Fshc  1St Floor,1216.24, 17-Feb-2015
836,Revenue,CCHD,Bed Purchasing - Southmead Hospital,Permanent Nursing,Fshc  1St Floor,1198.92, 17-Feb-2015
837,Revenue,CCHD,Bed Purchasing - South,Permanent Nursing,Fshc  1St Floor,1012.92, 17-Feb-2015
838,Revenue,CCHD,Bed Purchasing - Southmead Hospital,Permanent Nursing,Fshc  1St Floor,1388.2, 17-Feb-2015
839,Revenue,CCHD,Bed Purchasing - South,Permanent Nursing,Fshc  1St Floor,1115.96, 17-Feb-2015
840,Revenue,CCHD,Bed Purchasing - South,Permanent Nursing,Fshc  1St Floor,1226.68, 17-Feb-2015
841,Revenue,CCHD,Bed Purchasing - Southmead Hospital,Permanent Nursing,Fshc  1St Floor,1636.09, 17-Feb-2015
842,Revenue,CCHD,Bed Purchasing - Southmead Hospital,Permanent Nursing,Fshc  1St Floor,1388.2, 17-Feb-2015
843,Revenue,CCHD,Bed Purchasing - Southmead Hospital,Permanent Nursing,Fshc  1St Floor,1365.64, 17-Feb-2015
844,Revenue,CCHD,Bed Purchasing - Southmead Hospital,Permanent Nursing,Fshc  1St Floor,1388.2, 17-Feb-2015
845,Revenue,CCHD,Bed Purchasing - Southmead Hospital,Permanent Nursing,Fshc  1St Floor,1884, 17-Feb-2015
846,Revenue,CCHD,Bed Purchasing - North,Permanent Nursing,Fshc  1St Floor,1884, 17-Feb-2015
847,Revenue,CCHD,Bed Purchasing - Southmead Hospital,Permanent Nursing,Fshc  1St Floor,1204.12, 17-Feb-2015
848,Revenue,CCHD,Bed Purchasing - South,Permanent Nursing,Fshc  1St Floor,1388.2, 17-Feb-2015
849,Revenue,CCHD,Bed Purchasing - Southmead Hospital,Permanent Nursing,Fshc  1St Floor,1388.2, 17-Feb-2015
850,Revenue,CCHD,South Glos Users in South Glos Homes,Permanent Nursing,Fshc  1St Floor,1283.16, 17-Feb-2015
851,Revenue,CCHD,Bed Purchasing - South,Permanent Nursing,Fshc  1St Floor,1337.52, 17-Feb-2015
852,Revenue,CCHD,Bed Purchasing - South,Permanent Nursing,Fshc  1St Floor,1372.2, 17-Feb-2015
853,Revenue,CCHD,Bed Purchasing - South,Permanent Nursing,Fshc  1St Floor,1229.44, 17-Feb-2015
854,Revenue,CCHD,Bed Purchasing - North,Permanent Nursing,Fshc  1St Floor,781.44, 17-Feb-2015
855,Revenue,CCHD,Bed Purchasing - South,Permanent Nursing,Fshc  1St Floor,993.48, 17-Feb-2015
856,Revenue,CCHD,Bed Purchasing - North,Permanent Residential,Fshc  1St Floor,1260.2, 17-Feb-2015
857,Revenue,CCHD,Bed Purchasing - Southmead Hospital,Permanent Nursing,Fshc  1St Floor,944.48, 17-Feb-2015
858,Revenue,CCHD,Bed Purchasing - North,Permanent Nursing,Fshc  1St Floor,1290.68, 17-Feb-2015
859,Revenue,CCHD,Bed Purchasing - Southmead Hospital,Permanent Nursing,Fshc  1St Floor,1602.96, 17-Feb-2015
860,Revenue,CCHD,Bed Purchasing - Southmead Hospital,Permanent Residential,Fshc  1St Floor,1142.92, 17-Feb-2015
861,Revenue,CCHD,Bed Purchasing - North,Permanent Nursing,Fshc  1St Floor,1347.08, 17-Feb-2015
862,Revenue,CCHD,Bed Purchasing - North,Permanent Nursing,Fshc  1St Floor,1039.6, 17-Feb-2015
863,Revenue,CCHD,Bed Purchasing - Southmead Hospital,Permanent Nursing,Fshc  1St Floor,1104.08, 17-Feb-2015
864,Revenue,CCHD,Bed Purchasing - Southmead Hospital,Permanent Nursing,Fshc  1St Floor,1129, 17-Feb-2015
865,Revenue,CCHD,Bed Purchasing - Southmead Hospital,Permanent Nursing,Fshc  1St Floor,1289.2, 17-Feb-2015
866,Revenue,CCHD,Bed Purchasing - Southmead Hospital,Permanent Nursing,Fshc  1St Floor,1128.8, 17-Feb-2015
867,Revenue,CCHD,Bed Purchasing - Southmead Hospital,Respite Emergency - Residential,Fshc  1St Floor,2230.86, 17-Feb-2015
868,Revenue,CCHD,Bed Purchasing - Southmead Hospital,Permanent Nursing,Fshc  1St Floor,1035.08, 17-Feb-2015
869,Revenue,CCHD,South Glos Users in South Glos Homes,Permanent Nursing,Fshc  1St Floor,950.49, 17-Feb-2015
870,Revenue,CCHD,Bed Purchasing - North,Permanent Residential,Fshc  1St Floor,882.33, 17-Feb-2015
871,Revenue,CCHD,Bed Purchasing - South,Permanent Residential,Fshc  1St Floor,1132.6, 17-Feb-2015
872,Revenue,CCHD,Bed Purchasing - Southmead Hospital,Permanent Nursing,Fshc  1St Floor,2060, 17-Feb-2015
873,Revenue,CCHD,Bed Purchasing - Southmead Hospital,Permanent Nursing,Fshc  1St Floor,1375.6, 17-Feb-2015
874,Revenue,CCHD,Bed Purchasing - Southmead Hospital,Permanent Nursing,Fshc  1St Floor,1388.2, 17-Feb-2015
875,Revenue,CCHD,Bed Purchasing - North,Permanent Nursing,Fshc  1St Floor,574.28, 17-Feb-2015
876,Revenue,CCHD,Bed Purchasing - North,Permanent Nursing,Fshc  1St Floor,1489.72, 17-Feb-2015
877,Revenue,CCHD,Bed Purchasing - North,Permanent Nursing,Fshc  1St Floor,1289.2, 17-Feb-2015
878,Revenue,CCHD,Bed Purchasing - Southmead Hospital,Permanent Residential,Fshc  1St Floor,621.36, 17-Feb-2015
879,Revenue,CCHD,Bed Purchasing - Southmead Hospital,Permanent Nursing,Fshc  1St Floor,1372.56, 17-Feb-2015
880,Revenue,CCHD,Bed Purchasing - North,Permanent Nursing,Fshc  1St Floor,1312.76, 17-Feb-2015
881,Revenue,CCHD,South Glos Users in South Glos Homes,Permanent Nursing,Fshc  1St Floor,1599.98, 17-Feb-2015
882,Revenue,CCHD,Bed Purchasing - North,Permanent Nursing,Fshc  1St Floor,907.72, 17-Feb-2015
883,Revenue,CCHD,Bed Purchasing - Southmead Hospital,Permanent Nursing,Fshc  1St Floor,1564.2, 17-Feb-2015
884,Revenue,CCHD,Bed Purchasing - South,Permanent Nursing,Fshc  1St Floor,1338.84, 17-Feb-2015
885,Revenue,CCHD,Bed Purchasing - North,Permanent Nursing,Fshc  1St Floor,1471.32, 17-Feb-2015
886,Revenue,CCHD,Bed Purchasing - North,Permanent Nursing,Fshc  1St Floor,2247.54, 17-Feb-2015
887,Revenue,CCHD,Bed Purchasing - North,Permanent Nursing,Fshc  1St Floor,623.08, 17-Feb-2015
888,Revenue,CCHD,Bed Purchasing - North,Permanent Residential,Fshc  1St Floor,15103.32, 17-Feb-2015
889,Revenue,CCHD,Bed purchasing - Elderly MH - North,Permanent Residential,Fshc  1St Floor,21720.34, 17-Feb-2015
890,Revenue,CCHD,Bed Purchasing - North,Permanent Residential,Fshc  1St Floor,1404.96, 17-Feb-2015
891,Revenue,CCHD,Bed Purchasing - North,Permanent Nursing,Fshc  1St Floor,1552.64, 17-Feb-2015
892,Revenue,CCHD,Bed purchasing - Elderly S117 - South,Permanent Nursing,Fshc  1St Floor,1884, 17-Feb-2015
893,Revenue,CCHD,Bed Purchasing - North,Permanent Residential,Fshc  1St Floor,1263.96, 17-Feb-2015
894,Revenue,CCHD,Bed Purchasing - Southmead Hospital,Permanent Nursing,Fshc  1St Floor,1388.2, 17-Feb-2015
895,Revenue,CCHD,Bed Purchasing - Southmead Hospital,Permanent Residential,Fshc  1St Floor,1260.2, 17-Feb-2015
896,Revenue,CCHD,Bed Purchasing - North,Permanent Nursing,Fshc  1St Floor,1388.2, 17-Feb-2015
897,Revenue,CCHD,Bed Purchasing - North,Permanent Residential,Fshc  1St Floor,1401.92, 17-Feb-2015
898,Revenue,CCHD,Bed Purchasing - North,Permanent Nursing,Fshc  1St Floor,1592.2, 17-Feb-2015
899,Revenue,CCHD,Bed Purchasing - North,Permanent Nursing,Fshc  1St Floor,1388.2, 17-Feb-2015
900,Revenue,CCHD,Bed Purchasing - North,Permanent Residential,Fshc  1St Floor,1260.2, 17-Feb-2015
901,Revenue,CCHD,Bed Purchasing - Southmead Hospital,Permanent Nursing,Fshc  1St Floor,1192.48, 17-Feb-2015
902,Revenue,CCHD,Bed Purchasing - Southmead Hospital,Permanent Residential,Fshc  1St Floor,1260.2, 17-Feb-2015
903,Revenue,CCHD,Bed Purchasing - North,Permanent Nursing,Fshc  1St Floor,587.4, 17-Feb-2015
904,Revenue,CCHD,South Glos Users in South Glos Homes,Permanent Nursing,Fshc  1St Floor,633.66, 17-Feb-2015
905,Revenue,CCHD,Bed Purchasing - Southmead Hospital,Permanent Nursing,Fshc  1St Floor,1388.2, 17-Feb-2015
906,Revenue,CCHD,Bed Purchasing - Southmead Hospital,Permanent Nursing,Fshc  1St Floor,694.1, 17-Feb-2015
907,Revenue,CCHD,Bed Purchasing - North,Permanent Nursing,Fshc  1St Floor,738.4, 17-Feb-2015
908,Revenue,CCHD,Bed Purchasing - North,Permanent Nursing,Fshc  1St Floor,1388.2, 17-Feb-2015
909,Revenue,CCHD,South Glos Users in South Glos Homes,Permanent Nursing,Fshc  1St Floor,1267.31, 17-Feb-2015
910,Revenue,CCHD,Bed Purchasing - Southmead Hospital,Permanent Nursing,Fshc  1St Floor,1328.04, 17-Feb-2015
911,Revenue,CCHD,Bed Purchasing - North,Permanent Nursing,Fshc  1St Floor,1017.2, 17-Feb-2015
912,Revenue,CCHD,Bed Purchasing - Southmead Hospital,Permanent Nursing,Fshc  1St Floor,1388.2, 17-Feb-2015
913,Revenue,CCHD,Bed Purchasing - Southmead Hospital,Permanent Nursing,Fshc  1St Floor,586.56, 17-Feb-2015
914,Revenue,CCHD,Bed Purchasing - Southmead Hospital,Permanent Nursing,Fshc  1St Floor,1388.2, 17-Feb-2015
915,Revenue,CCHD,Bed Purchasing - Southmead Hospital,Permanent Nursing,Fshc  1St Floor,873.88, 17-Feb-2015
916,Revenue,CCHD,Bed Purchasing - Southmead Hospital,Permanent Nursing,Fshc  1St Floor,1084.4, 17-Feb-2015
917,Revenue,CCHD,Bed Purchasing - Southmead Hospital,Permanent Nursing,Fshc  1St Floor,1312.68, 17-Feb-2015
918,Revenue,CCHD,Bed Purchasing - North,Permanent Nursing,Fshc  1St Floor,1270.2, 17-Feb-2015
919,Revenue,CCHD,Bed Purchasing - South,Permanent Nursing,Fshc  1St Floor,1337.24, 17-Feb-2015
920,Revenue,CCHD,Bed Purchasing - Southmead Hospital,Permanent Nursing,Fshc  1St Floor,1822.56, 17-Feb-2015
921,Revenue,CCHD,Bed Purchasing - North,Permanent Residential,Fshc  1St Floor,3000.64, 17-Feb-2015
922,Revenue,CCHD,Bed Purchasing - North,Permanent Nursing,Fshc  1St Floor,1394.04, 17-Feb-2015
923,Revenue,CCHD,Bed Purchasing - Southmead Hospital,Permanent Residential,Fshc  1St Floor,1952, 17-Feb-2015
924,Revenue,CCHD,Bed Purchasing - Southmead Hospital,Permanent Nursing,Fshc  1St Floor,1319.28, 17-Feb-2015
925,Revenue,CCHD,Bed Purchasing - North,Respite Emergency - Nursing,Fshc  1St Floor,1884, 17-Feb-2015
926,Revenue,CCHD,Bed Purchasing - South,Permanent Residential,Fshc  1St Floor,1952, 17-Feb-2015
927,Revenue,CCHD,Bed Purchasing - Southmead Hospital,Permanent Nursing,Fshc  1St Floor,1381, 17-Feb-2015
928,Revenue,CCHD,Bed Purchasing - Southmead Hospital,Permanent Residential,Fshc  1St Floor,1484.2, 17-Feb-2015
929,Revenue,CCHD,Bed Purchasing - North,Permanent Residential,Fshc  1St Floor,1167.12, 17-Feb-2015
930,Revenue,CCHD,Bed Purchasing - North,Permanent Nursing,Fshc  1St Floor,1143.32, 17-Feb-2015
931,Revenue,CCHD,Bed Purchasing - Southmead Hospital,Permanent Nursing,Fshc  1St Floor,1388.2, 17-Feb-2015
932,Revenue,CCHD,Bed Purchasing - South,Permanent Nursing,Fshc  1St Floor,1248.96, 17-Feb-2015
933,Revenue,CCHD,South Glos Users in South Glos Homes,Permanent Nursing,Fshc  1St Floor,2043.54, 17-Feb-2015
934,Revenue,CCHD,Bed Purchasing - North,Permanent Nursing,Fshc  1St Floor,1884, 17-Feb-2015
935,Revenue,CCHD,Bed Purchasing - Southmead Hospital,Permanent Nursing,Fshc  1St Floor,1203.24, 17-Feb-2015
936,Revenue,CCHD,Bed Purchasing - Southmead Hospital,Permanent Nursing,Fshc  1St Floor,1384.2, 17-Feb-2015
937,Revenue,CCHD,Bed Purchasing - South,Permanent Residential,Fshc  1St Floor,901.6, 17-Feb-2015
938,Revenue,CCHD,Bed Purchasing - South,Permanent Nursing,Fshc  1St Floor,1236.24, 17-Feb-2015
939,Revenue,CCHD,Bed Purchasing - South,Permanent Residential,Fshc  1St Floor,1260.2, 17-Feb-2015
940,Revenue,CCHD,Bed Purchasing - Southmead Hospital,Permanent Nursing,Fshc  1St Floor,1388.2, 17-Feb-2015
941,Revenue,CCHD,Bed Purchasing - Southmead Hospital,Permanent Nursing,Fshc  1St Floor,1388.2, 17-Feb-2015
942,Revenue,CCHD,Bed Purchasing - Southmead Hospital,Permanent Nursing,Fshc  1St Floor,1308.28, 17-Feb-2015
943,Revenue,CCHD,Bed Purchasing - Southmead Hospital,Permanent Nursing,Fshc  1St Floor,997.48, 17-Feb-2015
944,Revenue,CCHD,Bed Purchasing - Southmead Hospital,Permanent Residential,Fshc  1St Floor,1475.64, 17-Feb-2015
945,Revenue,CCHD,Bed Purchasing - South,Permanent Nursing,Fshc  1St Floor,1227.24, 17-Feb-2015
946,Revenue,CCHD,Bed purchasing - Elderly S117 - South,Permanent Nursing,Fshc  1St Floor,1884, 17-Feb-2015
947,Revenue,CCHD,Bed Purchasing - Southmead Hospital,Permanent Residential,Fshc  1St Floor,1122.08, 17-Feb-2015
948,Revenue,CCHD,Bed Purchasing - South,Permanent Nursing,Fshc  1St Floor,1385.4, 17-Feb-2015
949,Revenue,CCHD,Bed Purchasing - South,Permanent Residential,Fshc  1St Floor,1371.16, 17-Feb-2015
950,Revenue,CCHD,Bed Purchasing - Southmead Hospital,Permanent Nursing,Fshc  1St Floor,777.8, 17-Feb-2015
951,Revenue,CCHD,Bed Purchasing - North,Permanent Residential,Fshc  1St Floor,1216.92, 17-Feb-2015
952,Revenue,CCHD,Bed Purchasing - South,Permanent Nursing,Fshc  1St Floor,1193.88, 17-Feb-2015
953,Revenue,CCHD,Bed Purchasing - South,Permanent Nursing,Fshc  1St Floor,1304.72, 17-Feb-2015
954,Revenue,CCHD,Bed Purchasing - South,Permanent Nursing,Fshc  1St Floor,1668.4, 17-Feb-2015
955,Revenue,CCHD,Bed Purchasing - South,Permanent Nursing,Fshc  1St Floor,1132.32, 17-Feb-2015
956,Revenue,CCHD,Bed Purchasing - Southmead Hospital,Permanent Nursing,Fshc  1St Floor,1224.08, 17-Feb-2015
957,Revenue,CCHD,Bed Purchasing - Southmead Hospital,Permanent Nursing,Fshc  1St Floor,958.64, 17-Feb-2015
958,Revenue,CCHD,Bed Purchasing - Southmead Hospital,Permanent Nursing,Fshc  1St Floor,1549, 17-Feb-2015
959,Revenue,CCHD,Bed Purchasing - Southmead Hospital,Permanent Nursing,Fshc  1St Floor,1364.92, 17-Feb-2015
960,Revenue,CCHD,Bed Purchasing - Southmead Hospital,Permanent Nursing,Fshc  1St Floor,1388.2, 17-Feb-2015
961,Revenue,CCHD,Bed Purchasing - Southmead Hospital,Permanent Nursing,Fshc  1St Floor,881.8, 17-Feb-2015
962,Revenue,CCHD,Bed Purchasing - South,Permanent Nursing,Fshc  1St Floor,1199.48, 17-Feb-2015
963,Revenue,CCHD,Bed Purchasing - South,Permanent Residential,Fshc  1St Floor,2704.2, 17-Feb-2015
964,Revenue,CCHD,Bed Purchasing - North,Permanent Nursing,Fshc  1St Floor,1402.4, 17-Feb-2015
965,Revenue,CCHD,Bed Purchasing - Southmead Hospital,Permanent Nursing,Fshc  1St Floor,1881.7, 17-Feb-2015
966,Revenue,CCHD,Bed Purchasing - North,Respite Emergency - Residential,Fshc  1St Floor,6847.08, 17-Feb-2015
967,Revenue,CCHD,Bed Purchasing - North,Respite Emergency - Residential,Fshc  1St Floor,949.1, 17-Feb-2015
968,Revenue,CCHD,Bed Purchasing - Southmead Hospital,Permanent Nursing,Fshc  1St Floor,1284.32, 17-Feb-2015
969,Revenue,CCHD,Bed Purchasing - North,Permanent Nursing,Fshc  1St Floor,1346.88, 17-Feb-2015
970,Revenue,CCHD,Bed Purchasing - South,Permanent Nursing,Fshc  1St Floor,1196.88, 17-Feb-2015
971,Revenue,CCHD,Bed Purchasing - Southmead Hospital,Permanent Residential,Fshc  1St Floor,1550.64, 17-Feb-2015
972,Revenue,CCHD,Bed Purchasing - North,Permanent Nursing,Fshc  1St Floor,843.72, 17-Feb-2015
973,Revenue,CCHD,Bed Purchasing - North,Permanent Nursing,Fshc  1St Floor,1496.2, 17-Feb-2015
974,Revenue,CCHD,Bed Purchasing - North,Permanent Nursing,Fshc  1St Floor,1229.36, 17-Feb-2015
975,Revenue,CCHD,Bed Purchasing - Southmead Hospital,Permanent Nursing,Fshc  1St Floor,1344.2, 17-Feb-2015
976,Revenue,CCHD,Bed Purchasing - South,Permanent Nursing,Fshc  1St Floor,857.04, 17-Feb-2015
977,Revenue,CCHD,Bed Purchasing - North,Permanent Nursing,Fshc  1St Floor,1154.04, 17-Feb-2015
978,Revenue,CCHD,Bed Purchasing - Southmead Hospital,Permanent Nursing,Fshc  1St Floor,1496.2, 17-Feb-2015
979,Revenue,CCHD,Bed Purchasing - North,Permanent Nursing,Fshc  1St Floor,1368.56, 17-Feb-2015
980,Revenue,CCHD,Bed Purchasing - Southmead Hospital,Permanent Residential,Fshc  1St Floor,1233.08, 17-Feb-2015
981,Revenue,CCHD,Bed Purchasing - Southmead Hospital,Permanent Nursing,Fshc  1St Floor,1263.24, 17-Feb-2015
982,Revenue,CCHD,Bed Purchasing - Southmead Hospital,Permanent Nursing,Fshc  1St Floor,1236.88, 17-Feb-2015
983,Revenue,CCHD,Bed purchasing - Elderly S117 - South,Permanent Nursing,Fshc  1St Floor,1992, 17-Feb-2015
984,Revenue,CCHD,Bed Purchasing - North,Permanent Residential,Fshc  1St Floor,1125.72, 17-Feb-2015
985,Revenue,CCHD,Bed Purchasing - Southmead Hospital,Permanent Nursing,Fshc  1St Floor,950.68, 17-Feb-2015
986,Revenue,CCHD,Bed Purchasing - Elderly S117- North,Permanent Nursing,Fshc  1St Floor,1992, 17-Feb-2015
987,Revenue,CCHD,Bed Purchasing - North,Permanent Residential,Fshc  1St Floor,1432.2, 17-Feb-2015
988,Revenue,CCHD,Bed Purchasing - Southmead Hospital,Permanent Nursing,Fshc  1St Floor,1100.44, 17-Feb-2015
989,Revenue,CCHD,Bed Purchasing - North,Permanent Residential,Fshc  1St Floor,1043.24, 17-Feb-2015
990,Revenue,CCHD,Bed Purchasing - South,Permanent Residential,Fshc  1St Floor,1351.48, 17-Feb-2015
991,Revenue,CCHD,Bed Purchasing - Southmead Hospital,Permanent Residential,Fshc  1St Floor,806.6, 17-Feb-2015
992,Revenue,CCHD,Bed Purchasing - South,Permanent Residential,Gatchell House,1420.84, 17-Feb-2015
993,Revenue,CCHD,CAH Assistant Directors,Agency Staff (Admin/Support Staff) Pay,Gatenby Sanderson Limited,16225, 11-Feb-2015
994,Revenue,CCHD,Alexandra Way,Premises Maintenance by Contractor,George Grimes,2380, 25-Feb-2015
995,Revenue,CCHD,Alexandra Way,Premises Maintenance by Contractor,George Grimes,991, 06-Feb-2015
996,Revenue,CCHD,Section 117 Placements MH Younger,Permanent Residential,Gladstone House,2762.16, 17-Feb-2015
997,Revenue,CCHD,Bed Purchasing - South,Permanent Residential,Glasallt Fawr,4615.6, 17-Feb-2015
998,Revenue,CCHD,Bed Purchasing - North,Permanent Residential,Glebe House Nursing Home,2147.6, 17-Feb-2015
999,Revenue,CCHD,Bed Purchasing - North,Permanent Nursing,Glebe House Nursing Home,1982.08, 17-Feb-2015
1000,Revenue,CCHD,Bed Purchasing - Southmead Hospital,Permanent Residential,Glebe House Nursing Home,1346.16, 17-Feb-2015
1001,Revenue,CCHD,Bed Purchasing - South,Permanent Residential,Glebe House Nursing Home,2044.08, 17-Feb-2015
1002,Revenue,CCHD,Bed Purchasing - North,Permanent Residential,Glebe House Nursing Home,1869.44, 17-Feb-2015
1003,Revenue,CCHD,Bed Purchasing - North,Permanent Nursing,Glebe House Nursing Home,1832.52, 17-Feb-2015
1004,Revenue,CCHD,Bed Purchasing - North,Permanent Nursing,Glebe House Nursing Home,2166.72, 17-Feb-2015
1005,Revenue,CCHD,Bed Purchasing - North,Permanent Residential,Glebe House Nursing Home,2593, 17-Feb-2015
1006,Revenue,CCHD,Bed Purchasing - South,Permanent Residential,Gordena Care Home,2113.64, 17-Feb-2015
1007,Revenue,CCHD,Bed Purchasing - South,Permanent Residential,Gordena Care Home,4799.84, 17-Feb-2015
1008,Revenue,CCHD,Bed Purchasing - South,Permanent Residential,Gordena Care Home,3159.76, 17-Feb-2015
1009,Revenue,CCHD,Bed Purchasing - South,Permanent Residential,Gordena Care Home,2968.16, 17-Feb-2015
1010,Revenue,CCHD,Bed Purchasing - South,Permanent Residential,Gordena Care Home,1933.24, 17-Feb-2015
1011,Revenue,CCHD,Bed Purchasing - South,Permanent Residential,Gordena Care Limited,4217.76, 17-Feb-2015
1012,Revenue,CCHD,Bed purchasing - S28A Under 65 - South,Permanent Residential,Gordena Care Limited,4116, 17-Feb-2015
1013,Revenue,CCHD,Bed Purchasing - North,Permanent Residential,Gordena Care Limited,4218.96, 17-Feb-2015
1014,Revenue,CCHD,Bed Purchasing - South,Permanent Nursing,Gracefields Nursing Home,1705.28, 17-Feb-2015
1015,Revenue,CCHD,Bed purchasing - Elderly S117 - South,Permanent Nursing,Gracefields Nursing Home,2395.8, 17-Feb-2015
1016,Revenue,CCHD,Bed purchasing - Elderly S117 - South,Permanent Nursing,Gracefields Nursing Home,2356.44, 17-Feb-2015
1017,Revenue,CCHD,South Glos Users in South Glos Homes,Permanent Nursing,Gracefields Nursing Home,2059.39, 17-Feb-2015
1018,Revenue,CCHD,Bed Purchasing - South,Permanent Nursing,Gracefields Nursing Home,2227.8, 17-Feb-2015
1019,Revenue,CCHD,South Glos Users in South Glos Homes,Permanent Nursing,Gracefields Nursing Home,2281.17, 17-Feb-2015
1020,Revenue,CCHD,Bed Purchasing - Southmead Hospital,Permanent Nursing,Gracefields Nursing Home,1576.8, 17-Feb-2015
1021,Revenue,CCHD,South Glos Users in South Glos Homes,Permanent Nursing,Gracefields Nursing Home,760.39, 17-Feb-2015
1022,Revenue,CCHD,South Glos Users in South Glos Homes,Permanent Nursing,Gracefields Nursing Home,570.29, 17-Feb-2015
1023,Revenue,CCHD,South Glos Users in South Glos Homes,Permanent Nursing,Gracefields Nursing Home,2059.39, 17-Feb-2015
1024,Revenue,CCHD,Bed Purchasing - Southmead Hospital,Permanent Nursing,Gracefields Nursing Home,1860.64, 17-Feb-2015
1025,Revenue,CCHD,Bed Purchasing - Southmead Hospital,Permanent Nursing,Gracefields Nursing Home,1334.39, 17-Feb-2015
1026,Revenue,CCHD,Bed Purchasing - Southmead Hospital,Permanent Nursing,Gracefields Nursing Home,1530.44, 17-Feb-2015
1027,Revenue,CCHD,Bed Purchasing - North,Permanent Residential,Greensleeves,1331.92, 17-Feb-2015
1028,Revenue,CCHD,Bed Purchasing - South,Permanent Residential,Grove Care,4122.73, 17-Feb-2015
1029,Revenue,CCHD,Bed Purchasing - North,Permanent Residential,Gwendoline House,1138.52, 17-Feb-2015
1030,Revenue,CCHD,Bed Purchasing - South,Permanent Residential,Gwendoline House,952.12, 17-Feb-2015
1031,Revenue,CCHD,Bed Purchasing - South,Permanent Residential,Gwendoline House,13848.86, 17-Feb-2015
1032,Revenue,CCHD,Bed Purchasing - South,Permanent Residential,Gwendoline House,1292.56, 17-Feb-2015
1033,Revenue,CCHD,Bed Purchasing - South,Permanent Residential,Gwendoline House,1143.56, 17-Feb-2015
1034,Revenue,CCHD,Bed Purchasing - South,Permanent Residential,Gwendoline House,1353.82, 17-Feb-2015
1035,Revenue,CCHD,Bed Purchasing - Southmead Hospital,Permanent Residential,Gwendoline House,1620.2, 17-Feb-2015
1036,Revenue,CCHD,Supporting People Programme,Grants to Voluntary Bodies,Habinteg Housing Association,1358.58, 27-Feb-2015
1037,Revenue,CCHD,Social Lettings Agency,Fees - General,Individual,15.78, 27-Feb-2015
1038,Revenue,CCHD,Social Lettings Agency,Other Supplies & Services,Individual,508.21, 27-Feb-2015
1039,Revenue,CCHD,Supporting People Programme,Grants to Voluntary Bodies,Hanover Housing Association,972.33, 27-Feb-2015
1040,Revenue,CCHD,Bed Purchasing - South,Permanent Residential,Harefield Hall,1347.12, 17-Feb-2015
1041,Revenue,CCHD,Bed Purchasing - South,Respite Emergency - Residential,Harefield Hall,895.14, 17-Feb-2015
1042,Revenue,CCHD,Bed Purchasing - South,Permanent Residential,Harefield Hall,1203.2, 17-Feb-2015
1043,Revenue,CCHD,Bed Purchasing - South,Permanent Residential,Harefield Hall,1831.12, 17-Feb-2015
1044,Revenue,CCHD,Bed Purchasing - South,Permanent Residential,Harefield Hall,1140.08, 17-Feb-2015
1045,Revenue,CCHD,Bed Purchasing - South,Permanent Residential,Harefield Hall,1036.4, 17-Feb-2015
1046,Revenue,CCHD,Bed Purchasing - South,Permanent Residential,Harefield Hall,1304.48, 17-Feb-2015
1047,Revenue,CCHD,Bed Purchasing - South,Permanent Residential,Harefield Hall,881.52, 17-Feb-2015
1048,Revenue,CCHD,Bed Purchasing - South,Permanent Residential,Harefield Hall,12454.67, 17-Feb-2015
1049,Revenue,CCHD,Woodleaze,Equipment Maintenance,Harvey Servicing & Engineering Limited,435, 19-Feb-2015
1050,Revenue,CCHD,Bed Purchasing - North,Permanent Nursing,Hc-One Ltd,1492.36, 17-Feb-2015
1051,Revenue,CCHD,Bed Purchasing - North,Permanent Residential,Hc-One Ltd,1006.84, 17-Feb-2015
1052,Revenue,CCHD,Bed Purchasing - North,Permanent Nursing,Hc-One Ltd,1518.6, 17-Feb-2015
1053,Revenue,CCHD,Bed Purchasing - North,Permanent Nursing,Hc-One Ltd,1496.2, 17-Feb-2015
1054,Revenue,CCHD,Bed Purchasing - Elderly S117- North,Permanent Nursing,Hc-One Ltd,1976.56, 17-Feb-2015
1055,Revenue,CCHD,Bed Purchasing - South,Permanent Residential,Heathwood Rest Home,1009.8, 17-Feb-2015
1056,Revenue,CCHD,Bed Purchasing - Southmead Hospital,Permanent Residential,Heathwood Rest Home,1009.8, 17-Feb-2015
1057,Revenue,CCHD,Home Care - Elderly - South,Day Care / Social Activities,Helping Hands Homecare,195.5, 11-Feb-2015
1058,Revenue,CCHD,Home Care - Elderly - South,Other Small Contracts,Helping Hands Homecare,1438.88, 11-Feb-2015
1059,Revenue,CCHD,Home Care - Elderly - North,Day Care / Social Activities,Helping Hands Homecare,750.72, 11-Feb-2015
1060,Revenue,CCHD,Home Care - Elderly - North,Other Small Contracts,Helping Hands Homecare,1939.36, 11-Feb-2015
1061,Revenue,CCHD,Day Care - North,Day Care / Social Activities,Helping Hands Homecare,93.84, 11-Feb-2015
1062,Revenue,CCHD,Under 65s -MH  Home Care Purch,Other Small Contracts,Helping Hands Homecare,31.28, 11-Feb-2015
1063,Revenue,CCHD,Home care - Elderly MH - North,Other Small Contracts,Helping Hands Homecare,62.56, 11-Feb-2015
1064,Revenue,CCHD,Home Care - Elderly - South,Day Care / Social Activities,Helping Hands Homecare,191.59, 11-Feb-2015
1065,Revenue,CCHD,Home Care - Elderly - South,Other Small Contracts,Helping Hands Homecare,1282.48, 11-Feb-2015
1066,Revenue,CCHD,Home Care - Elderly - North,Day Care / Social Activities,Helping Hands Homecare,461.38, 11-Feb-2015
1067,Revenue,CCHD,Home Care - Elderly - North,Other Small Contracts,Helping Hands Homecare,1407.6, 11-Feb-2015
1068,Revenue,CCHD,Under 65s -MH  Home Care Purch,Other Small Contracts,Helping Hands Homecare,31.28, 11-Feb-2015
1069,Revenue,CCHD,Home care - Elderly MH - North,Other Small Contracts,Helping Hands Homecare,31.28, 11-Feb-2015
1070,Revenue,CCHD,S117 Placements PCT,Permanent Residential,Hesley Hall,18209.52, 17-Feb-2015
1071,Revenue,CCHD,Bed Purchasing - Southmead Hospital,Permanent Residential,High Border Lodge,1442.96, 17-Feb-2015
1072,Revenue,CCHD,Bed Purchasing - Southmead Hospital,Permanent Residential,Highfield House,1227.52, 17-Feb-2015
1073,Revenue,CCHD,Bed Purchasing - Southmead Hospital,Permanent Residential,Highgate Studios,2348.48, 17-Feb-2015
1074,Revenue,CCHD,Bed Purchasing - North,Permanent Residential,Holmleigh Care Homes Ltd,4059.84, 17-Feb-2015
1075,Revenue,CCHD,Bed Purchasing - South,Permanent Residential,Holmleigh Care Homes Ltd,5102.6, 17-Feb-2015
1076,Revenue,CCHD,Bed Purchasing - North,Permanent Residential,Home Farm Trust Ltd  5-6 Brook Office Pa,2852.08, 17-Feb-2015
1077,Revenue,CCHD,Bed Purchasing - South,Permanent Residential,Home Farm Trust Ltd  5-6 Brook Office Pa,5126.28, 17-Feb-2015
1078,Revenue,CCHD,Bed Purchasing - North,Permanent Residential,Home Farm Trust Ltd  5-6 Brook Office Pa,3442.72, 17-Feb-2015
1079,Revenue,CCHD,Bed Purchasing - South,Permanent Residential,Home Farm Trust Ltd  5-6 Brook Office Pa,5550.52, 17-Feb-2015
1080,Revenue,CCHD,18-25 Year Olds,Permanent Residential,Home From Home Care Ltd,8988.2, 17-Feb-2015
1081,Revenue,CCHD,Bed Purchasing - North,Permanent Residential,Homes Caring For Autism Ltd  Churchill H,9907.24, 17-Feb-2015
1082,Revenue,CCHD,18-25 Year Olds,Permanent Residential,Homes Caring For Autism Ltd  Churchill H,12903.72, 17-Feb-2015
1083,Revenue,CCHD,Bed Purchasing - Southmead Hospital,Permanent Nursing,Horfield Care Limited,1423.31, 19-Feb-2015
1084,Revenue,CCHD,Bed Purchasing - Southmead Hospital,Permanent Nursing,Horfield Care Limited,2757.67, 19-Feb-2015
1085,Revenue,CCHD,Bed Purchasing - Southmead Hospital,Permanent Nursing,Horfield Care Limited,1716.91, 19-Feb-2015
1086,Revenue,CCHD,Bed Purchasing - Southmead Hospital,Permanent Nursing,Horfield Care Limited,1470.15, 19-Feb-2015
1087,Revenue,CCHD,Bed Purchasing - Southmead Hospital,Permanent Nursing,Horfield Care Limited,2757.67, 19-Feb-2015
1088,Revenue,CCHD,Bed Purchasing - South,Permanent Nursing,Horfield Care Limited,1551.44, 19-Feb-2015
1089,Revenue,CCHD,Bed Purchasing - Southmead Hospital,Permanent Nursing,Horfield Care Limited,1912.97, 19-Feb-2015
1090,Revenue,CCHD,Bed Purchasing - North,Permanent Nursing,Horfield Care Limited,2668.71, 19-Feb-2015
1091,Revenue,CCHD,Bed Purchasing - South,Permanent Nursing,Horfield Care Limited,1357.09, 19-Feb-2015
1092,Revenue,CCHD,Bed Purchasing - Southmead Hospital,Permanent Nursing,Horfield Care Limited,2757.67, 19-Feb-2015
1093,Revenue,CCHD,Bed Purchasing - Southmead Hospital,Respite Planned - Nursing,Horfield Care Limited,2266.59, 19-Feb-2015
1094,Revenue,CCHD,Bed Purchasing - South,Permanent Nursing,Horfield Care Limited,513.51, 19-Feb-2015
1095,Revenue,CCHD,Bed Purchasing - Southmead Hospital,Permanent Nursing,Horfield Care Limited,831.13, 19-Feb-2015
1096,Revenue,CCHD,Supporting People Programme,Grants to Voluntary Bodies,Housing 21,616.42, 27-Feb-2015
1097,Revenue,CCHD,Supporting People Programme,Grants to Voluntary Bodies,Housing 21,935, 27-Feb-2015
1098,Revenue,CCHD,Home Care - Elderly - North,Private & Voluntary Home Care,Housing 21,38183.98, 10-Feb-2015
1099,Revenue,CCHD,Home Care - Elderly - South,Private & Voluntary Home Care,Housing 21,24541.48, 27-Feb-2015
1100,Revenue,CCHD,Bed Purchasing - South,Permanent Residential,Improving Prospects Limited,14281.8, 26-Feb-2015
1101,Revenue,CCHD,Social Lettings Agency,Fees - General,Individual,11.6, 11-Feb-2015
1102,Revenue,CCHD,Social Lettings Agency,Other Supplies & Services,Individual,655.41, 11-Feb-2015
1103,Revenue,CCHD,Homeless - Private Sector Leasing,Other Supplies & Services,Jill Collins,594, 13-Feb-2015
1104,Revenue,CCHD,Training - Adult Services,Training Expenses,JK Training,700, 13-Feb-2015
1105,Revenue,CCHD,Training - Adult Services,Training Expenses,JK Training,1050, 27-Feb-2015
1106,Revenue,CCHD,Home Care - Elderly - South,Supported Living,Julia Simone- Supp. Ind.,1165.8, 17-Feb-2015
1107,Revenue,CCHD,Younger MH non-res purchasing,Supported Living,Julia Simone- Supp. Ind.,1165.8, 17-Feb-2015
1108,Revenue,CCHD,Home Care - Elderly - North,Supported Living,Julia Simone- Supp. Ind.,1165.8, 17-Feb-2015
1109,Revenue,CCHD,Younger MH non-res purchasing,Supported Living,Julia Simone- Supp. Ind.,1165.8, 17-Feb-2015
1110,Revenue,CCHD,Bed Purchasing - South,Permanent Residential,Julia Simone- Supp. Ind.,3960.52, 17-Feb-2015
1111,Revenue,CCHD,Bed purchasing -S28A  Under 65 - North,Permanent Residential,Julia Simone- Supp. Ind.,3494.52, 17-Feb-2015
1112,Revenue,CCHD,Bed Purchasing - South,Permanent Residential,Karenza Ltd,1260.94, 17-Feb-2015
1113,Revenue,CCHD,Community Support - North,Preventative Assistance,KCC Cleaning Services Ltd,1570, 03-Feb-2015
1114,Revenue,CCHD,Sexual Health,Other Small Contracts,Kennedy Way Surgery,702, 12-Feb-2015
1115,Revenue,CCHD,Bed Purchasing - Southmead Hospital,Permanent Residential,Kenver House Residential Home,1119.36, 17-Feb-2015
1116,Revenue,CCHD,Bed Purchasing - Southmead Hospital,Permanent Residential,Kenver House Residential Home,1643.72, 17-Feb-2015
1117,Revenue,CCHD,Bed Purchasing - Southmead Hospital,Permanent Residential,Kenver House Residential Home,1671.08, 17-Feb-2015
1118,Revenue,CCHD,Bed Purchasing - South,Permanent Residential,Kenver House Residential Home,1527.68, 17-Feb-2015
1119,Revenue,CCHD,Bed Purchasing - South,Permanent Residential,Kenver House Residential Home,1136.68, 17-Feb-2015
1120,Revenue,CCHD,Bed Purchasing - South,Permanent Residential,Kenver House Residential Home,1370.92, 17-Feb-2015
1121,Revenue,CCHD,Bed Purchasing - South,Respite Emergency - Residential,Kenver House Residential Home,1625.16, 17-Feb-2015
1122,Revenue,CCHD,Bed Purchasing - South,Permanent Residential,Kenver House Residential Home,1691.08, 17-Feb-2015
1123,Revenue,CCHD,Bed Purchasing - South,Permanent Residential,Kenver House Residential Home,2166.88, 17-Feb-2015
1124,Revenue,CCHD,Bed Purchasing - South,Permanent Residential,Kenver House Residential Home,4965.41, 17-Feb-2015
1125,Revenue,CCHD,Bed Purchasing - South,Permanent Residential,Kenver House Residential Home,1635.08, 17-Feb-2015
1126,Revenue,CCHD,Bed Purchasing - Southmead Hospital,Permanent Residential,Kenver House Residential Home,1671, 17-Feb-2015
1127,Revenue,CCHD,Bed Purchasing - South,Permanent Residential,Kenver House Residential Home,1414.64, 17-Feb-2015
1128,Revenue,CCHD,Bed Purchasing - Southmead Hospital,Permanent Residential,Kenver House Residential Home,1562.4, 17-Feb-2015
1129,Revenue,CCHD,Supporting People Programme,Grants to Voluntary Bodies,Keyring Living Support Networks,2917, 27-Feb-2015
1130,Revenue,CCHD,Children & Young People�s Health,Other Supplies & Services,Kid Rapt Limited,1473, 06-Feb-2015
1131,Revenue,CCHD,Bed Purchasing - North,Permanent Nursing,Kingfisher Lodge Care Centre,2514.24, 17-Feb-2015
1132,Revenue,CCHD,Sexual Health,Other Small Contracts,Kingswood Health Centre,2271.2, 12-Feb-2015
1133,Revenue,CCHD,Supporting People Programme,Grants to Voluntary Bodies,Kingswood Young Homeless Project,16943.67, 27-Feb-2015
1134,Revenue,CCHD,Bed Purchasing - North,Permanent Residential,Kisimul Group,11388.88, 17-Feb-2015
1135,Revenue,CCHD,Supporting People Programme,Grants to Voluntary Bodies,Knightstone Housing Association Limited,13513.75, 27-Feb-2015
1136,Revenue,CCHD,Supporting People Programme,Grants to Voluntary Bodies,Knightstone Housing Association Limited,8537.92, 27-Feb-2015
1137,Revenue,CCHD,Supporting People Programme,Grants to Voluntary Bodies,Knightstone Housing Association Limited,7602.5, 27-Feb-2015
1138,Revenue,CCHD,Supporting People Programme,Grants to Voluntary Bodies,Knightstone Housing Association Limited,1789.75, 27-Feb-2015
1139,Revenue,CCHD,Supporting People Programme,Grants to Voluntary Bodies,Knightstone Housing Association Limited,2482.75, 27-Feb-2015
1140,Revenue,CCHD,Supporting People Programme,Grants to Voluntary Bodies,Knightstone Housing Association Limited,2483.33, 27-Feb-2015
1141,Revenue,CCHD,Supporting People Programme,Grants to Voluntary Bodies,Knightstone Housing Association Limited,844.58, 27-Feb-2015
1142,Revenue,CCHD,Home Care - Elderly - South,Other Small Contracts,Kumari Care Limited,3050.5, 03-Feb-2015
1143,Revenue,CCHD,Home Care - Elderly - North,Other Small Contracts,Kumari Care Limited,666.34, 03-Feb-2015
1144,Revenue,CCHD,Day Care - South,Day Care / Social Activities,Kumari Care Limited,96.5, 03-Feb-2015
1145,Revenue,CCHD,Home Care - Elderly - South,Other Small Contracts,Kumari Care Limited,2676.05, 26-Feb-2015
1146,Revenue,CCHD,Home Care - Elderly - North,Other Small Contracts,Kumari Care Limited,834.31, 26-Feb-2015
1147,Revenue,CCHD,Day Care - South,Day Care / Social Activities,Kumari Care Limited,50.18, 26-Feb-2015
1148,Revenue,CCHD,Home Care - Elderly - South,Other Small Contracts,Kumari Care Limited,2902.72, 13-Feb-2015
1149,Revenue,CCHD,Home Care - Elderly - North,Other Small Contracts,Kumari Care Limited,833.91, 13-Feb-2015
1150,Revenue,CCHD,Day Care - South,Day Care / Social Activities,Kumari Care Limited,96.5, 13-Feb-2015
1151,Revenue,CCHD,Home Care - Elderly - South,Other Small Contracts,Kumari Care Limited,2956.76, 26-Feb-2015
1152,Revenue,CCHD,Home Care - Elderly - North,Other Small Contracts,Kumari Care Limited,833.86, 26-Feb-2015
1153,Revenue,CCHD,Day Care - South,Day Care / Social Activities,Kumari Care Limited,96.5, 26-Feb-2015
1154,Revenue,CCHD,Home Care - Elderly - South,Other Small Contracts,Kumari Care Limited,2821.66, 27-Feb-2015
1155,Revenue,CCHD,Home Care - Elderly - North,Other Small Contracts,Kumari Care Limited,833.86, 27-Feb-2015
1156,Revenue,CCHD,Bed Purchasing - North,Permanent Nursing,Leonard Cheshire  National Account Centr,10072.96, 17-Feb-2015
1157,Revenue,CCHD,South Glos Users in Gloucestershire Home,Permanent Nursing,Leonard Cheshire  National Account Centr,887.12, 17-Feb-2015
1158,Revenue,CCHD,Bed Purchasing - North,Permanent Residential,Leonard Cheshire  National Account Centr,5821.84, 17-Feb-2015
1159,Revenue,CCHD,Bed Purchasing - South,Permanent Residential,Leonard Cheshire  National Account Centr,6678.08, 17-Feb-2015
1160,Revenue,CCHD,Bed Purchasing - South,Permanent Residential,Leonard Cheshire  National Account Centr,2143.65, 17-Feb-2015
1161,Revenue,CCHD,Bed Purchasing - North,Permanent Nursing,Leonard Cheshire  National Account Centr,7041.2, 17-Feb-2015
1162,Revenue,CCHD,Bed Purchasing - North,Permanent Nursing,Leonard Cheshire  National Account Centr,5529.12, 17-Feb-2015
1163,Revenue,CCHD,South Glos Users in Gloucestershire Home,Permanent Nursing,Leonard Cheshire  National Account Centr,887.12, 17-Feb-2015
1164,Revenue,CCHD,18-25 Year Olds,Permanent Residential,Leonard Cheshire  National Account Centr,6393.04, 17-Feb-2015
1165,Revenue,CCHD,Bed Purchasing - North,Permanent Nursing,Leonard Cheshire  National Account Centr,2881.12, 17-Feb-2015
1166,Revenue,CCHD,Bed Purchasing - North,Permanent Nursing,Leonard Cheshire  National Account Centr,3869.32, 17-Feb-2015
1167,Revenue,CCHD,Bed Purchasing - North,Permanent Residential,Leonard Cheshire  National Account Centr,2932.64, 17-Feb-2015
1168,Revenue,CCHD,Bed Purchasing - North,Permanent Nursing,Leonard Cheshire  National Account Centr,3271.52, 17-Feb-2015
1169,Revenue,CCHD,Bed Purchasing - South,Permanent Nursing,Leonard Cheshire  National Account Centr,2908.6, 17-Feb-2015
1170,Revenue,CCHD,Bed Purchasing - Southmead Hospital,Permanent Nursing,Leonard Cheshire  National Account Centr,3041.76, 17-Feb-2015
1171,Revenue,CCHD,South Glos Users in all other LA Homes,Permanent Nursing,Leonard Cheshire  National Account Centr,610.44, 17-Feb-2015
1172,Revenue,CCHD,Bed Purchasing - North,Permanent Nursing,Leonard Cheshire  National Account Centr,3358.64, 17-Feb-2015
1173,Revenue,CCHD,Bed Purchasing - North,Permanent Nursing,Leonard Cheshire  National Account Centr,4127.12, 17-Feb-2015
1174,Revenue,CCHD,Supported Living - North,Private & Voluntary Home Care,Lifeways Community Care (Gloucester) Ltd,11373, 02-Feb-2015
1175,Revenue,CCHD,Woodleaze,Premises Maintenance by Contractor,Lionel Saunders & Co (Bristol) Limited,485, 17-Feb-2015
1176,Revenue,CCHD,Bed Purchasing - Southmead Hospital,Permanent Residential,Little Croft,1080.92, 17-Feb-2015
1177,Revenue,CCHD,Bed Purchasing - Southmead Hospital,Permanent Residential,Little Croft,1252.04, 17-Feb-2015
1178,Revenue,CCHD,Bed Purchasing - Southmead Hospital,Permanent Residential,Little Croft,1268.2, 17-Feb-2015
1179,Revenue,CCHD,Bed Purchasing - South,Permanent Residential,Little Croft,1570.6, 17-Feb-2015
1180,Revenue,CCHD,Bed Purchasing - South,Respite Emergency - Residential,Little Croft,550, 17-Feb-2015
1181,Revenue,CCHD,Bed Purchasing - Southmead Hospital,Permanent Residential,Little Croft,1287.96, 17-Feb-2015
1182,Revenue,CCHD,Bed Purchasing - South,Permanent Residential,Little Croft,903.84, 17-Feb-2015
1183,Revenue,CCHD,Bed Purchasing - Southmead Hospital,Permanent Residential,Little Croft,1748.76, 17-Feb-2015
1184,Revenue,CCHD,Bed Purchasing - Southmead Hospital,Permanent Residential,Little Croft,1432.2, 17-Feb-2015
1185,Revenue,CCHD,Bed Purchasing - South,Permanent Residential,Little Croft,1050.36, 17-Feb-2015
1186,Revenue,CCHD,Bed Purchasing - South,Permanent Residential,Little Croft,1405.4, 17-Feb-2015
1187,Revenue,CCHD,Bed Purchasing - Southmead Hospital,Permanent Residential,Little Croft,1260.2, 17-Feb-2015
1188,Revenue,CCHD,Bed Purchasing - Southmead Hospital,Permanent Residential,Little Croft,2823.12, 17-Feb-2015
1189,Revenue,CCHD,Bed Purchasing - Southmead Hospital,Permanent Residential,Little Croft,1254.72, 17-Feb-2015
1190,Revenue,CCHD,Bed Purchasing - Southmead Hospital,Permanent Residential,Little Croft,941.04, 17-Feb-2015
1191,Revenue,CCHD,Bed Purchasing - North,Permanent Residential,Little Croft,1367.56, 17-Feb-2015
1192,Revenue,CCHD,Bed Purchasing - Southmead Hospital,Permanent Residential,Little Croft,1260.2, 17-Feb-2015
1193,Revenue,CCHD,Bed Purchasing - North,Permanent Residential,Littlecroft Residential Homes  Longcroft,6481.28, 17-Feb-2015
1194,Revenue,CCHD,Home Care - Elderly - North,Day Care / Social Activities,Lloyds TSB Commercial Finance Limited,252, 03-Feb-2015
1195,Revenue,CCHD,Home Care - Elderly - North,Other Small Contracts,Lloyds TSB Commercial Finance Limited,6316.8, 03-Feb-2015
1196,Revenue,CCHD,Home Care - Elderly - North,Day Care / Social Activities,Lloyds TSB Commercial Finance Limited,256.2, 24-Feb-2015
1197,Revenue,CCHD,Home Care - Elderly - North,Other Small Contracts,Lloyds TSB Commercial Finance Limited,6270.6, 24-Feb-2015
1198,Revenue,CCHD,Supported Living - South,Private & Voluntary Home Care,Lloyds TSB Commercial Finance Limited,11907.36, 20-Feb-2015
1199,Revenue,CCHD,Supported Living - South,Private & Voluntary Home Care,Lloyds TSB Commercial Finance Limited,4074.18, 20-Feb-2015
1200,Revenue,CCHD,Supported Living - South,Private & Voluntary Home Care,Lloyds TSB Commercial Finance Limited,4341.24, 20-Feb-2015
1201,Revenue,CCHD,Supported Living - South,Private & Voluntary Home Care,Lloyds TSB Commercial Finance Limited,3996.22, 20-Feb-2015
1202,Revenue,CCHD,Supported Living - South,Private & Voluntary Home Care,Lloyds TSB Commercial Finance Limited,10138.24, 20-Feb-2015
1203,Revenue,CCHD,Supported Living - South,Private & Voluntary Home Care,Lloyds TSB Commercial Finance Limited,4117.14, 20-Feb-2015
1204,Revenue,CCHD,Supported Living - South,Private & Voluntary Home Care,Lloyds TSB Commercial Finance Limited,8456.72, 20-Feb-2015
1205,Revenue,CCHD,Supported Living - South,Private & Voluntary Home Care,Lloyds TSB Commercial Finance Limited,4175.48, 20-Feb-2015
1206,Revenue,CCHD,Supported Living - North,Private & Voluntary Home Care,Lloyds TSB Commercial Finance Limited,10267.2, 20-Feb-2015
1207,Revenue,CCHD,Supported Living - South,Private & Voluntary Home Care,Lloyds TSB Commercial Finance Limited,3918.06, 20-Feb-2015
1208,Revenue,CCHD,Supported Living - South,Private & Voluntary Home Care,Lloyds TSB Commercial Finance Limited,3634.65, 20-Feb-2015
1209,Revenue,CCHD,Supported Living - South,Private & Voluntary Home Care,Lloyds TSB Commercial Finance Limited,6339.81, 20-Feb-2015
1210,Revenue,CCHD,Supported Living - South,Private & Voluntary Home Care,Lloyds TSB Commercial Finance Limited,3954.36, 20-Feb-2015
1211,Revenue,CCHD,Supported Living - South,Private & Voluntary Home Care,Lloyds TSB Commercial Finance Limited,3910.26, 20-Feb-2015
1212,Revenue,CCHD,Supported Living - North,Private & Voluntary Home Care,Lloyds TSB Commercial Finance Limited,8709.76, 20-Feb-2015
1213,Revenue,CCHD,Supported Living - South,Private & Voluntary Home Care,Lloyds TSB Commercial Finance Limited,3810.33, 20-Feb-2015
1214,Revenue,CCHD,Supported Living - South,Private & Voluntary Home Care,Loga Care Ltd (T/A Logacare),3795.33, 05-Feb-2015
1215,Revenue,CCHD,Social Lettings Agency,Fees - General,Individual,10, 27-Feb-2015
1216,Revenue,CCHD,Social Lettings Agency,Other Supplies & Services,Individual,565, 27-Feb-2015
1217,Revenue,CCHD,Home Care - Elderly - North,Day Care / Social Activities,Lower Kilcott,1466, 17-Feb-2015
1218,Revenue,CCHD,Home Care - Elderly - North,Day Care / Social Activities,Lower Kilcott,702.56, 17-Feb-2015
1219,Revenue,CCHD,Home Care - Elderly - North,Day Care / Social Activities,Lower Kilcott,560.64, 17-Feb-2015
1220,Revenue,CCHD,Bed Purchasing - Southmead Hospital,Permanent Nursing,Majestic 3 Limited,1000.2, 17-Feb-2015
1221,Revenue,CCHD,Bed Purchasing - Southmead Hospital,Permanent Residential,Manor Cottage,10170.1, 17-Feb-2015
1222,Revenue,CCHD,Bed Purchasing - Southmead Hospital,Permanent Residential,Manor Cottage,1260.2, 17-Feb-2015
1223,Revenue,CCHD,Bed Purchasing - Southmead Hospital,Permanent Residential,Manor Cottage,1032.52, 17-Feb-2015
1224,Revenue,CCHD,Bed Purchasing - South,Permanent Residential,Manor Cottage,1456.6, 17-Feb-2015
1225,Revenue,CCHD,Bed Purchasing - Southmead Hospital,Permanent Residential,Manor Cottage,1260.2, 17-Feb-2015
1226,Revenue,CCHD,Bed Purchasing - North,Permanent Residential,Manton Hall Residential Home,1521.6, 17-Feb-2015
1227,Revenue,CCHD,Supported Living - South,Private & Voluntary Home Care,Maples Community Care Limited,3044.4, 13-Feb-2015
1228,Revenue,CCHD,Section 117 Placements MH Younger,Day Care / Social Activities,Maples Community Care Limited,840.75, 13-Feb-2015
1229,Revenue,CCHD,Section 117 Placements MH Younger,Day Care / Social Activities,Maples Community Care Limited,2736.13, 13-Feb-2015
1230,Revenue,CCHD,Younger MH non-res purchasing,Day Care / Social Activities,Maples Community Care Limited,2736.13, 13-Feb-2015
1231,Revenue,CCHD,Supported Living - South,Private & Voluntary Home Care,Maples Community Care Limited,2517.2, 26-Feb-2015
1232,Revenue,CCHD,Younger MH non-res purchasing,Day Care / Social Activities,Maples Community Care Limited,2597, 26-Feb-2015
1233,Revenue,CCHD,Sexual Health,Other Supplies & Services,Margaret Nowicki,645, 12-Feb-2015
1234,Revenue,CCHD,Social Lettings Agency,Fees - General,Individual,11.6, 20-Feb-2015
1235,Revenue,CCHD,Social Lettings Agency,Other Supplies & Services,Individual,655.41, 20-Feb-2015
1236,Revenue,CCHD,Bed Purchasing - South,Permanent Residential,Marsden Healthcare Ltd,1263.2, 17-Feb-2015
1237,Revenue,CCHD,Bed Purchasing - South,Permanent Residential,Marsden Healthcare Ltd,3247.8, 17-Feb-2015
1238,Revenue,CCHD,Bed Purchasing - South,Permanent Residential,Marsden Healthcare Ltd,1525.64, 17-Feb-2015
1239,Revenue,CCHD,Bed Purchasing - South,Permanent Nursing,Meadow Care Home,1541, 17-Feb-2015
1240,Revenue,CCHD,Home Care - Elderly - South,Day Care / Social Activities,Mears Care,88.55, 13-Feb-2015
1241,Revenue,CCHD,Home Care - Elderly - South,Other Small Contracts,Mears Care,569.8, 13-Feb-2015
1242,Revenue,CCHD,Home Care - Elderly - North,Other Small Contracts,Mears Care,3611.3, 13-Feb-2015
1243,Revenue,CCHD,Day Care - North,Day Care / Social Activities,Mears Care,30.8, 13-Feb-2015
1244,Revenue,CCHD,Under 65s -MH  Home Care Purch,Other Small Contracts,Mears Care,115.5, 13-Feb-2015
1245,Revenue,CCHD,Home Care - Elderly - South,Day Care / Social Activities,Mears Care,100.1, 26-Feb-2015
1246,Revenue,CCHD,Home Care - Elderly - South,Other Small Contracts,Mears Care,481.25, 26-Feb-2015
1247,Revenue,CCHD,Home Care - Elderly - North,Other Small Contracts,Mears Care,3588.2, 26-Feb-2015
1248,Revenue,CCHD,Day Care - North,Day Care / Social Activities,Mears Care,30.8, 26-Feb-2015
1249,Revenue,CCHD,Under 65s -MH  Home Care Purch,Other Small Contracts,Mears Care,115.5, 26-Feb-2015
1250,Revenue,CCHD,Home Care - Elderly - South,Day Care / Social Activities,Mears Care,88.55, 19-Feb-2015
1251,Revenue,CCHD,Home Care - Elderly - South,Other Small Contracts,Mears Care,627.55, 19-Feb-2015
1252,Revenue,CCHD,Home Care - Elderly - North,Other Small Contracts,Mears Care,3214.75, 19-Feb-2015
1253,Revenue,CCHD,Day Care - North,Day Care / Social Activities,Mears Care,30.8, 19-Feb-2015
1254,Revenue,CCHD,Under 65s -MH  Home Care Purch,Other Small Contracts,Mears Care,115.5, 19-Feb-2015
1255,Revenue,CCHD,Home Care - Elderly - South,Day Care / Social Activities,Mears Care,88.55, 27-Feb-2015
1256,Revenue,CCHD,Home Care - Elderly - South,Other Small Contracts,Mears Care,569.8, 27-Feb-2015
1257,Revenue,CCHD,Home Care - Elderly - North,Other Small Contracts,Mears Care,3534.3, 27-Feb-2015
1258,Revenue,CCHD,Day Care - North,Day Care / Social Activities,Mears Care,30.8, 27-Feb-2015
1259,Revenue,CCHD,Under 65s -MH  Home Care Purch,Other Small Contracts,Mears Care,115.5, 27-Feb-2015
1260,Revenue,CCHD,Home Care - Elderly - South,Private & Voluntary Home Care,Mears Care,49219, 27-Feb-2015
1261,Revenue,CCHD,Turnberries,Equipment Maintenance,Medaco,697, 27-Feb-2015
1262,Revenue,CCHD,Home Care - Elderly - South,Other Small Contracts,Medacs Home Care,150.5, 13-Feb-2015
1263,Revenue,CCHD,Home Care - Elderly - North,Other Small Contracts,Medacs Home Care,497, 13-Feb-2015
1264,Revenue,CCHD,Home care - Elderly MH - North,Other Small Contracts,Medacs Home Care,87.5, 13-Feb-2015
1265,Revenue,CCHD,Home Care - Elderly - South,Other Small Contracts,Medacs Home Care,220.5, 13-Feb-2015
1266,Revenue,CCHD,Home Care - Elderly - North,Other Small Contracts,Medacs Home Care,451.5, 13-Feb-2015
1267,Revenue,CCHD,Home care - Elderly MH - North,Other Small Contracts,Medacs Home Care,91, 13-Feb-2015
1268,Revenue,CCHD,Home Care - Elderly - South,Other Small Contracts,Medacs Home Care,420, 25-Feb-2015
1269,Revenue,CCHD,Home Care - Elderly - North,Other Small Contracts,Medacs Home Care,416.5, 25-Feb-2015
1270,Revenue,CCHD,Home care - Elderly MH - North,Other Small Contracts,Medacs Home Care,91, 25-Feb-2015
1271,Revenue,CCHD,Home Care - Elderly - South,Other Small Contracts,Medacs Home Care,420, 25-Feb-2015
1272,Revenue,CCHD,Home Care - Elderly - North,Other Small Contracts,Medacs Home Care,444.5, 25-Feb-2015
1273,Revenue,CCHD,Home care - Elderly MH - North,Other Small Contracts,Medacs Home Care,98, 25-Feb-2015
1274,Revenue,CCHD,Home Care - Elderly - South,Other Small Contracts,Medacs Home Care,441, 25-Feb-2015
1275,Revenue,CCHD,Home Care - Elderly - North,Other Small Contracts,Medacs Home Care,430.5, 25-Feb-2015
1276,Revenue,CCHD,Home care - Elderly MH - North,Other Small Contracts,Medacs Home Care,98, 25-Feb-2015
1277,Revenue,CCHD,NRS Contract,Daily Living Equipment,Medequip Assistive Technology Ltd,23198.99, 16-Feb-2015
1278,Revenue,CCHD,NRS Contract,Daily Living Equipment,Medequip Assistive Technology Ltd,51971.73, 16-Feb-2015
1279,Revenue,CCHD,NRS Contract,Daily Living Equipment,Medequip Assistive Technology Ltd,13292.23, 13-Feb-2015
1280,Revenue,CCHD,NRS Contract,Daily Living Equipment,Medequip Assistive Technology Ltd,78117.97, 13-Feb-2015
1281,Revenue,CCHD,Bed Purchasing - South,Permanent Residential,Mencap,2252.48, 17-Feb-2015
1282,Revenue,CCHD,Supported Living (S28a) South,Private & Voluntary Home Care,Mencap - PS Central & Cymru,3841.88, 17-Feb-2015
1283,Revenue,CCHD,Supporting People Programme,Grants to Voluntary Bodies,Merlin Housing Society,14628.5, 27-Feb-2015
1284,Revenue,CCHD,Supporting People Programme,Grants to Voluntary Bodies,Merlin Housing Society,2458.92, 27-Feb-2015
1285,Revenue,CCHD,Supporting People Programme,Grants to Voluntary Bodies,Merlin Housing Society,47076.5, 27-Feb-2015
1286,Revenue,CCHD,Supporting People Programme,Grants to Voluntary Bodies,Merlin Housing Society,1041.83, 27-Feb-2015
1287,Revenue,CCHD,Home Care - Elderly - South,Other Small Contracts,MiHomecare,222.75, 25-Feb-2015
1288,Revenue,CCHD,Home Care - Elderly - North,Other Small Contracts,MiHomecare,287.55, 25-Feb-2015
1289,Revenue,CCHD,Bed Purchasing - Southmead Hospital,Permanent Residential,Milburn Finance,1055.44, 17-Feb-2015
1290,Revenue,CCHD,Home Care - Elderly - South,Day Care / Social Activities,Milestones Homecare & Dementia Service,77.6, 13-Feb-2015
1291,Revenue,CCHD,Home Care - Elderly - South,Other Small Contracts,Milestones Homecare & Dementia Service,1443.36, 13-Feb-2015
1292,Revenue,CCHD,Home Care - Elderly - North,Other Small Contracts,Milestones Homecare & Dementia Service,1451.12, 13-Feb-2015
1293,Revenue,CCHD,Home care - Elderly MH - North,Other Small Contracts,Milestones Homecare & Dementia Service,54.32, 13-Feb-2015
1294,Revenue,CCHD,Home Care - Elderly - South,Day Care / Social Activities,Milestones Homecare & Dementia Service,31.04, 25-Feb-2015
1295,Revenue,CCHD,Home Care - Elderly - South,Other Small Contracts,Milestones Homecare & Dementia Service,1101.92, 25-Feb-2015
1296,Revenue,CCHD,Home Care - Elderly - North,Other Small Contracts,Milestones Homecare & Dementia Service,1239.4, 25-Feb-2015
1297,Revenue,CCHD,Home care - Elderly MH - North,Other Small Contracts,Milestones Homecare & Dementia Service,34.92, 25-Feb-2015
1298,Revenue,CCHD,Home Care - Elderly - South,Day Care / Social Activities,Milestones Homecare & Dementia Service,31.04, 17-Feb-2015
1299,Revenue,CCHD,Home Care - Elderly - South,Other Small Contracts,Milestones Homecare & Dementia Service,1486.04, 17-Feb-2015
1300,Revenue,CCHD,Home Care - Elderly - North,Other Small Contracts,Milestones Homecare & Dementia Service,1392.92, 17-Feb-2015
1301,Revenue,CCHD,Home care - Elderly MH - North,Other Small Contracts,Milestones Homecare & Dementia Service,46.56, 17-Feb-2015
1302,Revenue,CCHD,Home Care - Elderly - South,Day Care / Social Activities,Milestones Supported Living Services,6272.07, 13-Feb-2015
1303,Revenue,CCHD,Home Care - Elderly - South,Other Small Contracts,Milestones Supported Living Services,3877.67, 13-Feb-2015
1304,Revenue,CCHD,Home Care - Elderly - South,Supported Living,Milestones Supported Living Services,673.68, 13-Feb-2015
1305,Revenue,CCHD,Home Care - Elderly - North,Day Care / Social Activities,Milestones Supported Living Services,3280.18, 13-Feb-2015
1306,Revenue,CCHD,Home Care - Elderly - North,Other Small Contracts,Milestones Supported Living Services,946.36, 13-Feb-2015
1307,Revenue,CCHD,Day Care - South,Day Care / Social Activities,Milestones Supported Living Services,109.44, 13-Feb-2015
1308,Revenue,CCHD,Day Care - North,Day Care / Social Activities,Milestones Supported Living Services,197.27, 13-Feb-2015
1309,Revenue,CCHD,Younger MH non-res purchasing,Day Care / Social Activities,Milestones Supported Living Services,24.06, 13-Feb-2015
1310,Revenue,CCHD,Home care - Elderly MH - North,Other Small Contracts,Milestones Supported Living Services,68.18, 13-Feb-2015
1311,Revenue,CCHD,Elderly MH Day Care North,Day Care / Social Activities,Milestones Trust,708.39, 17-Feb-2015
1312,Revenue,CCHD,Tenancy Start Up Scheme,Other Supplies & Services,Individual,4169, 27-Feb-2015
1313,Revenue,CCHD,Bed Purchasing - Southmead Hospital,Permanent Residential,Mostyn Lodge Residential Home,1133.48, 17-Feb-2015
1314,Revenue,CCHD,Bed Purchasing - North,Permanent Residential,Mostyn Lodge Residential Home,1234.64, 17-Feb-2015
1315,Revenue,CCHD,Supported Living - South,Private & Voluntary Home Care,Moving On,5556.41, 13-Feb-2015
1316,Revenue,CCHD,Supported Living - South,Private & Voluntary Home Care,Moving On,1399.32, 13-Feb-2015
1317,Revenue,CCHD,Supported Living - South,Private & Voluntary Home Care,Moving On,1242, 13-Feb-2015
1318,Revenue,CCHD,Supported Living - South,Private & Voluntary Home Care,Moving On,1399.32, 13-Feb-2015
1319,Revenue,CCHD,Supported Living - South,Private & Voluntary Home Care,Moving On,1349.64, 13-Feb-2015
1320,Revenue,CCHD,Social Lettings Agency,Fees - General,Individual,10, 06-Feb-2015
1321,Revenue,CCHD,Social Lettings Agency,Other Supplies & Services,Individual,565, 06-Feb-2015
1322,Revenue,CCHD,Social Lettings Agency,Fees - General,Individual,10, 17-Feb-2015
1323,Revenue,CCHD,Social Lettings Agency,Other Supplies & Services,Individual,565, 17-Feb-2015
1324,Revenue,CCHD,Social Lettings Agency,Fees - General,Individual,10.09, 06-Feb-2015
1325,Revenue,CCHD,Social Lettings Agency,Other Supplies & Services,Individual,570.66, 06-Feb-2015
1326,Revenue,CCHD,Social Lettings Agency,Fees - General,Individual,10.1, 06-Feb-2015
1327,Revenue,CCHD,Social Lettings Agency,Other Supplies & Services,Individual,570.64, 06-Feb-2015
1328,Revenue,CCHD,Social Lettings Agency,Fees - General,Individual,10, 20-Feb-2015
1329,Revenue,CCHD,Social Lettings Agency,Other Supplies & Services,Individual,565, 20-Feb-2015
1330,Revenue,CCHD,Social Lettings Agency,Fees - General,Individual,8.6, 20-Feb-2015
1331,Revenue,CCHD,Social Lettings Agency,Other Supplies & Services,Individual,582, 20-Feb-2015
1332,Revenue,CCHD,Supporting People Programme,Grants to Voluntary Bodies,Individual,998.92, 27-Feb-2015
1333,Revenue,CCHD,Social Lettings Agency,Fees - General,Individual,11.6, 27-Feb-2015
1334,Revenue,CCHD,Social Lettings Agency,Other Supplies & Services,Individual,655.41, 27-Feb-2015
1335,Revenue,CCHD,Homeless - Private Sector Leasing,Other Supplies & Services,Individual,565, 23-Feb-2015
1336,Revenue,CCHD,Social Lettings Agency,Fees - General,Individual,11.71, 02-Feb-2015
1337,Revenue,CCHD,Social Lettings Agency,Other Supplies & Services,Individual,661.96, 02-Feb-2015
1338,Revenue,CCHD,Social Lettings Agency,Fees - General,Individual,10, 06-Feb-2015
1339,Revenue,CCHD,Social Lettings Agency,Other Supplies & Services,Individual,565, 06-Feb-2015
1340,Revenue,CCHD,Social Lettings Agency,Fees - General,Individual,10, 06-Feb-2015
1341,Revenue,CCHD,Social Lettings Agency,Other Supplies & Services,Individual,565, 06-Feb-2015
1342,Revenue,CCHD,Social Lettings Agency,Fees - General,Individual,10, 27-Feb-2015
1343,Revenue,CCHD,Social Lettings Agency,Other Supplies & Services,Individual,565, 27-Feb-2015
1344,Revenue,CCHD,Social Lettings Agency,Fees - General,Individual,16.16, 20-Feb-2015
1345,Revenue,CCHD,Social Lettings Agency,Other Supplies & Services,Individual,662.78, 20-Feb-2015
1346,Revenue,CCHD,Social Lettings Agency,Fees - General,Individual,10, 27-Feb-2015
1347,Revenue,CCHD,Social Lettings Agency,Other Supplies & Services,Individual,650.78, 27-Feb-2015
1348,Revenue,CCHD,Home Care - Elderly - South,Day Care / Social Activities,Mrs B Kimber -  CM2000,1339.89, 06-Feb-2015
1349,Revenue,CCHD,Home Care - Elderly - South,Other Small Contracts,Mrs B Kimber -  CM2000,10335.69, 06-Feb-2015
1350,Revenue,CCHD,Home Care - Elderly - South,Supported Living,Mrs B Kimber -  CM2000,295.92, 06-Feb-2015
1351,Revenue,CCHD,Home Care - Elderly - North,Day Care / Social Activities,Mrs B Kimber -  CM2000,501.42, 06-Feb-2015
1352,Revenue,CCHD,Home Care - Elderly - North,Other Small Contracts,Mrs B Kimber -  CM2000,4747.05, 06-Feb-2015
1353,Revenue,CCHD,Under 65s -MH  Home Care Purch,Other Small Contracts,Mrs B Kimber -  CM2000,65.76, 06-Feb-2015
1354,Revenue,CCHD,Elderly MH Day Care North,Day Care / Social Activities,Mrs B Kimber -  CM2000,98.64, 06-Feb-2015
1355,Revenue,CCHD,Home Care - Elderly - South,Day Care / Social Activities,Mrs B Kimber -  CM2000,764.49, 19-Feb-2015
1356,Revenue,CCHD,Home Care - Elderly - South,Other Small Contracts,Mrs B Kimber -  CM2000,10684.64, 19-Feb-2015
1357,Revenue,CCHD,Home Care - Elderly - South,Supported Living,Mrs B Kimber -  CM2000,291.81, 19-Feb-2015
1358,Revenue,CCHD,Home Care - Elderly - North,Day Care / Social Activities,Mrs B Kimber -  CM2000,443.88, 19-Feb-2015
1359,Revenue,CCHD,Home Care - Elderly - North,Other Small Contracts,Mrs B Kimber -  CM2000,4849.8, 19-Feb-2015
1360,Revenue,CCHD,Under 65s -MH  Home Care Purch,Other Small Contracts,Mrs B Kimber -  CM2000,65.76, 19-Feb-2015
1361,Revenue,CCHD,Elderly MH Day Care North,Day Care / Social Activities,Mrs B Kimber -  CM2000,98.64, 19-Feb-2015
1362,Revenue,CCHD,Social Lettings Agency,Fees - General,Individual,10, 17-Feb-2015
1363,Revenue,CCHD,Social Lettings Agency,Other Supplies & Services,Individual,565, 17-Feb-2015
1364,Revenue,CCHD,Social Lettings Agency,Fees - General,Individual,10, 13-Feb-2015
1365,Revenue,CCHD,Social Lettings Agency,Other Supplies & Services,Individual,565, 13-Feb-2015
1366,Revenue,CCHD,Social Lettings Agency,Fees - General,Individual,10, 24-Feb-2015
1367,Revenue,CCHD,Social Lettings Agency,Other Supplies & Services,Individual,565, 24-Feb-2015
1368,Revenue,CCHD,Social Lettings Agency,Fees - General,Individual,10, 27-Feb-2015
1369,Revenue,CCHD,Social Lettings Agency,Other Supplies & Services,Individual,565, 27-Feb-2015
1370,Revenue,CCHD,Social Lettings Agency,Fees - General,Individual,10.1, 13-Feb-2015
1371,Revenue,CCHD,Social Lettings Agency,Other Supplies & Services,Individual,570.64, 13-Feb-2015
1372,Revenue,CCHD,Social Lettings Agency,Fees - General,Individual,10.09, 12-Feb-2015
1373,Revenue,CCHD,Social Lettings Agency,Other Supplies & Services,Individual,570.66, 12-Feb-2015
1374,Revenue,CCHD,Social Lettings Agency,Fees - General,Individual,11.6, 16-Feb-2015
1375,Revenue,CCHD,Social Lettings Agency,Other Supplies & Services,Individual,655.41, 16-Feb-2015
1376,Revenue,CCHD,Social Lettings Agency,Fees - General,Individual,10, 06-Feb-2015
1377,Revenue,CCHD,Social Lettings Agency,Other Supplies & Services,Individual,565, 06-Feb-2015
1378,Revenue,CCHD,Social Lettings Agency,Fees - General,Individual,17.13, 11-Feb-2015
1379,Revenue,CCHD,Social Lettings Agency,Other Supplies & Services,Individual,977.68, 11-Feb-2015
1380,Revenue,CCHD,Younger MH non-res purchasing,Day Care / Social Activities,NAS Services Limited,764, 20-Feb-2015
1381,Revenue,CCHD,Day Care - North,Day Care / Social Activities,NAS Services Limited,1270.15, 20-Feb-2015
1382,Revenue,CCHD,Drug/Alcohol Residential Rehab,Security Systems,National Security Group,21.67, 27-Feb-2015
1383,Revenue,CCHD,Newton House,Security Systems,National Security Group,114.76, 19-Feb-2015
1384,Revenue,CCHD,Drug/Alcohol Residential Rehab,Security Systems,National Security Group,21.67, 19-Feb-2015
1385,Revenue,CCHD,Bed Purchasing - North,Permanent Residential,National Star College,4722.04, 17-Feb-2015
1386,Revenue,CCHD,Training - Adult Services,Training Expenses,Nelson Training Limited,1189.76, 05-Feb-2015
1387,Revenue,CCHD,Home Care - Elderly - South,Day Care / Social Activities,Nestor T/A Allied Healthcare,30.4, 03-Feb-2015
1388,Revenue,CCHD,Home Care - Elderly - South,Other Small Contracts,Nestor T/A Allied Healthcare,3081.8, 03-Feb-2015
1389,Revenue,CCHD,Home Care - Elderly - North,Other Small Contracts,Nestor T/A Allied Healthcare,8271.65, 03-Feb-2015
1390,Revenue,CCHD,Day Care - North,Day Care / Social Activities,Nestor T/A Allied Healthcare,91.2, 03-Feb-2015
1391,Revenue,CCHD,Home care - Elderly MH - North,Other Small Contracts,Nestor T/A Allied Healthcare,45.6, 03-Feb-2015
1392,Revenue,CCHD,Home Care - Elderly - South,Day Care / Social Activities,Nestor T/A Allied Healthcare,30.4, 13-Feb-2015
1393,Revenue,CCHD,Home Care - Elderly - South,Other Small Contracts,Nestor T/A Allied Healthcare,3009.85, 13-Feb-2015
1394,Revenue,CCHD,Home Care - Elderly - North,Other Small Contracts,Nestor T/A Allied Healthcare,8780.11, 13-Feb-2015
1395,Revenue,CCHD,Day Care - North,Day Care / Social Activities,Nestor T/A Allied Healthcare,136.8, 13-Feb-2015
1396,Revenue,CCHD,Home care - Elderly MH - North,Other Small Contracts,Nestor T/A Allied Healthcare,53.2, 13-Feb-2015
1397,Revenue,CCHD,Home Care - Elderly - South,Day Care / Social Activities,Nestor T/A Allied Healthcare,98.8, 13-Feb-2015
1398,Revenue,CCHD,Home Care - Elderly - South,Other Small Contracts,Nestor T/A Allied Healthcare,3051.4, 13-Feb-2015
1399,Revenue,CCHD,Home Care - Elderly - North,Other Small Contracts,Nestor T/A Allied Healthcare,9113.62, 13-Feb-2015
1400,Revenue,CCHD,Day Care - North,Day Care / Social Activities,Nestor T/A Allied Healthcare,190, 13-Feb-2015
1401,Revenue,CCHD,Home care - Elderly MH - North,Other Small Contracts,Nestor T/A Allied Healthcare,53.2, 13-Feb-2015
1402,Revenue,CCHD,Home Care - Elderly - South,Day Care / Social Activities,Nestor T/A Allied Healthcare,102.6, 13-Feb-2015
1403,Revenue,CCHD,Home Care - Elderly - South,Other Small Contracts,Nestor T/A Allied Healthcare,3040, 13-Feb-2015
1404,Revenue,CCHD,Home Care - Elderly - North,Other Small Contracts,Nestor T/A Allied Healthcare,8397.1, 13-Feb-2015
1405,Revenue,CCHD,Day Care - North,Day Care / Social Activities,Nestor T/A Allied Healthcare,193.8, 13-Feb-2015
1406,Revenue,CCHD,Home care - Elderly MH - North,Other Small Contracts,Nestor T/A Allied Healthcare,53.2, 13-Feb-2015
1407,Revenue,CCHD,Social Lettings Agency,Fees - General,Individual,10, 04-Feb-2015
1408,Revenue,CCHD,Social Lettings Agency,Other Supplies & Services,Individual,565, 04-Feb-2015
1409,Revenue,CCHD,Community Promoting Independence Team,"Holidays, Outings & Visits",Neville Williams,1238, 04-Feb-2015
1410,Revenue,CCHD,Mental Capacity Act - Advocacy,Other Supplies & Services,NHS South Gloucestershire CCG,21527.96, 26-Feb-2015
1411,Revenue,CCHD,NHS Health Checks & Tobacco Control,Software Support & Maintenance,North 51 Limited,4725, 24-Feb-2015
1412,Revenue,CCHD,Sexual Health,Other Small Contracts,North Bristol NHS Trust,22573.56, 19-Feb-2015
1413,Revenue,CCHD,NTS Grant - Trainee Social Wor,Training Expenses,North Somerset Council,19290, 20-Feb-2015
1414,Revenue,CCHD,Information Systems - Software,Software Purchase,Northgate Information Solutions UK Limited,6000, 20-Feb-2015
1415,Revenue,CCHD,Sexual Health,Other Small Contracts,Northville Family Practice,970.42, 12-Feb-2015
1416,Revenue,CCHD,Bed Purchasing - South,Permanent Residential,Norwood   Broadway House,4972.4, 17-Feb-2015
1417,Revenue,CCHD,Bed Purchasing - Southmead Hospital,Permanent Residential,Notaro Homes Ltd  Queensmead Court,3000, 17-Feb-2015
1418,Revenue,CCHD,Bed Purchasing - South,Permanent Residential,Notaro Homes Ltd  Queensmead Court,1884.8, 17-Feb-2015
1419,Revenue,CCHD,Bed Purchasing - Southmead Hospital,Permanent Residential,Notaro Homes Ltd  Queensmead Court,1389, 17-Feb-2015
1420,Revenue,CCHD,Bed Purchasing - South,Permanent Residential,Nova House Care Home,949.92, 17-Feb-2015
1421,Revenue,CCHD,Home Care - Elderly - South,Other Small Contracts,Nursing Solutions Limited,3092.88, 06-Feb-2015
1422,Revenue,CCHD,Home Care - Elderly - North,Other Small Contracts,Nursing Solutions Limited,689.92, 06-Feb-2015
1423,Revenue,CCHD,Home Care - Elderly - South,Other Small Contracts,Nursing Solutions Limited,2920.4, 19-Feb-2015
1424,Revenue,CCHD,Home Care - Elderly - North,Other Small Contracts,Nursing Solutions Limited,635.04, 19-Feb-2015
1425,Revenue,CCHD,Home Care - Elderly - South,Other Small Contracts,Nursing Solutions Limited,2779.28, 19-Feb-2015
1426,Revenue,CCHD,Home Care - Elderly - North,Other Small Contracts,Nursing Solutions Limited,674.24, 19-Feb-2015
1427,Revenue,CCHD,Home Care - Elderly - South,Other Small Contracts,Nursing Solutions Limited,2642.08, 24-Feb-2015
1428,Revenue,CCHD,Home Care - Elderly - North,Other Small Contracts,Nursing Solutions Limited,674.24, 24-Feb-2015
1429,Revenue,CCHD,Section 117 Placements MH Younger,Permanent Nursing,Oaklands,6088.8, 17-Feb-2015
1430,Revenue,CCHD,Alexandra Way,Refuse Collection Charges,OCS Group UK Ltd,418.36, 25-Feb-2015
1431,Revenue,CCHD,Housing Advice,Grants to Voluntary Bodies,Orchard & Shipman PLC,14206.59, 24-Feb-2015
1432,Revenue,CCHD,Bed Purchasing - Southmead Hospital,Permanent Residential,Osbourne Court,2530.48, 17-Feb-2015
1433,Revenue,CCHD,Bed Purchasing - Southmead Hospital,Permanent Residential,Osbourne Court,970.2, 17-Feb-2015
1434,Revenue,CCHD,Bed Purchasing - North,Permanent Residential,Osbourne Court,1796.4, 17-Feb-2015
1435,Revenue,CCHD,Bed Purchasing - North,Permanent Residential,Osbourne Court,2046.96, 17-Feb-2015
1436,Revenue,CCHD,Bed Purchasing - Southmead Hospital,Permanent Residential,Osbourne Court,1293.48, 17-Feb-2015
1437,Revenue,CCHD,Bed Purchasing - Elderly S117- North,Permanent Residential,Osbourne Court,1928, 17-Feb-2015
1438,Revenue,CCHD,Bed purchasing - S28A Under 65 - South,Permanent Residential,Osprey Court,4322.88, 17-Feb-2015
1439,Revenue,CCHD,Bed Purchasing - South,Permanent Residential,Osprey Court,7750.24, 17-Feb-2015
1440,Revenue,CCHD,Bed purchasing - S28A Under 65 - South,Permanent Residential,Osprey Court,6396.04, 17-Feb-2015
1441,Revenue,CCHD,Bed purchasing - Elderly S117 - South,Permanent Residential,Osprey Court,11328.56, 17-Feb-2015
1442,Revenue,CCHD,Breakthrough and Inclusion Work,Other Supplies & Services,P3D,3273.74, 09-Feb-2015
1443,Revenue,CCHD,Bed Purchasing - South,Permanent Nursing,Palm Court Nursing Home,2532.12, 17-Feb-2015
1444,Revenue,CCHD,Bed Purchasing - Southmead Hospital,Permanent Nursing,Palm Court Nursing Home,1519.32, 17-Feb-2015
1445,Revenue,CCHD,Bed Purchasing - South,Permanent Residential,Park Farm House,1344.56, 17-Feb-2015
1446,Revenue,CCHD,Bed Purchasing - South,Permanent Residential,Park Farm House,1614.16, 17-Feb-2015
1447,Revenue,CCHD,Bed Purchasing - South,Permanent Residential,Park Hall,5634.64, 17-Feb-2015
1448,Revenue,CCHD,Bed Purchasing - North,Permanent Residential,Park Hall,5202.24, 17-Feb-2015
1449,Revenue,CCHD,Bed Purchasing - South,Permanent Residential,Park Hall,5014.44, 17-Feb-2015
1450,Revenue,CCHD,Bed Purchasing - South,Permanent Residential,Park Hall,2555.68, 17-Feb-2015
1451,Revenue,CCHD,Bed Purchasing - North,Permanent Residential,Park Hall,4967.68, 17-Feb-2015
1452,Revenue,CCHD,Bed purchasing - S28A Under 65 - South,Permanent Residential,Park Hall,4682.92, 17-Feb-2015
1453,Revenue,CCHD,Bed Purchasing - South,Permanent Residential,Park Hall,4990.4, 17-Feb-2015
1454,Revenue,CCHD,Bed Purchasing - North,Permanent Residential,Park Hall,4323.28, 17-Feb-2015
1455,Revenue,CCHD,Bed Purchasing - South,Permanent Residential,Park Hall,10767.96, 17-Feb-2015
1456,Revenue,CCHD,Bed purchasing -S28A  Under 65 - North,Permanent Residential,Park Hall,5931.12, 17-Feb-2015
1457,Revenue,CCHD,Bed purchasing - S28A Under 65 - South,Permanent Residential,Park Hall,5670.16, 17-Feb-2015
1458,Revenue,CCHD,18-25 Year Olds,Permanent Residential,Park Hall,7181.48, 17-Feb-2015
1459,Revenue,CCHD,Bed Purchasing - North,Permanent Residential,Parker Meadows,2904.2, 17-Feb-2015
1460,Revenue,CCHD,Social Lettings Agency,Fees - General,Individual,10, 27-Feb-2015
1461,Revenue,CCHD,Social Lettings Agency,Other Supplies & Services,Individual,565, 27-Feb-2015
1462,Revenue,CCHD,Home Care - Elderly - North,Day Care / Social Activities,Pauls Place,1554.08, 17-Feb-2015
1463,Revenue,CCHD,Bed Purchasing - South,Permanent Residential,Penleigh House Care Home,4560.48, 17-Feb-2015
1464,Revenue,CCHD,Bed Purchasing - South,Permanent Residential,Penleigh House Care Home,6430.64, 17-Feb-2015
1465,Revenue,CCHD,Bed Purchasing - South,Permanent Residential,Penleigh House Care Home,4318.88, 17-Feb-2015
1466,Revenue,CCHD,Bed purchasing - S28A Under 65 - South,Permanent Residential,Penleigh House Care Home,5497.68, 17-Feb-2015
1467,Revenue,CCHD,Bed Purchasing - South,Permanent Residential,Penleigh House Care Home,4966.16, 17-Feb-2015
1468,Revenue,CCHD,Training - Adult Services,Training Expenses,Penny McLellan,511.7, 06-Feb-2015
1469,Revenue,CCHD,Sexual Health,Other Small Contracts,Pilning Surgery,784.6, 12-Feb-2015
1470,Revenue,CCHD,Home Care - Elderly - North,Day Care / Social Activities,Premier Homecare Limited,136.8, 06-Feb-2015
1471,Revenue,CCHD,Home Care - Elderly - North,Other Small Contracts,Premier Homecare Limited,13784.88, 06-Feb-2015
1472,Revenue,CCHD,Home care - Elderly MH - North,Other Small Contracts,Premier Homecare Limited,127.68, 06-Feb-2015
1473,Revenue,CCHD,Elderly MH Day Care North,Day Care / Social Activities,Premier Homecare Limited,72.96, 06-Feb-2015
1474,Revenue,CCHD,Home Care - Elderly - North,Day Care / Social Activities,Premier Homecare Limited,136.8, 13-Feb-2015
1475,Revenue,CCHD,Home Care - Elderly - North,Other Small Contracts,Premier Homecare Limited,13825.92, 13-Feb-2015
1476,Revenue,CCHD,Home care - Elderly MH - North,Other Small Contracts,Premier Homecare Limited,127.68, 13-Feb-2015
1477,Revenue,CCHD,Elderly MH Day Care North,Day Care / Social Activities,Premier Homecare Limited,72.96, 13-Feb-2015
1478,Revenue,CCHD,Home Care - Elderly - North,Day Care / Social Activities,Premier Homecare Limited,136.8, 19-Feb-2015
1479,Revenue,CCHD,Home Care - Elderly - North,Other Small Contracts,Premier Homecare Limited,13401.84, 19-Feb-2015
1480,Revenue,CCHD,Home care - Elderly MH - North,Other Small Contracts,Premier Homecare Limited,127.68, 19-Feb-2015
1481,Revenue,CCHD,Elderly MH Day Care North,Day Care / Social Activities,Premier Homecare Limited,72.96, 19-Feb-2015
1482,Revenue,CCHD,Home Care - Elderly - North,Day Care / Social Activities,Premier Homecare Limited,173.28, 26-Feb-2015
1483,Revenue,CCHD,Home Care - Elderly - North,Other Small Contracts,Premier Homecare Limited,13693.68, 26-Feb-2015
1484,Revenue,CCHD,Home care - Elderly MH - North,Other Small Contracts,Premier Homecare Limited,127.68, 26-Feb-2015
1485,Revenue,CCHD,Elderly MH Day Care North,Day Care / Social Activities,Premier Homecare Limited,72.96, 26-Feb-2015
1486,Revenue,CCHD,Home Care - Elderly - South,Day Care / Social Activities,Prestige Nursing,140.16, 13-Feb-2015
1487,Revenue,CCHD,Home Care - Elderly - South,Other Small Contracts,Prestige Nursing,687.66, 13-Feb-2015
1488,Revenue,CCHD,Home Care - Elderly - North,Other Small Contracts,Prestige Nursing,438, 13-Feb-2015
1489,Revenue,CCHD,Day Care - South,Day Care / Social Activities,Prestige Nursing,122.64, 13-Feb-2015
1490,Revenue,CCHD,Home Care - Elderly - South,Day Care / Social Activities,Prestige Nursing,70.08, 13-Feb-2015
1491,Revenue,CCHD,Home Care - Elderly - South,Other Small Contracts,Prestige Nursing,595.68, 13-Feb-2015
1492,Revenue,CCHD,Home Care - Elderly - North,Other Small Contracts,Prestige Nursing,367.92, 13-Feb-2015
1493,Revenue,CCHD,Day Care - South,Day Care / Social Activities,Prestige Nursing,122.64, 13-Feb-2015
1494,Revenue,CCHD,Home Care - Elderly - South,Day Care / Social Activities,Prestige Nursing,87.6, 13-Feb-2015
1495,Revenue,CCHD,Home Care - Elderly - South,Other Small Contracts,Prestige Nursing,617.58, 13-Feb-2015
1496,Revenue,CCHD,Home Care - Elderly - North,Other Small Contracts,Prestige Nursing,438, 13-Feb-2015
1497,Revenue,CCHD,Day Care - South,Day Care / Social Activities,Prestige Nursing,122.64, 13-Feb-2015
1498,Revenue,CCHD,Home Care - Elderly - South,Day Care / Social Activities,Prestige Nursing,70.08, 13-Feb-2015
1499,Revenue,CCHD,Home Care - Elderly - South,Other Small Contracts,Prestige Nursing,604.44, 13-Feb-2015
1500,Revenue,CCHD,Home Care - Elderly - North,Other Small Contracts,Prestige Nursing,438, 13-Feb-2015
1501,Revenue,CCHD,Day Care - South,Day Care / Social Activities,Prestige Nursing,122.64, 13-Feb-2015
1502,Revenue,CCHD,Home Care - Elderly - South,Day Care / Social Activities,Prestige Nursing,87.6, 19-Feb-2015
1503,Revenue,CCHD,Home Care - Elderly - South,Other Small Contracts,Prestige Nursing,183.96, 19-Feb-2015
1504,Revenue,CCHD,Home Care - Elderly - North,Other Small Contracts,Prestige Nursing,438, 19-Feb-2015
1505,Revenue,CCHD,Day Care - South,Day Care / Social Activities,Prestige Nursing,127.02, 19-Feb-2015
1506,Revenue,CCHD,Home Care - Elderly - South,Day Care / Social Activities,Prestige Nursing,140.16, 19-Feb-2015
1507,Revenue,CCHD,Home Care - Elderly - South,Other Small Contracts,Prestige Nursing,188.34, 19-Feb-2015
1508,Revenue,CCHD,Home Care - Elderly - North,Day Care / Social Activities,Prestige Nursing,70.08, 19-Feb-2015
1509,Revenue,CCHD,Home Care - Elderly - North,Other Small Contracts,Prestige Nursing,367.92, 19-Feb-2015
1510,Revenue,CCHD,Day Care - South,Day Care / Social Activities,Prestige Nursing,122.64, 19-Feb-2015
1511,Revenue,CCHD,Home Care - Elderly - South,Day Care / Social Activities,Prestige Nursing,122.64, 20-Feb-2015
1512,Revenue,CCHD,Home Care - Elderly - South,Other Small Contracts,Prestige Nursing,363.54, 20-Feb-2015
1513,Revenue,CCHD,Home Care - Elderly - North,Day Care / Social Activities,Prestige Nursing,70.08, 20-Feb-2015
1514,Revenue,CCHD,Home Care - Elderly - North,Other Small Contracts,Prestige Nursing,271.56, 20-Feb-2015
1515,Revenue,CCHD,Day Care - South,Day Care / Social Activities,Prestige Nursing,127.02, 20-Feb-2015
1516,Revenue,CCHD,Section 117 Placements MH Younger,Permanent Residential,Proctor Care Home Limited,3519.2, 17-Feb-2015
1517,Revenue,CCHD,Purchase of Non-Res Care - North,Day Care / Social Activities,PROPS,4950, 06-Feb-2015
1518,Revenue,CCHD,Bed Purchasing - North,Permanent Nursing,Ravenswood,2192.8, 17-Feb-2015
1519,Revenue,CCHD,Bed Purchasing - Elderly S117- North,Permanent Residential,Real Life Options,6632.64, 17-Feb-2015
1520,Revenue,CCHD,Breakthrough and Inclusion Work,Other Supplies & Services,Redefine Mentoring Ltd,4833.13, 06-Feb-2015
1521,Revenue,CCHD,Bed Purchasing - Elderly S117- North,Permanent Nursing,Redholme Memory Care Limited,1991.84, 17-Feb-2015
1522,Revenue,CCHD,Bed Purchasing - South,Permanent Nursing,Regent House,2255.28, 17-Feb-2015
1523,Revenue,CCHD,Bed Purchasing - South,Permanent Nursing,Regent House,1698.4, 17-Feb-2015
1524,Revenue,CCHD,Bed Purchasing - South,Permanent Nursing,Regent House,2391.04, 17-Feb-2015
1525,Revenue,CCHD,Bed Purchasing - South,Permanent Nursing,Regent House,1670.88, 17-Feb-2015
1526,Revenue,CCHD,Bed Purchasing - South,Permanent Nursing,Regent House,1978.4, 17-Feb-2015
1527,Revenue,CCHD,Bed Purchasing - South,Permanent Nursing,Regent House,2008.44, 17-Feb-2015
1528,Revenue,CCHD,Bed Purchasing - South,Permanent Nursing,Regent House,1726.76, 17-Feb-2015
1529,Revenue,CCHD,Bed Purchasing - South,Permanent Nursing,Regent House,1894.92, 17-Feb-2015
1530,Revenue,CCHD,Bed Purchasing - Southmead Hospital,Permanent Nursing,Regent House,1995.04, 17-Feb-2015
1531,Revenue,CCHD,South Glos Users in South Glos Homes,Permanent Nursing,Regent House,887.12, 17-Feb-2015
1532,Revenue,CCHD,Bed Purchasing - North,Permanent Nursing,Regent House,2004.36, 17-Feb-2015
1533,Revenue,CCHD,Bed Purchasing - Southmead Hospital,Permanent Nursing,Regent House,1207.52, 17-Feb-2015
1534,Revenue,CCHD,Bed purchasing - Elderly S117 - South,Permanent Nursing,Regent House,2996.44, 17-Feb-2015
1535,Revenue,CCHD,Bed Purchasing - South,Permanent Nursing,Regent House,1675.68, 17-Feb-2015
1536,Revenue,CCHD,Bed Purchasing - North,Permanent Nursing,Regent House,2549.44, 17-Feb-2015
1537,Revenue,CCHD,Bed Purchasing - Southmead Hospital,Permanent Nursing,Regent House,1406.44, 17-Feb-2015
1538,Revenue,CCHD,Bed Purchasing - South,Permanent Nursing,Regent House,1668.12, 17-Feb-2015
1539,Revenue,CCHD,Bed Purchasing - North,Permanent Nursing,Regent House,2500.64, 17-Feb-2015
1540,Revenue,CCHD,Bed Purchasing - South,Permanent Nursing,Regent House,1197.6, 17-Feb-2015
1541,Revenue,CCHD,Bed Purchasing - South,Permanent Nursing,Regent House,1280.24, 17-Feb-2015
1542,Revenue,CCHD,Bed Purchasing - South,Permanent Nursing,Regent House,7141.92, 17-Feb-2015
1543,Revenue,CCHD,Bed Purchasing - South,Permanent Nursing,Regent House,2380.64, 17-Feb-2015
1544,Revenue,CCHD,Bed Purchasing - South,Permanent Nursing,Regent House,1530.41, 17-Feb-2015
1545,Revenue,CCHD,Bed Purchasing - South,Permanent Nursing,Regent House,1965.24, 17-Feb-2015
1546,Revenue,CCHD,Bed Purchasing - South,Permanent Residential,Ridgeway House,3502.08, 17-Feb-2015
1547,Revenue,CCHD,Bed Purchasing - South,Permanent Residential,Riverside House,3611.04, 17-Feb-2015
1548,Revenue,CCHD,Bed Purchasing - Southmead Hospital,Permanent Nursing,Riversway Nursing Home,892.6, 17-Feb-2015
1549,Revenue,CCHD,Bed Purchasing - Southmead Hospital,Permanent Nursing,Riversway Nursing Home,2685.28, 17-Feb-2015
1550,Revenue,CCHD,Bed Purchasing - South,Permanent Residential,Rockleaze,1426.8, 17-Feb-2015
1551,Revenue,CCHD,Bed Purchasing - LD S28A- Over 65- South,Permanent Residential,Rockleaze,2082.04, 17-Feb-2015
1552,Revenue,CCHD,Bed Purchasing - South,Permanent Residential,Rockleaze,2414.96, 17-Feb-2015
1553,Revenue,CCHD,Bed Purchasing - South,Permanent Residential,Rockleaze,1426.8, 17-Feb-2015
1554,Revenue,CCHD,Bed Purchasing - Southmead Hospital,Permanent Residential,Rodney House Residential Home,1432.2, 17-Feb-2015
1555,Revenue,CCHD,Supported Living - North,Permanent Residential,Rosealeen Jarrett,769.4, 10-Feb-2015
1556,Revenue,CCHD,Supported Living - North,Permanent Residential,Rosealeen Jarrett,806.74, 12-Feb-2015
1557,Revenue,CCHD,Supported Living - North,Permanent Residential,Rosealeen Jarrett,806.74, 26-Feb-2015
1558,Revenue,CCHD,Bed Purchasing - South,Permanent Residential,Rosedale House,1517.92, 17-Feb-2015
1559,Revenue,CCHD,Bed Purchasing - South,Permanent Residential,Rosewood Lodge & Brook House,4569.72, 17-Feb-2015
1560,Revenue,CCHD,Mental Health and Emotional Wellbeing,Training Expenses,Royal Society for Public Health,570, 16-Feb-2015
1561,Revenue,CCHD,Sexual Health,Other Supplies & Services,Royal United Hospital,1230, 23-Feb-2015
1562,Revenue,CCHD,Sexual Health,Other Supplies & Services,Royal United Hospital,1093, 23-Feb-2015
1563,Revenue,CCHD,Sexual Health,Other Supplies & Services,Royal United Hospital,968, 19-Feb-2015
1564,Revenue,CCHD,Sexual Health,Other Supplies & Services,Royal United Hospital,1945, 17-Feb-2015
1565,Revenue,CCHD,Sexual Health,Other Supplies & Services,Royal United Hospital,1640, 17-Feb-2015
1566,Revenue,CCHD,Bed Purchasing - South,Permanent Residential,Salters Hill Barn,2239.11, 17-Feb-2015
1567,Revenue,CCHD,Bed Purchasing - Southmead Hospital,Permanent Residential,Sanctuary Care Ltd,4220.7, 17-Feb-2015
1568,Revenue,CCHD,Learning Difficulties PSL,Rent,Individual,1650, 27-Feb-2015
1569,Revenue,CCHD,Bed Purchasing - South,Permanent Residential,Scope   Accounts Dept,3073.16, 17-Feb-2015
1570,Revenue,CCHD,Supporting People Programme,Grants to Voluntary Bodies,Second Step Housing Association,13454.42, 27-Feb-2015
1571,Revenue,CCHD,Supporting People Programme,Grants to Voluntary Bodies,Second Step Housing Association,11876.25, 27-Feb-2015
1572,Revenue,CCHD,Day Care - North,Day Care / Social Activities,SeeAbility,1591.02, 04-Feb-2015
1573,Revenue,CCHD,Purchase of Non-Res Care - North,Day Care / Social Activities,Selborne Care Ltd,1347.84, 20-Feb-2015
1574,Revenue,CCHD,Purchase of Non-Res Care - North,Day Care / Social Activities,Selborne Care Ltd,914.48, 20-Feb-2015
1575,Revenue,CCHD,Purchase of Non-Res Care - North,Day Care / Social Activities,Selborne Care Ltd,853.12, 20-Feb-2015
1576,Revenue,CCHD,Purchase of Non-Res Care - North,Day Care / Social Activities,Selborne Care Ltd,803.72, 20-Feb-2015
1577,Revenue,CCHD,Purchase of Non-Res Care - North,Day Care / Social Activities,Selborne Care Ltd,864.64, 20-Feb-2015
1578,Revenue,CCHD,Supported Living (S28a) South,Private & Voluntary Home Care,Selborne Care Ltd,3408.76, 20-Feb-2015
1579,Revenue,CCHD,Home Care - Elderly - South,Supported Living,Selborrne House,3488.8, 17-Feb-2015
1580,Revenue,CCHD,Bed Purchasing - South,Permanent Residential,Sense,8384.6, 17-Feb-2015
1581,Revenue,CCHD,Hospital Promoting Independence Team,Care Management/Assessment Staff Pay,Seven Resourcing Ltd,1202.5, 10-Feb-2015
1582,Revenue,CCHD,Hospital Promoting Independence Team,Care Management/Assessment Staff Pay,Seven Resourcing Ltd,1170, 17-Feb-2015
1583,Revenue,CCHD,Hospital Promoting Independence Team,Care Management/Assessment Staff Pay,Seven Resourcing Ltd,1202.5, 24-Feb-2015
1584,Revenue,CCHD,Bed Purchasing - South,Permanent Residential,Shaldon House (Positive Care Ltd),2226.92, 17-Feb-2015
1585,Revenue,CCHD,Bed Purchasing - South,Permanent Nursing,Shaw Healthcare Ltd,2085.32, 17-Feb-2015
1586,Revenue,CCHD,Bed purchasing - S28A Under 65 - South,Permanent Residential,Shaw Healthcare Ltd,9968.4, 17-Feb-2015
1587,Revenue,CCHD,Bed purchasing - S28A Under 65 - South,Permanent Residential,Shaw Healthcare Ltd,9792, 17-Feb-2015
1588,Revenue,CCHD,Bed Purchasing - South,Permanent Residential,Shaw Healthcare Ltd,9905.52, 17-Feb-2015
1589,Revenue,CCHD,Bed Purchasing - South,Permanent Residential,Shaw Healthcare Ltd,3962.92, 17-Feb-2015
1590,Revenue,CCHD,Bed Purchasing - S28A - Over 65- North,Permanent Residential,Shaw Healthcare Ltd,4299.04, 17-Feb-2015
1591,Revenue,CCHD,Bed Purchasing - S28A - Over 65- North,Permanent Residential,Shaw Healthcare Ltd,4270.44, 17-Feb-2015
1592,Revenue,CCHD,Bed Purchasing - LD S28A- Over 65- South,Permanent Residential,Shaw Healthcare Ltd,4831.08, 17-Feb-2015
1593,Revenue,CCHD,Bed Purchasing - LD S28A- Over 65- South,Permanent Residential,Shaw Healthcare Ltd,4384.44, 17-Feb-2015
1594,Revenue,CCHD,Bed purchasing -S28A  Under 65 - North,Permanent Residential,Shaw Healthcare Ltd,1730.76, 17-Feb-2015
1595,Revenue,CCHD,Bed Purchasing - S28A - Over 65- North,Permanent Residential,Shaw Healthcare Ltd,8704.56, 17-Feb-2015
1596,Revenue,CCHD,Bed Purchasing - North,Permanent Residential,Shaw Healthcare Ltd,4146.08, 17-Feb-2015
1597,Revenue,CCHD,Bed Purchasing - Southmead Hospital,Permanent Residential,Shaw Healthcare Ltd,1134.52, 17-Feb-2015
1598,Revenue,CCHD,Home Care - Elderly - South,Day Care / Social Activities,Silva Care Limited,1178.38, 04-Feb-2015
1599,Revenue,CCHD,Supported Living - South,Private & Voluntary Home Care,Silva Care Limited,4415.44, 20-Feb-2015
1600,Revenue,CCHD,Supported Living - South,Private & Voluntary Home Care,Silva Care Limited,4415.44, 20-Feb-2015
1601,Revenue,CCHD,Supported Living - South,Private & Voluntary Home Care,Silva Care Limited,4415.44, 27-Feb-2015
1602,Revenue,CCHD,Purchase of Non-Res Care - North,Day Care / Social Activities,Silva Care Limited,5359.36, 27-Feb-2015
1603,Revenue,CCHD,Purchase of Non-Res Care - North,Day Care / Social Activities,Silva Care Limited,4853.74, 27-Feb-2015
1604,Revenue,CCHD,Purchase of Non-Res Care - North,Day Care / Social Activities,Silva Care Limited,5359.36, 27-Feb-2015
1605,Revenue,CCHD,Purchase of Non-Res Care - North,Day Care / Social Activities,Silva Care Limited,2479.44, 27-Feb-2015
1606,Revenue,CCHD,Social Lettings Agency,Other Supplies & Services,Individual,640.72, 03-Feb-2015
1607,Revenue,CCHD,Mental Capacity Act - Advocacy,Other Supplies & Services,Sirona Care & Health CIC,8250, 19-Feb-2015
1608,Revenue,CCHD,18-25 Year Olds,Permanent Residential,Small House Homes Limited,18014.64, 17-Feb-2015
1609,Revenue,CCHD,Home Care - Elderly - North,Supported Living,Smile Ind Living Support Limited,3028.12, 17-Feb-2015
1610,Revenue,CCHD,Home Care - Elderly - North,Supported Living,Smile Ind Living Support Limited,3028.12, 17-Feb-2015
1611,Revenue,CCHD,Home Care - Elderly - North,Supported Living,Smile Ind Living Support Limited,3028.12, 17-Feb-2015
1612,Revenue,CCHD,Home Care - Elderly - South,Day Care / Social Activities,Smile Independent Living Support Limited,803.88, 02-Feb-2015
1613,Revenue,CCHD,Home Care - Elderly - South,Other Small Contracts,Smile Independent Living Support Limited,378.84, 02-Feb-2015
1614,Revenue,CCHD,Home Care - Elderly - North,Day Care / Social Activities,Smile Independent Living Support Limited,1330.56, 02-Feb-2015
1615,Revenue,CCHD,Home Care - Elderly - North,Supported Living,Smile Independent Living Support Limited,572.88, 02-Feb-2015
1616,Revenue,CCHD,Home Care - Elderly - South,Day Care / Social Activities,Smile Independent Living Support Limited,859.32, 09-Feb-2015
1617,Revenue,CCHD,Home Care - Elderly - South,Other Small Contracts,Smile Independent Living Support Limited,397.32, 09-Feb-2015
1618,Revenue,CCHD,Home Care - Elderly - North,Day Care / Social Activities,Smile Independent Living Support Limited,1409.1, 09-Feb-2015
1619,Revenue,CCHD,Home Care - Elderly - North,Supported Living,Smile Independent Living Support Limited,656.04, 09-Feb-2015
1620,Revenue,CCHD,Home Care - Elderly - South,Day Care / Social Activities,Smile Independent Living Support Limited,748.44, 16-Feb-2015
1621,Revenue,CCHD,Home Care - Elderly - South,Other Small Contracts,Smile Independent Living Support Limited,341.88, 16-Feb-2015
1622,Revenue,CCHD,Home Care - Elderly - North,Day Care / Social Activities,Smile Independent Living Support Limited,1141.14, 16-Feb-2015
1623,Revenue,CCHD,Home Care - Elderly - North,Supported Living,Smile Independent Living Support Limited,295.68, 16-Feb-2015
1624,Revenue,CCHD,Home Care - Elderly - South,Day Care / Social Activities,Smile Independent Living Support Limited,771.54, 23-Feb-2015
1625,Revenue,CCHD,Home Care - Elderly - South,Other Small Contracts,Smile Independent Living Support Limited,415.8, 23-Feb-2015
1626,Revenue,CCHD,Home Care - Elderly - North,Day Care / Social Activities,Smile Independent Living Support Limited,1316.7, 23-Feb-2015
1627,Revenue,CCHD,Home Care - Elderly - North,Supported Living,Smile Independent Living Support Limited,304.92, 23-Feb-2015
1628,Revenue,CCHD,Minor Adaptations Service,Premises Maintenance by Contractor,SSE Contracting Limited,192.76, 24-Feb-2015
1629,Revenue,CCHD,Bed Purchasing - South,Permanent Residential,St Brigas,2086.44, 17-Feb-2015
1630,Revenue,CCHD,Bed Purchasing - South,Permanent Residential,St Brigas,3016.52, 17-Feb-2015
1631,Revenue,CCHD,Bed Purchasing - South,Permanent Residential,St Brigas,2033.44, 17-Feb-2015
1632,Revenue,CCHD,Training - Adult Services,Training Expenses,St Peter`s Hospice,607.83, 16-Feb-2015
1633,Revenue,CCHD,Training - Adult Services,Training Expenses,St Peter`s Hospice,607.83, 16-Feb-2015
1634,Revenue,CCHD,Training - Adult Services,Training Expenses,St Peter`s Hospice,607.83, 16-Feb-2015
1635,Revenue,CCHD,18-25 Year Olds,Permanent Nursing,St Roses School,4041.36, 17-Feb-2015
1636,Revenue,CCHD,18-25 Year Olds,Respite Planned - Residential,St Roses School,1626, 17-Feb-2015
1637,Revenue,CCHD,18-25 Year Olds,Respite Planned - Residential,St Roses School,505.42, 17-Feb-2015
1638,Revenue,CCHD,18-25 Year Olds,Respite Planned - Residential,St Roses School,2073.2, 17-Feb-2015
1639,Revenue,CCHD,Bed Purchasing - Southmead Hospital,Permanent Nursing,St Teresa`S Nursing Home,852.6, 17-Feb-2015
1640,Revenue,CCHD,Bed Purchasing - North,Permanent Nursing,Stanley House,6375.2, 17-Feb-2015
1641,Revenue,CCHD,Bed Purchasing - South,Permanent Nursing,Stanley House,7376.44, 17-Feb-2015
1642,Revenue,CCHD,MH Purchasing - Younger,Permanent Nursing,Stanley House,4375.16, 17-Feb-2015
1643,Revenue,CCHD,Bed Purchasing - South,Permanent Residential,Stepping Stones Re-Sett. Unit,7596.04, 17-Feb-2015
1644,Revenue,CCHD,Sexual Health,Other Small Contracts,Stoke Gifford Medical Centre,1909.88, 12-Feb-2015
1645,Revenue,CCHD,Bed Purchasing - Southmead Hospital,Permanent Residential,Stonebow House,1322.56, 17-Feb-2015
1646,Revenue,CCHD,Community Promoting Independence Team,Agency Staff (Operational)/PCT Pay,Sugarman Group Ltd,1328.78, 12-Feb-2015
1647,Revenue,CCHD,Community Promoting Independence Team,Agency Staff (Operational)/PCT Pay,Sugarman Group Ltd,1472.4, 19-Feb-2015
1648,Revenue,CCHD,Community Promoting Independence Team,Agency Staff (Operational)/PCT Pay,Sugarman Group Ltd,1530.68, 26-Feb-2015
1649,Revenue,CCHD,Supported Living - South,Private & Voluntary Home Care,Supported Independence Ltd,1901.9, 02-Feb-2015
1650,Revenue,CCHD,Supported Living - North,Private & Voluntary Home Care,Supported Independence Ltd,1101.1, 02-Feb-2015
1651,Revenue,CCHD,Day Care - North,Day Care / Social Activities,Supported Independence Ltd,2277.6, 03-Feb-2015
1652,Revenue,CCHD,Younger MH non-res purchasing,Day Care / Social Activities,Supported Independence Ltd,600, 05-Feb-2015
1653,Revenue,CCHD,Supported Living - South,Private & Voluntary Home Care,Supported Independence Ltd,1641.64, 24-Feb-2015
1654,Revenue,CCHD,Day Care - North,Day Care / Social Activities,Supported Independence Ltd,520.52, 25-Feb-2015
1655,Revenue,CCHD,Supported Living - North,Private & Voluntary Home Care,Supported Independence Ltd,880.88, 23-Feb-2015
1656,Revenue,CCHD,Section 117 Placements MH Younger,Day Care / Social Activities,Supported Independence Ltd,1273.8, 24-Feb-2015
1657,Revenue,CCHD,Younger MH non-res purchasing,Day Care / Social Activities,Supported Independence Ltd,1041.04, 24-Feb-2015
1658,Revenue,CCHD,Section 117 Placements MH Younger,Day Care / Social Activities,Supported Independence Ltd,516.24, 24-Feb-2015
1659,Revenue,CCHD,Supported Living - North,Private & Voluntary Home Care,Supported Independence Ltd,1021.02, 24-Feb-2015
1660,Revenue,CCHD,Younger MH non-res purchasing,Day Care / Social Activities,Supported Independence Ltd,520, 24-Feb-2015
1661,Revenue,CCHD,Younger MH non-res purchasing,Day Care / Social Activities,Supported Independence Ltd,1330, 24-Feb-2015
1662,Revenue,CCHD,Supported Living - South,Private & Voluntary Home Care,Supported Independence Ltd,2393.2, 24-Feb-2015
1663,Revenue,CCHD,Section 117 Placements MH Younger,Day Care / Social Activities,Supported Independence Ltd,2268.11, 24-Feb-2015
1664,Revenue,CCHD,Supporting People Programme,Grants to Voluntary Bodies,Supported Independence Ltd,3031.17, 27-Feb-2015
1665,Revenue,CCHD,Supporting People Programme,Grants to Voluntary Bodies,Supported Independent Living Schemes,4706.75, 27-Feb-2015
1666,Revenue,CCHD,Supporting People Programme,Grants to Voluntary Bodies,Supported Independent Living Schemes,6097.83, 27-Feb-2015
1667,Revenue,CCHD,Supported Living - South,Private & Voluntary Home Care,Supported Independent Living Schemes,642.96, 04-Feb-2015
1668,Revenue,CCHD,Supported Living - South,Private & Voluntary Home Care,Supporting Options,1366.68, 02-Feb-2015
1669,Revenue,CCHD,Day Care - South,Day Care / Social Activities,Supporting Options,643.72, 26-Feb-2015
1670,Revenue,CCHD,Supported Living - South,Private & Voluntary Home Care,Supporting Options,1304.16, 20-Feb-2015
1671,Revenue,CCHD,Day Care - South,Day Care / Social Activities,Supporting Options,2332.44, 26-Feb-2015
1672,Revenue,CCHD,18-25 Year Olds,Permanent Residential,The Ann Coleman Centre,6056.28, 17-Feb-2015
1673,Revenue,CCHD,Bed Purchasing - Southmead Hospital,Permanent Residential,The Beeches,1532.4, 17-Feb-2015
1674,Revenue,CCHD,Bed Purchasing - Southmead Hospital,Permanent Residential,The Beeches,1645.8, 17-Feb-2015
1675,Revenue,CCHD,Home Care - Elderly - South,Day Care / Social Activities,The Brandon Trust,4604.38, 09-Feb-2015
1676,Revenue,CCHD,Home Care - Elderly - North,Day Care / Social Activities,The Brandon Trust,1482.62, 09-Feb-2015
1677,Revenue,CCHD,Home Care - Elderly - North,Other Small Contracts,The Brandon Trust,239.76, 09-Feb-2015
1678,Revenue,CCHD,Home Care - Elderly - North,Supported Living,The Brandon Trust,2026.73, 09-Feb-2015
1679,Revenue,CCHD,Home Care - Elderly - South,Day Care / Social Activities,The Brandon Trust,4578.08, 12-Feb-2015
1680,Revenue,CCHD,Home Care - Elderly - North,Day Care / Social Activities,The Brandon Trust,1404.78, 12-Feb-2015
1681,Revenue,CCHD,Home Care - Elderly - North,Other Small Contracts,The Brandon Trust,263, 12-Feb-2015
1682,Revenue,CCHD,Home Care - Elderly - North,Supported Living,The Brandon Trust,2024.96, 12-Feb-2015
1683,Revenue,CCHD,Home Care - Elderly - South,Day Care / Social Activities,The Brandon Trust,4404.5, 17-Feb-2015
1684,Revenue,CCHD,Home Care - Elderly - North,Day Care / Social Activities,The Brandon Trust,1393.36, 17-Feb-2015
1685,Revenue,CCHD,Home Care - Elderly - North,Other Small Contracts,The Brandon Trust,189.36, 17-Feb-2015
1686,Revenue,CCHD,Home Care - Elderly - North,Supported Living,The Brandon Trust,2024.96, 17-Feb-2015
1687,Revenue,CCHD,Home Care - Elderly - South,Day Care / Social Activities,The Brandon Trust,4330.86, 26-Feb-2015
1688,Revenue,CCHD,Home Care - Elderly - North,Day Care / Social Activities,The Brandon Trust,1506.8, 26-Feb-2015
1689,Revenue,CCHD,Home Care - Elderly - North,Other Small Contracts,The Brandon Trust,252.48, 26-Feb-2015
1690,Revenue,CCHD,Home Care - Elderly - North,Supported Living,The Brandon Trust,2024.96, 26-Feb-2015
1691,Revenue,CCHD,Supported Living - North,Private & Voluntary Home Care,The Brandon Trust,1141.76, 12-Feb-2015
1692,Revenue,CCHD,Bed purchasing - S28A Under 65 - South,Permanent Residential,The Brandon Trust,28412.74, 13-Feb-2015
1693,Revenue,CCHD,Supported Living - South,Private & Voluntary Home Care,The Brandon Trust,655.2, 16-Feb-2015
1694,Revenue,CCHD,Supported Living - South,Private & Voluntary Home Care,The Brandon Trust,441.84, 16-Feb-2015
1695,Revenue,CCHD,Supported Living - South,Private & Voluntary Home Care,The Brandon Trust,1362.34, 16-Feb-2015
1696,Revenue,CCHD,Purchase of Non-Res Care - North,Day Care / Social Activities,The Brandon Trust,6935.22, 27-Feb-2015
1697,Revenue,CCHD,Purchase of Non-Res Care - South,Day Care / Social Activities,The Brandon Trust,352.8, 16-Feb-2015
1698,Revenue,CCHD,Purchase of Non-Res Care - South,Day Care / Social Activities,The Brandon Trust,120, 16-Feb-2015
1699,Revenue,CCHD,Purchase of Non-Res Care - South,Day Care / Social Activities,The Brandon Trust,4986.48, 16-Feb-2015
1700,Revenue,CCHD,Purchase of Non-Res Care - South,Day Care / Social Activities,The Brandon Trust,678.54, 16-Feb-2015
1701,Revenue,CCHD,Purchase of Non-Res Care - South,Day Care / Social Activities,The Brandon Trust,336.64, 16-Feb-2015
1702,Revenue,CCHD,Purchase of Non-Res Care - South,Day Care / Social Activities,The Brandon Trust,2640.52, 16-Feb-2015
1703,Revenue,CCHD,Purchase of Non-Res Care - South,Day Care / Social Activities,The Brandon Trust,1851.52, 16-Feb-2015
1704,Revenue,CCHD,Purchase of Non-Res Care - South,Day Care / Social Activities,The Brandon Trust,252.48, 16-Feb-2015
1705,Revenue,CCHD,Purchase of Non-Res Care - South,Day Care / Social Activities,The Brandon Trust,547.04, 16-Feb-2015
1706,Revenue,CCHD,Purchase of Non-Res Care - South,Day Care / Social Activities,The Camphill Village Trust,735, 03-Feb-2015
1707,Revenue,CCHD,SLA Grants - Support Serv,Other Supplies & Services,The Care Forum,41318, 17-Feb-2015
1708,Revenue,CCHD,Bed Purchasing - North,Permanent Residential,The Cidermill,1432.2, 17-Feb-2015
1709,Revenue,CCHD,Bed Purchasing - Frenchay Hospital,Permanent Nursing,The Cidermill,11862.72, 17-Feb-2015
1710,Revenue,CCHD,Bed Purchasing - Southmead Hospital,Permanent Nursing,The Cidermill,15864.86, 17-Feb-2015
1711,Revenue,CCHD,Bed Purchasing - North,Permanent Nursing,The Cidermill,2344.05, 17-Feb-2015
1712,Revenue,CCHD,Bed Purchasing - North,Permanent Nursing,The Cidermill,1219.08, 17-Feb-2015
1713,Revenue,CCHD,Bed Purchasing - Southmead Hospital,Permanent Residential,The Cidermill,972.28, 17-Feb-2015
1714,Revenue,CCHD,Home Care - Elderly - North,Day Care / Social Activities,The Cottage,653.76, 17-Feb-2015
1715,Revenue,CCHD,Home Care - Elderly - South,Day Care / Social Activities,The Cottage,713.28, 17-Feb-2015
1716,Revenue,CCHD,Home Care - Elderly - North,Day Care / Social Activities,The Cottage,534.96, 17-Feb-2015
1717,Revenue,CCHD,18-25 Year Olds,Permanent Residential,The David Lewis Centre,5902.76, 17-Feb-2015
1718,Revenue,CCHD,Bed Purchasing - North,Permanent Residential,The Elms,2168.6, 12-Feb-2015
1719,Revenue,CCHD,Bed Purchasing - South,Permanent Residential,The Gables Residential Home,706.56, 17-Feb-2015
1720,Revenue,CCHD,Swift Dump Code,Permanent Residential,The Gables Residential Home,2761.14, 17-Feb-2015
1721,Revenue,CCHD,Bed Purchasing - Southmead Hospital,Permanent Residential,The Gables Residential Home,2755.52, 17-Feb-2015
1722,Revenue,CCHD,Bed purchasing - Elderly S117 - South,Permanent Residential,The Gables Residential Home,4493.76, 17-Feb-2015
1723,Revenue,CCHD,Bed Purchasing - Southmead Hospital,Permanent Residential,The Gables Residential Home,1957.2, 17-Feb-2015
1724,Revenue,CCHD,Bed Purchasing - South,Permanent Residential,The Gables Residential Home,2014.64, 17-Feb-2015
1725,Revenue,CCHD,Bed Purchasing - South,Permanent Residential,The Garden House,745.16, 17-Feb-2015
1726,Revenue,CCHD,Bed Purchasing - North,Permanent Residential,The Garden House,1883.08, 17-Feb-2015
1727,Revenue,CCHD,Bed Purchasing - South,Permanent Residential,The Garden House,1939.72, 17-Feb-2015
1728,Revenue,CCHD,Bed Purchasing - North,Permanent Residential,The Garden House,1780.96, 17-Feb-2015
1729,Revenue,CCHD,Bed Purchasing - North,Permanent Residential,The Garden House,2800, 17-Feb-2015
1730,Revenue,CCHD,Bed Purchasing - South,Permanent Residential,The Garden House,665, 17-Feb-2015
1731,Revenue,CCHD,Bed Purchasing - North,Permanent Residential,The Garden House,1263.96, 17-Feb-2015
1732,Revenue,CCHD,Bed Purchasing - North,Respite Planned - Residential,The Garden House,10960, 17-Feb-2015
1733,Revenue,CCHD,Bed Purchasing - North,Permanent Residential,The Garden House,1998, 17-Feb-2015
1734,Revenue,CCHD,Bed Purchasing - South,Permanent Residential,The Garden House,1222.08, 17-Feb-2015
1735,Revenue,CCHD,Bed Purchasing - North,Permanent Residential,The Garden House,2244.87, 17-Feb-2015
1736,Revenue,CCHD,Bed Purchasing - Southmead Hospital,Respite Planned - Residential,The Garden House,600, 17-Feb-2015
1737,Revenue,CCHD,Bed Purchasing - North,Permanent Residential,The Garden House,1324.84, 17-Feb-2015
1738,Revenue,CCHD,Bed Purchasing - North,Respite Planned - Residential,The Garden House,2500, 17-Feb-2015
1739,Revenue,CCHD,Bed Purchasing - Southmead Hospital,Permanent Residential,The Grove,1980.32, 17-Feb-2015
1740,Revenue,CCHD,Bed Purchasing - South,Permanent Residential,The Grove,1701.88, 17-Feb-2015
1741,Revenue,CCHD,Bed Purchasing - North,Permanent Residential,The Grove,2244.4, 17-Feb-2015
1742,Revenue,CCHD,Bed Purchasing - Elderly S117- North,Permanent Residential,The Grove,2125.2, 17-Feb-2015
1743,Revenue,CCHD,Bed purchasing - Elderly S117 - South,Permanent Residential,The Grove,2356.44, 17-Feb-2015
1744,Revenue,CCHD,Bed Purchasing - North,Permanent Residential,The Grove,1672.2, 17-Feb-2015
1745,Revenue,CCHD,Bed purchasing - Elderly S117 - South,Permanent Residential,The Grove,2356.44, 17-Feb-2015
1746,Revenue,CCHD,Bed Purchasing - North,Permanent Residential,The Grove,2144.2, 17-Feb-2015
1747,Revenue,CCHD,Bed Purchasing - North,Permanent Residential,The Grove,1134.28, 17-Feb-2015
1748,Revenue,CCHD,Bed Purchasing - North,Permanent Residential,The Grove,1269.96, 17-Feb-2015
1749,Revenue,CCHD,Bed Purchasing - North,Permanent Residential,The Grove,1310.36, 17-Feb-2015
1750,Revenue,CCHD,Bed Purchasing - South,Respite Emergency - Residential,The Grove,3100, 17-Feb-2015
1751,Revenue,CCHD,Bed purchasing - Elderly S117 - South,Permanent Residential,The Grove,2800, 17-Feb-2015
1752,Revenue,CCHD,Supporting People Programme,Grants to Voluntary Bodies,The Hatch Camphill Community,1970.74, 27-Feb-2015
1753,Revenue,CCHD,Home Care - Elderly - North,Supported Living,The Hatch Camphill Community,2016.8, 17-Feb-2015
1754,Revenue,CCHD,Home Care - Elderly - North,Supported Living,The Hatch Camphill Community,2139.52, 17-Feb-2015
1755,Revenue,CCHD,Home Care - Elderly - North,Supported Living,The Hatch Camphill Community,1211.84, 17-Feb-2015
1756,Revenue,CCHD,Home Care - Elderly - North,Supported Living,The Hatch Camphill Community,2297.6, 17-Feb-2015
1757,Revenue,CCHD,Home Care - Elderly - North,Supported Living,The Hatch Camphill Community,2285.12, 17-Feb-2015
1758,Revenue,CCHD,Home Care - Elderly - North,Supported Living,The Hatch Camphill Community,2256, 17-Feb-2015
1759,Revenue,CCHD,Home Care - Elderly - North,Supported Living,The Hatch Camphill Community,1795.92, 17-Feb-2015
1760,Revenue,CCHD,Home Care - Elderly - North,Supported Living,The Hatch Camphill Community,2056.32, 17-Feb-2015
1761,Revenue,CCHD,Home Care - Elderly - North,Supported Living,The Hatch Camphill Community,1873.28, 17-Feb-2015
1762,Revenue,CCHD,Home Care - Elderly - North,Supported Living,The Hatch Camphill Community,1698.56, 17-Feb-2015
1763,Revenue,CCHD,Home Care - Elderly - North,Supported Living,The Hatch Camphill Community,2058.4, 17-Feb-2015
1764,Revenue,CCHD,Home Care - Elderly - North,Supported Living,The Hatch Camphill Community,1259.28, 17-Feb-2015
1765,Revenue,CCHD,Home Care - Elderly - North,Supported Living,The Hatch Camphill Community,1840, 17-Feb-2015
1766,Revenue,CCHD,Home Care - Elderly - North,Supported Living,The Hatch Camphill Community,1566.28, 17-Feb-2015
1767,Revenue,CCHD,Home Care - Elderly - North,Supported Living,The Hatch Camphill Community,1648.64, 17-Feb-2015
1768,Revenue,CCHD,Home Care - Elderly - North,Supported Living,The Hatch Camphill Community,1274.24, 17-Feb-2015
1769,Revenue,CCHD,Home Care - Elderly - North,Supported Living,The Hatch Camphill Community,2056.32, 17-Feb-2015
1770,Revenue,CCHD,Home Care - Elderly - North,Supported Living,The Hatch Camphill Community,2023.04, 17-Feb-2015
1771,Revenue,CCHD,Bed Purchasing - North,Permanent Nursing,The Heathers,912.64, 17-Feb-2015
1772,Revenue,CCHD,Bed Purchasing - Southmead Hospital,Permanent Nursing,The Heathers,1336.2, 17-Feb-2015
1773,Revenue,CCHD,South Glos Users in South Glos Homes,Permanent Nursing,The Heathers,1631.67, 17-Feb-2015
1774,Revenue,CCHD,Bed Purchasing - Southmead Hospital,Permanent Nursing,The Heathers,1097.12, 17-Feb-2015
1775,Revenue,CCHD,Bed Purchasing - Southmead Hospital,Permanent Nursing,The Heathers,1778.16, 17-Feb-2015
1776,Revenue,CCHD,Bed Purchasing - South,Permanent Nursing,The Heathers,1320.2, 17-Feb-2015
1777,Revenue,CCHD,Bed Purchasing - South,Permanent Nursing,The Heathers,1225.9, 17-Feb-2015
1778,Revenue,CCHD,South Glos Users in South Glos Homes,Permanent Nursing,The Heathers,2043.54, 17-Feb-2015
1779,Revenue,CCHD,Bed Purchasing - North,Permanent Nursing,The Heathers,1357.88, 17-Feb-2015
1780,Revenue,CCHD,Bed Purchasing - North,Permanent Nursing,The Heathers,1260.16, 17-Feb-2015
1781,Revenue,CCHD,Bed Purchasing - Southmead Hospital,Permanent Nursing,The Heathers,1320.2, 17-Feb-2015
1782,Revenue,CCHD,Bed Purchasing - North,Permanent Residential,The Hollies,1312.6, 17-Feb-2015
1783,Revenue,CCHD,Home Care - Elderly - South,Day Care / Social Activities,The Manor House,1471.4, 17-Feb-2015
1784,Revenue,CCHD,Home Care - Elderly - South,Day Care / Social Activities,The Manor House,1411.28, 17-Feb-2015
1785,Revenue,CCHD,Home Care - Elderly - South,Day Care / Social Activities,The Manor House,1381.24, 17-Feb-2015
1786,Revenue,CCHD,Home Care - Elderly - South,Day Care / Social Activities,The Manor House,1381.24, 17-Feb-2015
1787,Revenue,CCHD,Home Care - Elderly - South,Supported Living,The Manor House,1381.24, 17-Feb-2015
1788,Revenue,CCHD,Home Care - Elderly - North,Day Care / Social Activities,The Manor House,1381.24, 17-Feb-2015
1789,Revenue,CCHD,Home Care - Elderly - North,Day Care / Social Activities,The Manor House,2390.96, 17-Feb-2015
1790,Revenue,CCHD,Bed Purchasing - South,Permanent Residential,The Manor House,3096.96, 17-Feb-2015
1791,Revenue,CCHD,Bed Purchasing - South,Respite Planned - Residential,The Manor House,2011.77, 17-Feb-2015
1792,Revenue,CCHD,Bed Purchasing - South,Respite Planned - Residential,The Manor House,670.6, 17-Feb-2015
1793,Revenue,CCHD,Bed Purchasing - North,Respite Planned - Residential,The Manor House,779.92, 17-Feb-2015
1794,Revenue,CCHD,Bed Purchasing - South,Respite Planned - Residential,The Manor House,669.06, 17-Feb-2015
1795,Revenue,CCHD,Bed Purchasing - South,Permanent Residential,The Manor House,4967.04, 17-Feb-2015
1796,Revenue,CCHD,Bed Purchasing - South,Permanent Residential,The Manor House,4773.36, 17-Feb-2015
1797,Revenue,CCHD,Bed Purchasing - South,Permanent Residential,The Manor House,3982.4, 17-Feb-2015
1798,Revenue,CCHD,Bed Purchasing - North,Permanent Residential,The Manor House,3423.08, 17-Feb-2015
1799,Revenue,CCHD,Bed Purchasing - North,Permanent Residential,The Manor House,4011.16, 17-Feb-2015
1800,Revenue,CCHD,Bed Purchasing - South,Permanent Residential,The Manor House,4840.4, 17-Feb-2015
1801,Revenue,CCHD,Bed Purchasing - South,Permanent Residential,The Manor House,3385.04, 17-Feb-2015
1802,Revenue,CCHD,Bed Purchasing - South,Permanent Residential,The Manor House,6082.84, 17-Feb-2015
1803,Revenue,CCHD,Bed purchasing - S28A Under 65 - South,Permanent Residential,The Manor House,4830.96, 17-Feb-2015
1804,Revenue,CCHD,Bed Purchasing - South,Permanent Residential,The Manor House,3376.8, 17-Feb-2015
1805,Revenue,CCHD,Bed Purchasing - South,Permanent Residential,The Manor House,3435.28, 17-Feb-2015
1806,Revenue,CCHD,Bed Purchasing - South,Permanent Residential,The Manor House,3266.48, 17-Feb-2015
1807,Revenue,CCHD,Bed Purchasing - South,Permanent Residential,The Manor House,2935.96, 17-Feb-2015
1808,Revenue,CCHD,Bed Purchasing - South,Permanent Residential,The Manor House,4490.72, 17-Feb-2015
1809,Revenue,CCHD,Bed Purchasing - South,Permanent Residential,The Manor House,4368.44, 17-Feb-2015
1810,Revenue,CCHD,Bed Purchasing - South,Permanent Residential,The Manor House,3275, 17-Feb-2015
1811,Revenue,CCHD,Bed Purchasing - North,Respite Planned - Residential,The Manor House,1076.4, 17-Feb-2015
1812,Revenue,CCHD,Bed Purchasing - North,Respite Planned - Residential,The Manor House,807.3, 17-Feb-2015
1813,Revenue,CCHD,Bed Purchasing - South,Permanent Residential,The Manor House,2714.88, 17-Feb-2015
1814,Revenue,CCHD,Bed Purchasing - South,Permanent Residential,The Manor House,3259.32, 17-Feb-2015
1815,Revenue,CCHD,Bed Purchasing - South,Respite Planned - Residential,The Manor House,535.26, 17-Feb-2015
1816,Revenue,CCHD,Bed Purchasing - South,Permanent Residential,The Manor House,4770.76, 17-Feb-2015
1817,Revenue,CCHD,Home Care - Elderly - North,Day Care / Social Activities,The Old School House,568.32, 17-Feb-2015
1818,Revenue,CCHD,Home Care - Elderly - South,Day Care / Social Activities,The Old School House,568.32, 17-Feb-2015
1819,Revenue,CCHD,Home Care - Elderly - North,Day Care / Social Activities,The Old School House,568.32, 17-Feb-2015
1820,Revenue,CCHD,Home Care - Elderly - North,Day Care / Social Activities,The Old School House,1491.84, 17-Feb-2015
1821,Revenue,CCHD,Home Care - Elderly - North,Day Care / Social Activities,The Old School House,568.32, 17-Feb-2015
1822,Revenue,CCHD,Sexual Health,Other Small Contracts,The Park Medical Practice,846.54, 12-Feb-2015
1823,Revenue,CCHD,Social Lettings Agency,Fees - General,The Restore Trust,11.6, 27-Feb-2015
1824,Revenue,CCHD,Social Lettings Agency,Other Supplies & Services,The Restore Trust,655.11, 27-Feb-2015
1825,Revenue,CCHD,Supporting People Programme,Grants to Voluntary Bodies,The Riverside Group Limited,2070.75, 27-Feb-2015
1826,Revenue,CCHD,Bed Purchasing - North,Permanent Residential,The Thomas Moore Project,1961.36, 17-Feb-2015
1827,Revenue,CCHD,Home Care - Elderly - North,Day Care / Social Activities,The Vassall Centre,1040, 17-Feb-2015
1828,Revenue,CCHD,Home Care - Elderly - South,Day Care / Social Activities,The Vassall Centre,4704, 17-Feb-2015
1829,Revenue,CCHD,Sexual Health,Other Small Contracts,The Willow Surgery,609.08, 12-Feb-2015
1830,Revenue,CCHD,Bed Purchasing - South,Permanent Residential,The Worthies,818.64, 17-Feb-2015
1831,Revenue,CCHD,Bed Purchasing - North,Permanent Residential,The Worthies,1040.8, 17-Feb-2015
1832,Revenue,CCHD,Bed Purchasing - Southmead Hospital,Permanent Residential,The Worthies,10945.25, 17-Feb-2015
1833,Revenue,CCHD,Bed Purchasing - Southmead Hospital,Permanent Residential,The Worthies,1156.48, 17-Feb-2015
1834,Revenue,CCHD,Bed Purchasing - Southmead Hospital,Permanent Residential,The Worthies,1452.12, 17-Feb-2015
1835,Revenue,CCHD,Bed Purchasing - South,Permanent Residential,The Worthies,1432.2, 17-Feb-2015
1836,Revenue,CCHD,Sexual Health,Other Small Contracts,Three Shires Medical Practice,505.86, 12-Feb-2015
1837,Revenue,CCHD,Learning Difficulties PSL,Rent,Individual,650, 20-Feb-2015
1838,Revenue,CCHD,Learning Difficulties PSL,Rent,Individual,750, 20-Feb-2015
1839,Revenue,CCHD,Learning Difficulties PSL,Rent,Individual,488, 20-Feb-2015
1840,Revenue,CCHD,Bed and Breakfast,Bed & Breakfast,Top Drawer Properties Limited,616, 04-Feb-2015
1841,Revenue,CCHD,Bed and Breakfast,Bed & Breakfast,Top Drawer Properties Limited,490, 04-Feb-2015
1842,Revenue,CCHD,Bed and Breakfast,Bed & Breakfast,Top Drawer Properties Limited,420, 05-Feb-2015
1843,Revenue,CCHD,Bed and Breakfast,Bed & Breakfast,Top Drawer Properties Limited,448, 06-Feb-2015
1844,Revenue,CCHD,Bed and Breakfast,Bed & Breakfast,Top Drawer Properties Limited,420, 06-Feb-2015
1845,Revenue,CCHD,Bed and Breakfast,Bed & Breakfast,Top Drawer Properties Limited,448, 06-Feb-2015
1846,Revenue,CCHD,Bed and Breakfast,Bed & Breakfast,Top Drawer Properties Limited,455, 06-Feb-2015
1847,Revenue,CCHD,Bed and Breakfast,Bed & Breakfast,Top Drawer Properties Limited,420, 06-Feb-2015
1848,Revenue,CCHD,Bed and Breakfast,Bed & Breakfast,Top Drawer Properties Limited,448, 06-Feb-2015
1849,Revenue,CCHD,Bed and Breakfast,Bed & Breakfast,Top Drawer Properties Limited,455, 06-Feb-2015
1850,Revenue,CCHD,Bed and Breakfast,Bed & Breakfast,Top Drawer Properties Limited,420, 06-Feb-2015
1851,Revenue,CCHD,Bed and Breakfast,Bed & Breakfast,Top Drawer Properties Limited,490, 19-Feb-2015
1852,Revenue,CCHD,Bed and Breakfast,Bed & Breakfast,Top Drawer Properties Limited,448, 23-Feb-2015
1853,Revenue,CCHD,Bed and Breakfast,Bed & Breakfast,Top Drawer Properties Limited,455, 23-Feb-2015
1854,Revenue,CCHD,Bed and Breakfast,Bed & Breakfast,Top Drawer Properties Limited,490, 24-Feb-2015
1855,Revenue,CCHD,Bed and Breakfast,Bed & Breakfast,Top Drawer Properties Limited,420, 24-Feb-2015
1856,Revenue,CCHD,Bed and Breakfast,Bed & Breakfast,Top Drawer Properties Limited,448, 19-Feb-2015
1857,Revenue,CCHD,Bed and Breakfast,Bed & Breakfast,Top Drawer Properties Limited,455, 24-Feb-2015
